Body Name,Body,Service Area Catergorisation,Service Division Catergorisation,Responsible Unit,Expenses Type,Detailed Expenses Type,Expenses Code,Date,Transaction Number,Amount,Capital / Revenue,Supplier Name,Supplier ID
North East Lincolnshire Council,http://statistics.data.gov.uk/id/local-authority/00FC,Cap People And Communities,Cap Childrens Hlth & Fam Supp,Creative Play Facilities,Cap Land/Build-Build Enh Wrk,Cap Land/Build-Build Enh Wrk,YA102,3/18/2013,184039,REDACTED COMMERCIALLY SENSITIVE,Capital,BALFOUR BEATTY LIVING PLACES LTD,115102
North East Lincolnshire Council,http://statistics.data.gov.uk/id/local-authority/00FC,Cap People And Communities,Cap Schools Capital,Devolved Formula Cap Grant,Cap Land/Build-Build Enh Wrk,Cap Land/Build-Build Enh Wrk,YA102,3/27/2013,186344,"8,712.00",Capital,HAITH'S HEATING LTD,101342
North East Lincolnshire Council,http://statistics.data.gov.uk/id/local-authority/00FC,Cap People And Communities,Cap Schools Capital,Devolved Formula Cap Grant,Cap Veh Plt Eqp-Purchase,Cap Veh Plt Eqp-Purchase,YB101,3/25/2013,185921,"1,585.00",Capital,GAIA TECHNOLOGIES PLC,102572
North East Lincolnshire Council,http://statistics.data.gov.uk/id/local-authority/00FC,Cap People And Communities,Cap Schools Capital,Devolved Formula Cap Grant,Cap Veh Plt Eqp-Purchase,Cap Veh Plt Eqp-Purchase,YB101,3/27/2013,186241,390.00,Capital,INSIGHT DIRECT (UK) LTD,101011
North East Lincolnshire Council,http://statistics.data.gov.uk/id/local-authority/00FC,Cap People And Communities,Cap Schools Capital,Devolved Formula Cap Grant,Cap Veh Plt Eqp-Purchase,Cap Veh Plt Eqp-Purchase,YB101,3/28/2013,187447,"3,343.00",Capital,EDUCATION LINCS LTD,101059
North East Lincolnshire Council,http://statistics.data.gov.uk/id/local-authority/00FC,Cap People And Communities,Cap Schools Capital,Devolved Formula Cap Grant,Cap Land/Build-Build Enh Wrk,Cap Land/Build-Build Enh Wrk,YA102,3/28/2013,187046,"1,890.00",Capital,ETON-LINCS LIMITED,101510
North East Lincolnshire Council,http://statistics.data.gov.uk/id/local-authority/00FC,Cap People And Communities,Cap Schools Capital,Devolved Formula Cap Grant,Cap Land/Build-Build Enh Wrk,Cap Land/Build-Build Enh Wrk,YA102,3/25/2013,186096,"32,000.00",Capital,GAIA TECHNOLOGIES PLC,102572
North East Lincolnshire Council,http://statistics.data.gov.uk/id/local-authority/00FC,Cap People And Communities,Cap Schools Capital,School'S Kitchens,Cap Land/Build-Prof Fees,Cap Land/Build-Prof Fees,YA103,3/11/2013,182968,REDACTED COMMERCIALLY SENSITIVE,Capital,BALFOUR BEATTY LIVING PLACES LTD,115102
North East Lincolnshire Council,http://statistics.data.gov.uk/id/local-authority/00FC,Cap People And Communities,Cap Schools Capital,Schools - Capital Allocation,Cap Land/Build-Prof Fees,Cap Land/Build-Prof Fees,YA103,3/11/2013,182980,REDACTED COMMERCIALLY SENSITIVE,Capital,BALFOUR BEATTY LIVING PLACES LTD,115102
North East Lincolnshire Council,http://statistics.data.gov.uk/id/local-authority/00FC,Cap People And Communities,Cap Schools Capital,Schools - Capital Allocation,Cap Land/Build-Build Enh Wrk,Cap Land/Build-Build Enh Wrk,YA102,3/27/2013,186381,"1,095.00",Capital,DENTON & NICKELS LTD,107629
North East Lincolnshire Council,http://statistics.data.gov.uk/id/local-authority/00FC,Cap People And Communities,Cap Schools Capital,Schools - Capital Allocation,Cap Auc-Build Enh Wrk,Cap Auc-Build Enh Wrk,YF102,3/27/2013,186897,"1,000.00",Capital,P G INGOLDBY & SONS LTD,100591
North East Lincolnshire Council,http://statistics.data.gov.uk/id/local-authority/00FC,Cap People And Communities,Cap Schools Capital,Schools - Capital Allocation,Cap Land/Build-Build Enh Wrk,Cap Land/Build-Build Enh Wrk,YA102,3/6/2013,181836,"4,361.38",Capital,TUCKER AND TUNSTALLS LTD,107393
North East Lincolnshire Council,http://statistics.data.gov.uk/id/local-authority/00FC,Cap People And Communities,Cap Schools Capital,Schools - Capital Allocation,Cap Land/Build-Build Enh Wrk,Cap Land/Build-Build Enh Wrk,YA102,3/27/2013,186899,430.00,Capital,UNIBUILD BUILDING CONT LTD,101469
North East Lincolnshire Council,http://statistics.data.gov.uk/id/local-authority/00FC,Cap People And Communities,Cap Schools Capital,Schools - Capital Allocation,Cap Land/Build-Build Enh Wrk,Cap Land/Build-Build Enh Wrk,YA102,3/25/2013,185313,"11,351.00",Capital,E S RUDKIN LTD,100632
North East Lincolnshire Council,http://statistics.data.gov.uk/id/local-authority/00FC,Cap People And Communities,Cap Schools Capital,Schools - Capital Allocation,Cap Land/Build-Prof Fees,Cap Land/Build-Prof Fees,YA103,3/11/2013,182979,REDACTED COMMERCIALLY SENSITIVE,Capital,BALFOUR BEATTY LIVING PLACES LTD,115102
North East Lincolnshire Council,http://statistics.data.gov.uk/id/local-authority/00FC,Cap People And Communities,Cap Schools Capital,Schools - Capital Allocation,Cap Land/Build-Build Enh Wrk,Cap Land/Build-Build Enh Wrk,YA102,3/28/2013,186902,"45,598.00",Capital,JAMES BRATTON & CO LTD,100714
North East Lincolnshire Council,http://statistics.data.gov.uk/id/local-authority/00FC,Cap People And Communities,Cap Schools Capital,Schools - Capital Allocation,Cap Land/Build-Build Enh Wrk,Cap Land/Build-Build Enh Wrk,YA102,3/20/2013,184576,452.00,Capital,GRADE 3 LIMITED,101924
North East Lincolnshire Council,http://statistics.data.gov.uk/id/local-authority/00FC,Cap People And Communities,Cap Schools Capital,Schools - Capital Allocation,Cap Land/Build-Prof Fees,Cap Land/Build-Prof Fees,YA103,3/11/2013,182981,REDACTED COMMERCIALLY SENSITIVE,Capital,BALFOUR BEATTY LIVING PLACES LTD,115102
North East Lincolnshire Council,http://statistics.data.gov.uk/id/local-authority/00FC,Cap People And Communities,Cap Schools Capital,Schools - Capital Allocation,Cap Land/Build-Build Enh Wrk,Cap Land/Build-Build Enh Wrk,YA102,3/20/2013,184654,396.00,Capital,SCARBOROUGH NIXON ASSOCIATES,118766
North East Lincolnshire Council,http://statistics.data.gov.uk/id/local-authority/00FC,Cap People And Communities,Cap Schools Capital,Schools - Capital Allocation,Cap Land/Build-Build Enh Wrk,Cap Land/Build-Build Enh Wrk,YA102,3/28/2013,187064,"1,727.00",Capital,MANTA BRC LTD,102230
North East Lincolnshire Council,http://statistics.data.gov.uk/id/local-authority/00FC,Cap People And Communities,Cap Schools Capital,Schools - Capital Allocation,Cap Land/Build-Build Enh Wrk,Cap Land/Build-Build Enh Wrk,YA102,3/27/2013,186901,"27,864.45",Capital,NRA ROOFING & FLOORING SERVICES,101810
North East Lincolnshire Council,http://statistics.data.gov.uk/id/local-authority/00FC,Cap People And Communities,Cap Schools Capital,Schools - Basic Needs,Cap Land/Build-Build Enh Wrk,Cap Land/Build-Build Enh Wrk,YA102,3/12/2013,183335,REDACTED COMMERCIALLY SENSITIVE,Capital,BALFOUR BEATTY LIVING PLACES LTD,115102
North East Lincolnshire Council,http://statistics.data.gov.uk/id/local-authority/00FC,Cap People And Communities,Cap Schools Capital,Schools - Basic Needs,Cap Land/Build-Prof Fees,Cap Land/Build-Prof Fees,YA103,3/11/2013,182974,REDACTED COMMERCIALLY SENSITIVE,Capital,BALFOUR BEATTY LIVING PLACES LTD,115102
North East Lincolnshire Council,http://statistics.data.gov.uk/id/local-authority/00FC,Cap People And Communities,Cap Schools Capital,Schools - Basic Needs,Cap Land/Build-Build Enh Wrk,Cap Land/Build-Build Enh Wrk,YA102,3/6/2013,181835,"26,904.90",Capital,MANTA BRC LTD,102230
North East Lincolnshire Council,http://statistics.data.gov.uk/id/local-authority/00FC,Cap People And Communities,Cap Schools Capital,Schools - Basic Needs,Cap Land/Build-Build Enh Wrk,Cap Land/Build-Build Enh Wrk,YA102,3/28/2013,186809,"28,649.39",Capital,MANTA BRC LTD,102230
North East Lincolnshire Council,http://statistics.data.gov.uk/id/local-authority/00FC,Cap People And Communities,Cap Schools Capital,Schools - Basic Needs,Cap Veh Plt Eqp-Build Enh Wrk,Cap Veh Plt Eqp-Build Enh Wrk,YB102,3/11/2013,182948,"25,999.60",Capital,GAIA TECHNOLOGIES PLC,102572
North East Lincolnshire Council,http://statistics.data.gov.uk/id/local-authority/00FC,Cap People And Communities,Cap Schools Capital,Schools - Basic Needs,Cap Land/Build-Build Enh Wrk,Cap Land/Build-Build Enh Wrk,YA102,3/18/2013,183373,"1,650.00",Capital,G S KELSEY LIMITED,101154
North East Lincolnshire Council,http://statistics.data.gov.uk/id/local-authority/00FC,Cap People And Communities,Cap Schools Capital,Schools - Basic Needs,Cap Land/Build-Prof Fees,Cap Land/Build-Prof Fees,YA103,3/12/2013,183331,REDACTED COMMERCIALLY SENSITIVE,Capital,BALFOUR BEATTY LIVING PLACES LTD,115102
North East Lincolnshire Council,http://statistics.data.gov.uk/id/local-authority/00FC,Cap People And Communities,Cap Schools Capital,Schools - Basic Needs,Cap Land/Build-Prof Fees,Cap Land/Build-Prof Fees,YA103,3/12/2013,183336,REDACTED COMMERCIALLY SENSITIVE,Capital,BALFOUR BEATTY LIVING PLACES LTD,115102
North East Lincolnshire Council,http://statistics.data.gov.uk/id/local-authority/00FC,Cap People And Communities,Cap Schools Capital,Schools - Basic Needs,Cap Land/Build-Prof Fees,Cap Land/Build-Prof Fees,YA103,3/11/2013,182973,REDACTED COMMERCIALLY SENSITIVE,Capital,BALFOUR BEATTY LIVING PLACES LTD,115102
North East Lincolnshire Council,http://statistics.data.gov.uk/id/local-authority/00FC,Cap People And Communities,Cap Schools Capital,Schools - Basic Needs,Cap Land/Build-Prof Fees,Cap Land/Build-Prof Fees,YA103,3/12/2013,183339,REDACTED COMMERCIALLY SENSITIVE,Capital,BALFOUR BEATTY LIVING PLACES LTD,115102
North East Lincolnshire Council,http://statistics.data.gov.uk/id/local-authority/00FC,Cap People And Communities,Cap Schools Capital,Schools - Basic Needs,Cap Land/Build-Prof Fees,Cap Land/Build-Prof Fees,YA103,3/12/2013,183337,REDACTED COMMERCIALLY SENSITIVE,Capital,BALFOUR BEATTY LIVING PLACES LTD,115102
North East Lincolnshire Council,http://statistics.data.gov.uk/id/local-authority/00FC,Cap People And Communities,Cap Schools Capital,Schools - Basic Needs,Cap Land/Build-Prof Fees,Cap Land/Build-Prof Fees,YA103,3/11/2013,182971,REDACTED COMMERCIALLY SENSITIVE,Capital,BALFOUR BEATTY LIVING PLACES LTD,115102
North East Lincolnshire Council,http://statistics.data.gov.uk/id/local-authority/00FC,Cap People And Communities,Cap Schools Capital,Schools - Basic Needs,Cap Land/Build-Build Enh Wrk,Cap Land/Build-Build Enh Wrk,YA102,3/28/2013,186802,"61,218.03",Capital,TOPCON CONSTRUCTION LTD,108462
North East Lincolnshire Council,http://statistics.data.gov.uk/id/local-authority/00FC,Cap People And Communities,Cap Schools Capital,Schools - Basic Needs,Cap Land/Build-Prof Fees,Cap Land/Build-Prof Fees,YA103,3/12/2013,183332,REDACTED COMMERCIALLY SENSITIVE,Capital,BALFOUR BEATTY LIVING PLACES LTD,115102
North East Lincolnshire Council,http://statistics.data.gov.uk/id/local-authority/00FC,Cap People And Communities,Cap Schools Capital,Schools - Basic Needs,Cap Land/Build-Build Enh Wrk,Cap Land/Build-Build Enh Wrk,YA102,3/21/2013,185788,"132,773.11",Capital,EXTRASPACE (UK) LTD,119622
North East Lincolnshire Council,http://statistics.data.gov.uk/id/local-authority/00FC,Cap People And Communities,Cap Schools Capital,Schools - Basic Needs,Cap Land/Build-Build Enh Wrk,Cap Land/Build-Build Enh Wrk,YA102,3/4/2013,180901,"1,250.00",Capital,CLUGSTON SURVEY SERVICES,105668
North East Lincolnshire Council,http://statistics.data.gov.uk/id/local-authority/00FC,Cap People And Communities,Cap Schools Capital,Schools - Basic Needs,Cap Land/Build-Prof Fees,Cap Land/Build-Prof Fees,YA103,3/12/2013,183333,REDACTED COMMERCIALLY SENSITIVE,Capital,BALFOUR BEATTY LIVING PLACES LTD,115102
North East Lincolnshire Council,http://statistics.data.gov.uk/id/local-authority/00FC,Cap People And Communities,Cap Schools Capital,Schools - Basic Needs,Cap Land/Build-Prof Fees,Cap Land/Build-Prof Fees,YA103,3/11/2013,182970,REDACTED COMMERCIALLY SENSITIVE,Capital,BALFOUR BEATTY LIVING PLACES LTD,115102
North East Lincolnshire Council,http://statistics.data.gov.uk/id/local-authority/00FC,Cap People And Communities,Cap Schools Capital,Schools - Basic Needs,Cap Land/Build-Build Enh Wrk,Cap Land/Build-Build Enh Wrk,YA102,3/27/2013,186898,"66,613.05",Capital,C R REYNOLDS (CONSTRUCTION) LTD,103021
North East Lincolnshire Council,http://statistics.data.gov.uk/id/local-authority/00FC,Cap People And Communities,Cap Schools Capital,Surplus Place Removal,Cap Land/Build-Prof Fees,Cap Land/Build-Prof Fees,YA103,3/11/2013,182969,REDACTED COMMERCIALLY SENSITIVE,Capital,BALFOUR BEATTY LIVING PLACES LTD,115102
North East Lincolnshire Council,http://statistics.data.gov.uk/id/local-authority/00FC,Cap People And Communities,Cap Schools Capital,Surplus Place Removal,Cap Land/Build-Build Enh Wrk,Cap Land/Build-Build Enh Wrk,YA102,3/27/2013,186318,560.00,Capital,ETON-LINCS LIMITED,101510
North East Lincolnshire Council,http://statistics.data.gov.uk/id/local-authority/00FC,Cap People And Communities,Cap Schools Capital,Surplus Place Removal,Cap Land/Build-Build Enh Wrk,Cap Land/Build-Build Enh Wrk,YA102,3/27/2013,186319,"2,835.00",Capital,ARK JOINERY AND BUILDING MAINTENANCE LTD,101126
North East Lincolnshire Council,http://statistics.data.gov.uk/id/local-authority/00FC,Cap People And Communities,Cap Schools Capital,Surplus Place Removal,Cap Land/Build-Prof Fees,Cap Land/Build-Prof Fees,YA103,3/11/2013,182978,REDACTED COMMERCIALLY SENSITIVE,Capital,BALFOUR BEATTY LIVING PLACES LTD,115102
North East Lincolnshire Council,http://statistics.data.gov.uk/id/local-authority/00FC,Cap People And Communities,Cap Schools Capital,Surplus Place Removal,Cap Land/Build-Prof Fees,Cap Land/Build-Prof Fees,YA103,3/12/2013,183328,REDACTED COMMERCIALLY SENSITIVE,Capital,BALFOUR BEATTY LIVING PLACES LTD,115102
North East Lincolnshire Council,http://statistics.data.gov.uk/id/local-authority/00FC,Cap People And Communities,Cap Schools Capital,Surplus Place Removal,Cap Land/Build-Build Enh Wrk,Cap Land/Build-Build Enh Wrk,YA102,3/12/2013,183327,REDACTED COMMERCIALLY SENSITIVE,Capital,BALFOUR BEATTY LIVING PLACES LTD,115102
North East Lincolnshire Council,http://statistics.data.gov.uk/id/local-authority/00FC,Cap People And Communities,Cap Schools Capital,Surplus Place Removal,Cap Land/Build-Build Enh Wrk,Cap Land/Build-Build Enh Wrk,YA102,3/27/2013,186380,"2,482.00",Capital,G-TECH ELECTRICAL CONTRACTORS LTD,101378
North East Lincolnshire Council,http://statistics.data.gov.uk/id/local-authority/00FC,Cap People And Communities,Cap Schools Capital,Havelock Academy,Cap Land/Build-Build Enh Wrk,Cap Land/Build-Build Enh Wrk,YA102,3/27/2013,186956,"324,880.06",Capital,KIER CONSTRUCTION - MAJOR PROJECTS,102302
North East Lincolnshire Council,http://statistics.data.gov.uk/id/local-authority/00FC,Cap People And Communities,Cap Schools Capital,Primary Capital Programme,Cap Land/Build-Prof Fees,Cap Land/Build-Prof Fees,YA103,3/27/2013,186675,REDACTED COMMERCIALLY SENSITIVE,Capital,BALFOUR BEATTY,102595
North East Lincolnshire Council,http://statistics.data.gov.uk/id/local-authority/00FC,Cap People And Communities,Cap Schools Capital,Primary Capital Programme,Cap Land/Build-Build Enh Wrk,Cap Land/Build-Build Enh Wrk,YA102,3/11/2013,182972,REDACTED COMMERCIALLY SENSITIVE,Capital,BALFOUR BEATTY LIVING PLACES LTD,115102
North East Lincolnshire Council,http://statistics.data.gov.uk/id/local-authority/00FC,Cap People And Communities,Cap Schools Capital,Primary Capital Programme,Cap Auc-Build Enh Wrk,Cap Auc-Build Enh Wrk,YF102,3/7/2013,182148,420.00,Capital,REDHILL ANALYSTS LTD,109169
North East Lincolnshire Council,http://statistics.data.gov.uk/id/local-authority/00FC,Cap People And Communities,Cap Schools Capital,Primary Capital Programme,Cap Land/Build-Build Enh Wrk,Cap Land/Build-Build Enh Wrk,YA102,3/11/2013,182977,REDACTED COMMERCIALLY SENSITIVE,Capital,BALFOUR BEATTY LIVING PLACES LTD,115102
North East Lincolnshire Council,http://statistics.data.gov.uk/id/local-authority/00FC,Cap People And Communities,Cap Schools Capital,Primary Capital Programme,Cap Land/Build-Prof Fees,Cap Land/Build-Prof Fees,YA103,3/25/2013,185664,REDACTED COMMERCIALLY SENSITIVE,Capital,BALFOUR BEATTY,102595
North East Lincolnshire Council,http://statistics.data.gov.uk/id/local-authority/00FC,Cap People And Communities,Cap Schools Capital,Secondary Capital Programme,Cap Land/Build-Build Enh Wrk,Cap Land/Build-Build Enh Wrk,YA102,3/27/2013,186320,300.00,Capital,GRADE 3 LIMITED,101924
North East Lincolnshire Council,http://statistics.data.gov.uk/id/local-authority/00FC,Cap People And Communities,Cap Schools Capital,Secondary Capital Programme,Cap Land/Build-Build Enh Wrk,Cap Land/Build-Build Enh Wrk,YA102,3/27/2013,186391,"27,447.00",Capital,GRADE 3 LIMITED,101924
North East Lincolnshire Council,http://statistics.data.gov.uk/id/local-authority/00FC,Cap People And Communities,Cap Schools Capital,Land Remediation,Cap Land/Build-Prof Fees,Cap Land/Build-Prof Fees,YA103,3/12/2013,183329,REDACTED COMMERCIALLY SENSITIVE,Capital,BALFOUR BEATTY LIVING PLACES LTD,115102
North East Lincolnshire Council,http://statistics.data.gov.uk/id/local-authority/00FC,Cap Resources,Cap Commission & Inform System,Capita One,Cap Veh Plt Eqp-Prof Fees,Cap Veh Plt Eqp-Prof Fees,YB103,3/4/2013,180650,609.76,Capital,MATRIX SCM LTD,108117
North East Lincolnshire Council,http://statistics.data.gov.uk/id/local-authority/00FC,Cap Resources,Cap Commission & Inform System,Capita One,Cap Veh Plt Eqp-Prof Fees,Cap Veh Plt Eqp-Prof Fees,YB103,3/18/2013,183469,609.76,Capital,MATRIX SCM LTD,108117
North East Lincolnshire Council,http://statistics.data.gov.uk/id/local-authority/00FC,Cap Resources,Cap Commission & Inform System,Capita One,Cap Veh Plt Eqp-Prof Fees,Cap Veh Plt Eqp-Prof Fees,YB103,3/20/2013,185210,609.76,Capital,MATRIX SCM LTD,108117
North East Lincolnshire Council,http://statistics.data.gov.uk/id/local-authority/00FC,Cap Resources,Cap Commission & Inform System,Frontier Isms Project,Cap Veh Plt Eqp-Purchase,Cap Veh Plt Eqp-Purchase,YB101,3/4/2013,180705,"1,785.70",Capital,BADENOCH & CLARK,101427
North East Lincolnshire Council,http://statistics.data.gov.uk/id/local-authority/00FC,Cap Resources,Cap Commission & Inform System,Frontier Isms Project,Cap Veh Plt Eqp-Purchase,Cap Veh Plt Eqp-Purchase,YB101,3/18/2013,184017,"1,785.70",Capital,BADENOCH & CLARK,101427
North East Lincolnshire Council,http://statistics.data.gov.uk/id/local-authority/00FC,Cap Resources,Cap Finance And Assets,Toilet Refurbishment,Cap Land/Build-Build Enh Wrk,Cap Land/Build-Build Enh Wrk,YA102,3/20/2013,184655,"8,500.00",Capital,E S RUDKIN LTD,100632
North East Lincolnshire Council,http://statistics.data.gov.uk/id/local-authority/00FC,Cap Resources,Cap Finance And Assets,Property Planned Repairs,Cap Land/Build-Build Enh Wrk,Cap Land/Build-Build Enh Wrk,YA102,3/28/2013,186900,"2,900.00",Capital,BURROWS DAVIES LIMITED,102722
North East Lincolnshire Council,http://statistics.data.gov.uk/id/local-authority/00FC,Cap Resources,Cap Finance And Assets,Property Planned Repairs,Cap Land/Build-Build Enh Wrk,Cap Land/Build-Build Enh Wrk,YA102,3/28/2013,187021,"30,000.00",Capital,STANNAH LIFT SERVICES LTD,100622
North East Lincolnshire Council,http://statistics.data.gov.uk/id/local-authority/00FC,Cap Resources,Cap Finance And Assets,Property Planned Repairs,Cap Land/Build-Build Enh Wrk,Cap Land/Build-Build Enh Wrk,YA102,3/6/2013,181841,"11,339.00",Capital,MANTA BRC LTD,102230
North East Lincolnshire Council,http://statistics.data.gov.uk/id/local-authority/00FC,Cap Resources,Cap Finance And Assets,Property Planned Repairs,Cap Land/Build-Build Enh Wrk,Cap Land/Build-Build Enh Wrk,YA102,3/28/2013,186945,874.00,Capital,OXLEY SHUTTERS LIMITED,100931
North East Lincolnshire Council,http://statistics.data.gov.uk/id/local-authority/00FC,Cap Resources,Cap Finance And Assets,Property Planned Repairs,Cap Land/Build-Build Enh Wrk,Cap Land/Build-Build Enh Wrk,YA102,3/27/2013,186943,"5,680.00",Capital,E S RUDKIN LTD,100632
North East Lincolnshire Council,http://statistics.data.gov.uk/id/local-authority/00FC,Cap Resources,Cap Finance And Assets,Property Planned Repairs,Cap Land/Build-Build Enh Wrk,Cap Land/Build-Build Enh Wrk,YA102,3/28/2013,187066,"5,500.00",Capital,S VOASE BUILDERS LTD,103594
North East Lincolnshire Council,http://statistics.data.gov.uk/id/local-authority/00FC,Cap Resources,Cap Finance And Assets,Allotments Strategy Delivery,Cap Land/Build-Build Enh Wrk,Cap Land/Build-Build Enh Wrk,YA102,3/18/2013,184136,"79,973.85",Capital,P G INGOLDBY & SONS LTD,100591
North East Lincolnshire Council,http://statistics.data.gov.uk/id/local-authority/00FC,Cap Resources,Cap Finance And Assets,Property Rationalisation,Cap Land/Build-Build Enh Wrk,Cap Land/Build-Build Enh Wrk,YA102,3/18/2013,183626,270.03,Capital,INSIGHT DIRECT (UK) LTD,101011
North East Lincolnshire Council,http://statistics.data.gov.uk/id/local-authority/00FC,Cap Resources,Cap Finance And Assets,Property Rationalisation,Cap Land/Build-Build Enh Wrk,Cap Land/Build-Build Enh Wrk,YA102,3/20/2013,184658,276.00,Capital,HAITH'S HEATING LTD,101342
North East Lincolnshire Council,http://statistics.data.gov.uk/id/local-authority/00FC,Cap Resources,Cap Finance And Assets,Property Rationalisation,Cap Land/Build-Build Enh Wrk,Cap Land/Build-Build Enh Wrk,YA102,3/11/2013,182551,531.00,Capital,W R CULLUM,100811
North East Lincolnshire Council,http://statistics.data.gov.uk/id/local-authority/00FC,Cap Resources,Cap Finance And Assets,Property Rationalisation,Cap Land/Build-Build Enh Wrk,Cap Land/Build-Build Enh Wrk,YA102,3/20/2013,184578,789.00,Capital,W R CULLUM,100811
North East Lincolnshire Council,http://statistics.data.gov.uk/id/local-authority/00FC,Cap Resources,Cap Finance And Assets,Property Rationalisation,Cap Land/Build-Build Enh Wrk,Cap Land/Build-Build Enh Wrk,YA102,3/20/2013,184577,"9,021.00",Capital,REDHILL ANALYSTS LTD,109169
North East Lincolnshire Council,http://statistics.data.gov.uk/id/local-authority/00FC,Cap Resources,Cap Finance And Assets,Property Rationalisation,Cap Land/Build-Build Enh Wrk,Cap Land/Build-Build Enh Wrk,YA102,3/11/2013,182592,528.00,Capital,W R CULLUM,100811
North East Lincolnshire Council,http://statistics.data.gov.uk/id/local-authority/00FC,Cap Economy Env And Housing,Cap Neighbourhood Services,Cremator Replacement,Cap Land/Build-Build Enh Wrk,Cap Land/Build-Build Enh Wrk,YA102,3/7/2013,182576,"3,480.00",Capital,ETON-LINCS LIMITED,101510
North East Lincolnshire Council,http://statistics.data.gov.uk/id/local-authority/00FC,Cap Economy Env And Housing,Cap Neighbourhood Services,Cremator Replacement,Cap Land/Build-Build Enh Wrk,Cap Land/Build-Build Enh Wrk,YA102,3/27/2013,186268,REDACTED COMMERCIALLY SENSITIVE,Capital,BALFOUR BEATTY,102595
North East Lincolnshire Council,http://statistics.data.gov.uk/id/local-authority/00FC,Cap Economy Env And Housing,Cap Neighbourhood Services,Cremator Replacement,Cap Land/Build-Build Enh Wrk,Cap Land/Build-Build Enh Wrk,YA102,3/13/2013,183563,"12,102.49",Capital,FACULTATIEVE TECHNOLOGIES LTD,101165
North East Lincolnshire Council,http://statistics.data.gov.uk/id/local-authority/00FC,Cap Economy Env And Housing,Cap Neighbourhood Services,Cremator Replacement,Cap Land/Build-Build Enh Wrk,Cap Land/Build-Build Enh Wrk,YA102,3/7/2013,182255,"113,607.28",Capital,FACULTATIEVE TECHNOLOGIES LTD,101165
North East Lincolnshire Council,http://statistics.data.gov.uk/id/local-authority/00FC,Cap Economy Env And Housing,Cap Development,Hps-Disabled Fac. Grants,Cap Grants To O/Side Sources,Cap Grants To O/Side Sources,YJ101,3/11/2013,182066,610.00,Capital,HOGAN AND JOHNSON,101127
North East Lincolnshire Council,http://statistics.data.gov.uk/id/local-authority/00FC,Cap Economy Env And Housing,Cap Development,Hps-Disabled Fac. Grants,Cap Grants To O/Side Sources,Cap Grants To O/Side Sources,YJ101,3/6/2013,179850,"1,879.76",Capital,MEARS LTD,102433
North East Lincolnshire Council,http://statistics.data.gov.uk/id/local-authority/00FC,Cap Economy Env And Housing,Cap Development,Hps-Disabled Fac. Grants,Cap Grants To O/Side Sources,Cap Grants To O/Side Sources,YJ101,3/25/2013,185263,"2,016.00",Capital,DOLPHIN MOBILITY EAST MIDLANDS LTD,101317
North East Lincolnshire Council,http://statistics.data.gov.uk/id/local-authority/00FC,Cap Economy Env And Housing,Cap Development,Hps-Disabled Fac. Grants,Cap Grants To O/Side Sources,Cap Grants To O/Side Sources,YJ101,3/6/2013,176387,"2,021.04",Capital,MEARS LTD,102433
North East Lincolnshire Council,http://statistics.data.gov.uk/id/local-authority/00FC,Cap Economy Env And Housing,Cap Development,Hps-Disabled Fac. Grants,Cap Grants To O/Side Sources,Cap Grants To O/Side Sources,YJ101,3/4/2013,176352,"2,270.36",Capital,MEARS LTD,102433
North East Lincolnshire Council,http://statistics.data.gov.uk/id/local-authority/00FC,Cap Economy Env And Housing,Cap Development,Hps-Disabled Fac. Grants,Cap Grants To O/Side Sources,Cap Grants To O/Side Sources,YJ101,3/6/2013,180814,"3,136.77",Capital,VIC HANSEN BUILDING & JOINERY LTD,103981
North East Lincolnshire Council,http://statistics.data.gov.uk/id/local-authority/00FC,Cap Economy Env And Housing,Cap Development,Hps-Disabled Fac. Grants,Cap Grants To O/Side Sources,Cap Grants To O/Side Sources,YJ101,3/6/2013,176672,"3,284.08",Capital,VIC HANSEN BUILDING & JOINERY LTD,103981
North East Lincolnshire Council,http://statistics.data.gov.uk/id/local-authority/00FC,Cap Economy Env And Housing,Cap Development,Hps-Disabled Fac. Grants,Cap Grants To O/Side Sources,Cap Grants To O/Side Sources,YJ101,3/6/2013,176351,"4,378.08",Capital,MEARS LTD,102433
North East Lincolnshire Council,http://statistics.data.gov.uk/id/local-authority/00FC,Cap Economy Env And Housing,Cap Development,Hps-Disabled Fac. Grants,Cap Grants To O/Side Sources,Cap Grants To O/Side Sources,YJ101,3/27/2013,181902,"4,532.99",Capital,MEARS LTD,102433
North East Lincolnshire Council,http://statistics.data.gov.uk/id/local-authority/00FC,Cap Economy Env And Housing,Cap Development,Hps-Disabled Fac. Grants,Cap Grants To O/Side Sources,Cap Grants To O/Side Sources,YJ101,3/20/2013,181915,"5,232.44",Capital,MEARS LTD,102433
North East Lincolnshire Council,http://statistics.data.gov.uk/id/local-authority/00FC,Cap Economy Env And Housing,Cap Development,Hps-Disabled Fac. Grants,Cap Grants To O/Side Sources,Cap Grants To O/Side Sources,YJ101,3/7/2013,180690,"5,269.00",Capital,E J PARMENTER,100924
North East Lincolnshire Council,http://statistics.data.gov.uk/id/local-authority/00FC,Cap Economy Env And Housing,Cap Development,Hps-Disabled Fac. Grants,Cap Grants To O/Side Sources,Cap Grants To O/Side Sources,YJ101,3/11/2013,177698,"5,450.00",Capital,E J PARMENTER,100924
North East Lincolnshire Council,http://statistics.data.gov.uk/id/local-authority/00FC,Cap Economy Env And Housing,Cap Development,Hps-Disabled Fac. Grants,Cap Grants To O/Side Sources,Cap Grants To O/Side Sources,YJ101,3/27/2013,182077,"5,531.00",Capital,LINCS PLUMBING & HEATING CO,102584
North East Lincolnshire Council,http://statistics.data.gov.uk/id/local-authority/00FC,Cap Economy Env And Housing,Cap Development,Hps-Disabled Fac. Grants,Cap Grants To O/Side Sources,Cap Grants To O/Side Sources,YJ101,3/4/2013,178512,"5,790.00",Capital,CLEVELAND JOINERY,102580
North East Lincolnshire Council,http://statistics.data.gov.uk/id/local-authority/00FC,Cap Economy Env And Housing,Cap Development,Hps-Disabled Fac. Grants,Cap Grants To O/Side Sources,Cap Grants To O/Side Sources,YJ101,3/27/2013,181914,"6,625.73",Capital,MEARS LTD,102433
North East Lincolnshire Council,http://statistics.data.gov.uk/id/local-authority/00FC,Cap Economy Env And Housing,Cap Development,Hps-Disabled Fac. Grants,Cap Grants To O/Side Sources,Cap Grants To O/Side Sources,YJ101,3/4/2013,180407,"8,871.00",Capital,M D BUILDING,103356
North East Lincolnshire Council,http://statistics.data.gov.uk/id/local-authority/00FC,Cap Economy Env And Housing,Cap Development,Hps-Disabled Fac. Grants,Cap Grants To O/Side Sources,Cap Grants To O/Side Sources,YJ101,3/7/2013,181956,674.80,Capital,STEVE BENNETT ARCHITECTURAL DESIGN,103819
North East Lincolnshire Council,http://statistics.data.gov.uk/id/local-authority/00FC,Cap Economy Env And Housing,Cap Development,Hps-Disabled Fac. Grants,Cap Grants To O/Side Sources,Cap Grants To O/Side Sources,YJ101,3/11/2013,181950,695.00,Capital,STEVE BENNETT ARCHITECTURAL DESIGN,103819
North East Lincolnshire Council,http://statistics.data.gov.uk/id/local-authority/00FC,Cap Economy Env And Housing,Cap Development,Hps-Disabled Fac. Grants,Cap Grants To O/Side Sources,Cap Grants To O/Side Sources,YJ101,3/7/2013,181955,819.80,Capital,STEVE BENNETT ARCHITECTURAL DESIGN,103819
North East Lincolnshire Council,http://statistics.data.gov.uk/id/local-authority/00FC,Cap Economy Env And Housing,Cap Development,Hps-Disabled Fac. Grants,Cap Grants To O/Side Sources,Cap Grants To O/Side Sources,YJ101,3/20/2013,184875,"1,604.80",Capital,STEVE BENNETT ARCHITECTURAL DESIGN,103819
North East Lincolnshire Council,http://statistics.data.gov.uk/id/local-authority/00FC,Cap Economy Env And Housing,Cap Development,Local Transport Plan,Cap Infrastr-Build Enh Wrk,Cap Infrastr-Build Enh Wrk,YC102,3/11/2013,182982,364.23,Capital,J MCCANN & CO LTD,100841
North East Lincolnshire Council,http://statistics.data.gov.uk/id/local-authority/00FC,Cap Economy Env And Housing,Cap Development,Local Transport Plan,Cap Infrastr-Build Enh Wrk,Cap Infrastr-Build Enh Wrk,YC102,3/25/2013,186244,944.25,Capital,J MCCANN & CO LTD,100841
North East Lincolnshire Council,http://statistics.data.gov.uk/id/local-authority/00FC,Cap Economy Env And Housing,Cap Development,Local Transport Plan,Cap Infrastr-Build Enh Wrk,Cap Infrastr-Build Enh Wrk,YC102,3/27/2013,185145,"1,066.05",Capital,GLASDON UK LTD,100531
North East Lincolnshire Council,http://statistics.data.gov.uk/id/local-authority/00FC,Cap Economy Env And Housing,Cap Development,Local Transport Plan,Cap Infrastr-Build Enh Wrk,Cap Infrastr-Build Enh Wrk,YC102,3/25/2013,184886,"3,685.00",Capital,J MCCANN & CO LTD,100841
North East Lincolnshire Council,http://statistics.data.gov.uk/id/local-authority/00FC,Cap Economy Env And Housing,Cap Development,Local Transport Plan,Cap Infrastr-Build Enh Wrk,Cap Infrastr-Build Enh Wrk,YC102,3/25/2013,183237,"4,000.00",Capital,J MCCANN & CO LTD,100841
North East Lincolnshire Council,http://statistics.data.gov.uk/id/local-authority/00FC,Cap Economy Env And Housing,Cap Development,Local Transport Plan,Cap Infrastr-Build Enh Wrk,Cap Infrastr-Build Enh Wrk,YC102,3/11/2013,182473,"17,930.18",Capital,C E SMITH & SONS,104444
North East Lincolnshire Council,http://statistics.data.gov.uk/id/local-authority/00FC,Cap Economy Env And Housing,Cap Development,Local Transport Plan,Cap Infrastr-Build Enh Wrk,Cap Infrastr-Build Enh Wrk,YC102,3/20/2013,185258,"52,841.97",Capital,PELL AND BALDWIN FABRICATIONS LTD,118853
North East Lincolnshire Council,http://statistics.data.gov.uk/id/local-authority/00FC,Cap Economy Env And Housing,Cap Development,Local Transport Plan,Cap Infrastr-Purchase,Cap Infrastr-Purchase,YC101,3/18/2013,177578,"7,079.20",Capital,CA TRAFFIC LTD,105390
North East Lincolnshire Council,http://statistics.data.gov.uk/id/local-authority/00FC,Cap Economy Env And Housing,Cap Development,Local Transport Plan,Cap Infrastr-Build Enh Wrk,Cap Infrastr-Build Enh Wrk,YC102,3/11/2013,182982,"2,629.12",Capital,J MCCANN & CO LTD,100841
North East Lincolnshire Council,http://statistics.data.gov.uk/id/local-authority/00FC,Cap Economy Env And Housing,Cap Development,Local Transport Plan,Cap Infrastr-Build Enh Wrk,Cap Infrastr-Build Enh Wrk,YC102,3/25/2013,186244,"3,046.18",Capital,J MCCANN & CO LTD,100841
North East Lincolnshire Council,http://statistics.data.gov.uk/id/local-authority/00FC,Cap Economy Env And Housing,Cap Development,Local Transport Plan,Cap Infrastr-Build Enh Wrk,Cap Infrastr-Build Enh Wrk,YC102,3/11/2013,182982,801.73,Capital,J MCCANN & CO LTD,100841
North East Lincolnshire Council,http://statistics.data.gov.uk/id/local-authority/00FC,Cap Economy Env And Housing,Cap Development,Local Transport Plan,Cap Infrastr-Build Enh Wrk,Cap Infrastr-Build Enh Wrk,YC102,3/27/2013,186118,"2,557.16",Capital,NORTHERN POWERGRID (YORKSHIRE) PLC,108328
North East Lincolnshire Council,http://statistics.data.gov.uk/id/local-authority/00FC,Cap Economy Env And Housing,Cap Development,Local Transport Plan,Cap Infrastr-Build Enh Wrk,Cap Infrastr-Build Enh Wrk,YC102,3/25/2013,186244,"3,630.67",Capital,J MCCANN & CO LTD,100841
North East Lincolnshire Council,http://statistics.data.gov.uk/id/local-authority/00FC,Cap Economy Env And Housing,Cap Development,Local Transport Plan,Cap Infrastr-Build Enh Wrk,Cap Infrastr-Build Enh Wrk,YC102,3/27/2013,186121,"4,089.11",Capital,NORTHERN POWERGRID (YORKSHIRE) PLC,108328
North East Lincolnshire Council,http://statistics.data.gov.uk/id/local-authority/00FC,Cap Economy Env And Housing,Cap Development,Local Transport Plan,Cap Infrastr-Build Enh Wrk,Cap Infrastr-Build Enh Wrk,YC102,3/11/2013,182982,"18,870.03",Capital,J MCCANN & CO LTD,100841
North East Lincolnshire Council,http://statistics.data.gov.uk/id/local-authority/00FC,Cap Economy Env And Housing,Cap Development,Local Transport Plan,Cap Infrastr-Build Enh Wrk,Cap Infrastr-Build Enh Wrk,YC102,3/25/2013,186244,"109,458.03",Capital,J MCCANN & CO LTD,100841
North East Lincolnshire Council,http://statistics.data.gov.uk/id/local-authority/00FC,Cap Economy Env And Housing,Cap Development,Local Transport Plan,Cap Infrastr-Build Enh Wrk,Cap Infrastr-Build Enh Wrk,YC102,3/11/2013,182205,"1,412.19",Capital,SPECIALIST SURFACING LIMITED,100579
North East Lincolnshire Council,http://statistics.data.gov.uk/id/local-authority/00FC,Cap Economy Env And Housing,Cap Development,Local Transport Plan,Cap Infrastr-Build Enh Wrk,Cap Infrastr-Build Enh Wrk,YC102,3/11/2013,182203,"4,732.49",Capital,SPECIALIST SURFACING LIMITED,100579
North East Lincolnshire Council,http://statistics.data.gov.uk/id/local-authority/00FC,Cap Economy Env And Housing,Cap Development,Local Transport Plan,Cap Infrastr-Build Enh Wrk,Cap Infrastr-Build Enh Wrk,YC102,3/7/2013,182204,"1,490.46",Capital,SPECIALIST SURFACING LIMITED,100579
North East Lincolnshire Council,http://statistics.data.gov.uk/id/local-authority/00FC,Cap Economy Env And Housing,Cap Development,Freeman Street Regeneration,Cap Land/Build-Build Enh Wrk,Cap Land/Build-Build Enh Wrk,YA102,3/28/2013,155622,"1,175.00",Capital,CLUGSTON SURVEY SERVICES,105668
North East Lincolnshire Council,http://statistics.data.gov.uk/id/local-authority/00FC,Cap Economy Env And Housing,Cap Development,Freeman Street Regeneration,Cap Grants To O/Side Sources,Cap Grants To O/Side Sources,YJ101,3/11/2013,182975,REDACTED COMMERCIALLY SENSITIVE,Capital,BALFOUR BEATTY LIVING PLACES LTD,115102
North East Lincolnshire Council,http://statistics.data.gov.uk/id/local-authority/00FC,Cap Economy Env And Housing,Cap Development,East Marsh Renewal,Cap Grants To O/Side Sources,Cap Grants To O/Side Sources,YJ101,3/20/2013,184847,312.50,Capital,ARCUS CONSULTING LLP,112099
North East Lincolnshire Council,http://statistics.data.gov.uk/id/local-authority/00FC,Cap Economy Env And Housing,Cap Development,East Marsh Renewal,Cap Land/Build-Purchase,Cap Land/Build-Purchase,YA101,3/20/2013,184846,412.50,Capital,ARCUS CONSULTING LLP,112099
North East Lincolnshire Council,http://statistics.data.gov.uk/id/local-authority/00FC,Cap Economy Env And Housing,Cap Development,East Marsh Renewal,Cap Land/Build-Purchase,Cap Land/Build-Purchase,YA101,3/20/2013,184845,"5,000.00",Capital,ARCUS CONSULTING LLP,112099
North East Lincolnshire Council,http://statistics.data.gov.uk/id/local-authority/00FC,Cap Economy Env And Housing,Cap Development,Housing Assistance,Cap Grants To O/Side Sources,Cap Grants To O/Side Sources,YJ101,3/18/2013,183822,752.00,Capital,D THORPE PLUMBING & HEATING SERVICES,118800
North East Lincolnshire Council,http://statistics.data.gov.uk/id/local-authority/00FC,Cap Economy Env And Housing,Cap Development,Housing Assistance,Cap Grants To O/Side Sources,Cap Grants To O/Side Sources,YJ101,3/11/2013,181942,"1,797.04",Capital,BRIAN KING HEATING & PLUMBING LTD,112869
North East Lincolnshire Council,http://statistics.data.gov.uk/id/local-authority/00FC,Cap Economy Env And Housing,Cap Development,Housing Assistance,Cap Grants To O/Side Sources,Cap Grants To O/Side Sources,YJ101,3/11/2013,181954,"2,038.00",Capital,D THORPE PLUMBING & HEATING SERVICES,118800
North East Lincolnshire Council,http://statistics.data.gov.uk/id/local-authority/00FC,Cap Economy Env And Housing,Cap Development,Housing Assistance,Cap Grants To O/Side Sources,Cap Grants To O/Side Sources,YJ101,3/11/2013,181943,"2,323.70",Capital,BC ELECTRIC LTD,108240
North East Lincolnshire Council,http://statistics.data.gov.uk/id/local-authority/00FC,Cap Economy Env And Housing,Cap Development,Housing Assistance,Cap Grants To O/Side Sources,Cap Grants To O/Side Sources,YJ101,3/6/2013,180436,"3,345.00",Capital,DEAN WILLETT & SONS,101982
North East Lincolnshire Council,http://statistics.data.gov.uk/id/local-authority/00FC,Cap Economy Env And Housing,Cap Development,Housing Assistance,Cap Grants To O/Side Sources,Cap Grants To O/Side Sources,YJ101,3/18/2013,182079,"3,913.29",Capital,M J QUICKFALL,102499
North East Lincolnshire Council,http://statistics.data.gov.uk/id/local-authority/00FC,Cap Economy Env And Housing,Cap Development,Housing Assistance,Cap Grants To O/Side Sources,Cap Grants To O/Side Sources,YJ101,3/27/2013,185192,"1,095.45",Capital,CARILLION ENERGY SERVICES LTD,109558
North East Lincolnshire Council,http://statistics.data.gov.uk/id/local-authority/00FC,Cap Economy Env And Housing,Cap Development,Housing Assistance,Cap Grants To O/Side Sources,Cap Grants To O/Side Sources,YJ101,3/14/2013,183706,"4,500.00",Capital,PETERBOROUGH CITY COUNCIL,101213
North East Lincolnshire Council,http://statistics.data.gov.uk/id/local-authority/00FC,Cap Economy Env And Housing,Cap Development,Housing Assistance,Cap Grants To O/Side Sources,Cap Grants To O/Side Sources,YJ101,3/7/2013,182321,"4,142.00",Capital,SHEFFIELD CITY COUNCIL,119344
North East Lincolnshire Council,http://statistics.data.gov.uk/id/local-authority/00FC,Cap Economy Env And Housing,Cap Development,Housing Assistance,Cap Grants To O/Side Sources,Cap Grants To O/Side Sources,YJ101,3/7/2013,182322,"6,650.00",Capital,SHEFFIELD CITY COUNCIL,119344
North East Lincolnshire Council,http://statistics.data.gov.uk/id/local-authority/00FC,Cap Economy Env And Housing,Cap Development,Housing Assistance,Cap Grants To O/Side Sources,Cap Grants To O/Side Sources,YJ101,3/20/2013,184533,"15,342.68",Capital,SHEFFIELD CITY COUNCIL,119344
North East Lincolnshire Council,http://statistics.data.gov.uk/id/local-authority/00FC,Cap Economy Env And Housing,Cap Development,Housing Assistance,Cap Grants To O/Side Sources,Cap Grants To O/Side Sources,YJ101,3/20/2013,184524,"15,535.93",Capital,SHEFFIELD CITY COUNCIL,119344
North East Lincolnshire Council,http://statistics.data.gov.uk/id/local-authority/00FC,Cap Economy Env And Housing,Cap Development,Housing Assistance,Cap Grants To O/Side Sources,Cap Grants To O/Side Sources,YJ101,3/7/2013,182323,"17,036.50",Capital,SHEFFIELD CITY COUNCIL,119344
North East Lincolnshire Council,http://statistics.data.gov.uk/id/local-authority/00FC,Cap Economy Env And Housing,Cap Development,Housing Assistance,Cap Grants To O/Side Sources,Cap Grants To O/Side Sources,YJ101,3/6/2013,181974,"17,650.00",Capital,SHEFFIELD CITY COUNCIL,119344
North East Lincolnshire Council,http://statistics.data.gov.uk/id/local-authority/00FC,Cap Economy Env And Housing,Cap Development,Housing Assistance,Cap Grants To O/Side Sources,Cap Grants To O/Side Sources,YJ101,3/6/2013,181973,"18,283.38",Capital,SHEFFIELD CITY COUNCIL,119344
North East Lincolnshire Council,http://statistics.data.gov.uk/id/local-authority/00FC,Cap Economy Env And Housing,Cap Development,Housing Assistance,Cap Grants To O/Side Sources,Cap Grants To O/Side Sources,YJ101,3/20/2013,184538,"25,429.20",Capital,SHEFFIELD CITY COUNCIL,119344
North East Lincolnshire Council,http://statistics.data.gov.uk/id/local-authority/00FC,Cap Economy Env And Housing,Cap Development,Housing Assistance,Cap Grants To O/Side Sources,Cap Grants To O/Side Sources,YJ101,3/6/2013,182004,"26,573.00",Capital,SHEFFIELD CITY COUNCIL,119344
North East Lincolnshire Council,http://statistics.data.gov.uk/id/local-authority/00FC,Cap Economy Env And Housing,Cap Development,Off Road Parking,Cap Infrastr-Build Enh Wrk,Cap Infrastr-Build Enh Wrk,YC102,3/11/2013,182208,"1,655.14",Capital,SPECIALIST SURFACING LIMITED,100579
North East Lincolnshire Council,http://statistics.data.gov.uk/id/local-authority/00FC,Cap Economy Env And Housing,Cap Development,Derelict Land & Comm Prop,Cap Invest Prop-Prof Fees,Cap Invest Prop-Prof Fees,YE103,3/11/2013,182696,"36,964.68",Capital,SHORELINE HOUSING PARTNERSHIP LTD,100139
North East Lincolnshire Council,http://statistics.data.gov.uk/id/local-authority/00FC,Cap Economy Env And Housing,Cap Development,A18 - A180 Link,Cap Infrastr-Prof Fees,Cap Infrastr-Prof Fees,YC103,3/11/2013,182982,"1,959.40",Capital,J MCCANN & CO LTD,100841
North East Lincolnshire Council,http://statistics.data.gov.uk/id/local-authority/00FC,Cap Governance And Trans,Cap Transformation Project,Transformation Programme,Cap Intangible Assets,Cap Intangible Assets,YH101,3/25/2013,185792,REDACTED COMMERCIALLY SENSITIVE,Capital,CEDAR OPEN ACCOUNTS,101614
North East Lincolnshire Council,http://statistics.data.gov.uk/id/local-authority/00FC,Cap Governance And Trans,Cap Transformation Project,Transformation Programme,Cap Intangible Assets,Cap Intangible Assets,YH101,3/6/2013,181771,900.00,Capital,TIMOTHY JAMES CONSULTING LTD,111085
North East Lincolnshire Council,http://statistics.data.gov.uk/id/local-authority/00FC,Cap Governance And Trans,Cap Transformation Project,Transformation Programme,Cap Intangible Assets,Cap Intangible Assets,YH101,3/14/2013,183587,REDACTED COMMERCIALLY SENSITIVE,Capital,CEDAR OPEN ACCOUNTS,101614
North East Lincolnshire Council,http://statistics.data.gov.uk/id/local-authority/00FC,Cap Governance And Trans,Cap Transformation Project,Transformation Programme,Cap Intangible Assets,Cap Intangible Assets,YH101,3/6/2013,181773,REDACTED COMMERCIALLY SENSITIVE,Capital,CEDAR OPEN ACCOUNTS,101614
North East Lincolnshire Council,http://statistics.data.gov.uk/id/local-authority/00FC,Cap Governance And Trans,Cap Transformation Project,Transformation Programme,Cap Intangible Assets,Cap Intangible Assets,YH101,3/4/2013,181413,REDACTED COMMERCIALLY SENSITIVE,Capital,CEDAR OPEN ACCOUNTS,101614
North East Lincolnshire Council,http://statistics.data.gov.uk/id/local-authority/00FC,Cap Governance And Trans,Cap Transformation Project,Transformation Programme,Cap Intangible Assets,Cap Intangible Assets,YH101,3/20/2013,185166,"1,800.00",Capital,TIMOTHY JAMES CONSULTING LTD,111085
North East Lincolnshire Council,http://statistics.data.gov.uk/id/local-authority/00FC,Cap Governance And Trans,Cap Transformation Project,Transformation Programme,Cap Intangible Assets,Cap Intangible Assets,YH101,3/18/2013,183588,REDACTED COMMERCIALLY SENSITIVE,Capital,CEDAR OPEN ACCOUNTS,101614
North East Lincolnshire Council,http://statistics.data.gov.uk/id/local-authority/00FC,Cap Governance And Trans,Cap Transformation Project,Transformation Programme,Cap Intangible Assets,Cap Intangible Assets,YH101,3/4/2013,180431,"2,250.00",Capital,TIMOTHY JAMES CONSULTING LTD,111085
North East Lincolnshire Council,http://statistics.data.gov.uk/id/local-authority/00FC,Cap Governance And Trans,Cap Transformation Project,Transformation Programme,Cap Intangible Assets,Cap Intangible Assets,YH101,3/4/2013,180432,"2,250.00",Capital,TIMOTHY JAMES CONSULTING LTD,111085
North East Lincolnshire Council,http://statistics.data.gov.uk/id/local-authority/00FC,Cap Governance And Trans,Cap Transformation Project,Transformation Programme,Cap Intangible Assets,Cap Intangible Assets,YH101,3/7/2013,181941,"2,250.00",Capital,TIMOTHY JAMES CONSULTING LTD,111085
North East Lincolnshire Council,http://statistics.data.gov.uk/id/local-authority/00FC,Cap Governance And Trans,Cap Transformation Project,Transformation Programme,Cap Intangible Assets,Cap Intangible Assets,YH101,3/13/2013,183606,REDACTED COMMERCIALLY SENSITIVE,Capital,CEDAR OPEN ACCOUNTS,101614
North East Lincolnshire Council,http://statistics.data.gov.uk/id/local-authority/00FC,Cap Governance And Trans,Cap Transformation Project,Transformation Programme,Cap Intangible Assets,Cap Intangible Assets,YH101,3/14/2013,183570,REDACTED COMMERCIALLY SENSITIVE,Capital,CEDAR OPEN ACCOUNTS,101614
North East Lincolnshire Council,http://statistics.data.gov.uk/id/local-authority/00FC,Chief Executive,Chief Executive,Chief Exec & Support,Car Allowances,Travel - Employees,JF101,3/27/2013,184483,-142.29,Revenue,NYS CORPORATE,102444
North East Lincolnshire Council,http://statistics.data.gov.uk/id/local-authority/00FC,Chief Executive,Chief Executive,Chief Exec & Support,Car Allowances,Travel - Employees,JF101,3/11/2013,182507,-72.06,Revenue,NYS CORPORATE,102444
North East Lincolnshire Council,http://statistics.data.gov.uk/id/local-authority/00FC,Chief Executive,Chief Executive,Chief Exec & Support,Car Allowances,Travel - Employees,JF101,3/11/2013,182648,259.08,Revenue,NYS CORPORATE,102444
North East Lincolnshire Council,http://statistics.data.gov.uk/id/local-authority/00FC,Chief Executive,Chief Executive,Chief Exec & Support,Contributions To Provisions,Contributions - Third Sector,LK102,3/14/2013,184049,250.00,Revenue,CANON PETER HALL CE PRIMARY SCHOOL,103406
North East Lincolnshire Council,http://statistics.data.gov.uk/id/local-authority/00FC,Chief Executive,Chief Executive,Chief Exec & Support,Contributions To Provisions,Contributions - Communities,LK101,3/21/2013,183291,259.00,Revenue,FURNITURE @ WORK,102760
North East Lincolnshire Council,http://statistics.data.gov.uk/id/local-authority/00FC,Chief Executive,Chief Executive,Chief Exec & Support,Contributions To Provisions,Contributions - Communities,LK101,3/18/2013,184084,260.00,Revenue,15TH GRIMSBY GUIDES,119117
North East Lincolnshire Council,http://statistics.data.gov.uk/id/local-authority/00FC,Chief Executive,Chief Executive,Chief Exec & Support,Contributions To Provisions,Contributions - Communities,LK101,3/21/2013,185044,262.00,Revenue,FURNITURE @ WORK,102760
North East Lincolnshire Council,http://statistics.data.gov.uk/id/local-authority/00FC,Chief Executive,Chief Executive,Chief Exec & Support,Contributions To Provisions,Contributions - Communities,LK101,3/25/2013,186198,300.00,Revenue,NAViGO HEALTH AND SOCIAL CARE CIC,104262
North East Lincolnshire Council,http://statistics.data.gov.uk/id/local-authority/00FC,Chief Executive,Chief Executive,Chief Exec & Support,Contributions To Provisions,Contributions - Third Sector,LK102,3/27/2013,186995,300.00,Revenue,TUKES,119682
North East Lincolnshire Council,http://statistics.data.gov.uk/id/local-authority/00FC,Chief Executive,Chief Executive,Chief Exec & Support,Contributions To Provisions,Contributions - Third Sector,LK102,3/18/2013,184104,300.00,Revenue,NUNSTHORPE & BRADLEY PARK COMMUNITY ASSOCIATI,109364
North East Lincolnshire Council,http://statistics.data.gov.uk/id/local-authority/00FC,Chief Executive,Chief Executive,Chief Exec & Support,Contributions To Provisions,Contributions - Third Sector,LK102,3/14/2013,183970,300.00,Revenue,NUNSTHORPE & BRADLEY PARK COMMUNITY ASSOCIATI,109364
North East Lincolnshire Council,http://statistics.data.gov.uk/id/local-authority/00FC,Chief Executive,Chief Executive,Chief Exec & Support,Contributions To Provisions,Contributions - Third Sector,LK102,3/25/2013,186200,350.00,Revenue,FAVOUR FOUNDATION LTD - YOUR PLACE,109076
North East Lincolnshire Council,http://statistics.data.gov.uk/id/local-authority/00FC,Chief Executive,Chief Executive,Chief Exec & Support,Contributions To Provisions,Contributions - Communities,LK101,3/14/2013,184047,360.00,Revenue,JOHN WHITGIFT ACADEMY,106898
North East Lincolnshire Council,http://statistics.data.gov.uk/id/local-authority/00FC,Chief Executive,Chief Executive,Chief Exec & Support,Contributions To Provisions,Contributions - Third Sector,LK102,3/14/2013,184121,400.00,Revenue,THE CULTURE HOUSE,102644
North East Lincolnshire Council,http://statistics.data.gov.uk/id/local-authority/00FC,Chief Executive,Chief Executive,Chief Exec & Support,Contributions To Provisions,Contributions - Third Sector,LK102,3/14/2013,184124,440.00,Revenue,GRIMSBY TOWN CRICKET CLUB,119527
North East Lincolnshire Council,http://statistics.data.gov.uk/id/local-authority/00FC,Chief Executive,Chief Executive,Chief Exec & Support,Contributions To Provisions,Contributions - Third Sector,LK102,3/6/2013,181984,449.00,Revenue,CLEE DYNAMOS,119345
North East Lincolnshire Council,http://statistics.data.gov.uk/id/local-authority/00FC,Chief Executive,Chief Executive,Chief Exec & Support,Contributions To Provisions,Contributions - Communities,LK101,3/18/2013,183801,489.54,Revenue,CANNONS UK,119200
North East Lincolnshire Council,http://statistics.data.gov.uk/id/local-authority/00FC,Chief Executive,Chief Executive,Chief Exec & Support,Contributions To Provisions,Contributions - Third Sector,LK102,3/25/2013,186162,500.00,Revenue,HARBOUR PLACE DAY CENTRE,106725
North East Lincolnshire Council,http://statistics.data.gov.uk/id/local-authority/00FC,Chief Executive,Chief Executive,Chief Exec & Support,Contributions To Provisions,Contributions - Third Sector,LK102,3/27/2013,186199,500.00,Revenue,SHALOM YOUTH / SPACE PROJECT,112701
North East Lincolnshire Council,http://statistics.data.gov.uk/id/local-authority/00FC,Chief Executive,Chief Executive,Chief Exec & Support,Contributions To Provisions,Contributions - Third Sector,LK102,3/6/2013,181982,500.00,Revenue,ST PETERS CHURCH,108092
North East Lincolnshire Council,http://statistics.data.gov.uk/id/local-authority/00FC,Chief Executive,Chief Executive,Chief Exec & Support,Contributions To Provisions,Contributions - Third Sector,LK102,3/18/2013,184075,500.00,Revenue,IMMINGHAM MUSEUM,101101
North East Lincolnshire Council,http://statistics.data.gov.uk/id/local-authority/00FC,Chief Executive,Chief Executive,Chief Exec & Support,Contributions To Provisions,Contributions - Third Sector,LK102,3/25/2013,186206,500.00,Revenue,GRIMSBY TWIST & FLIP (GYMNASTICS GROUP),119685
North East Lincolnshire Council,http://statistics.data.gov.uk/id/local-authority/00FC,Chief Executive,Chief Executive,Chief Exec & Support,Contributions To Provisions,Contributions - Third Sector,LK102,3/18/2013,184306,500.00,Revenue,CARE LTD,100314
North East Lincolnshire Council,http://statistics.data.gov.uk/id/local-authority/00FC,Chief Executive,Chief Executive,Chief Exec & Support,Contributions To Provisions,Contributions - Third Sector,LK102,3/28/2013,186987,500.00,Revenue,CLEELINCS NEIGHBOURHOOD FORUM,109043
North East Lincolnshire Council,http://statistics.data.gov.uk/id/local-authority/00FC,Chief Executive,Chief Executive,Chief Exec & Support,Contributions To Provisions,Contributions - Third Sector,LK102,3/4/2013,180917,500.00,Revenue,WALKWELL - NUNSTHORPE GROUP,119210
North East Lincolnshire Council,http://statistics.data.gov.uk/id/local-authority/00FC,Chief Executive,Chief Executive,Chief Exec & Support,Contributions To Provisions,Contributions - Third Sector,LK102,3/18/2013,184024,500.00,Revenue,HEALING LEGION CRICKET CLUB,119237
North East Lincolnshire Council,http://statistics.data.gov.uk/id/local-authority/00FC,Chief Executive,Chief Executive,Chief Exec & Support,Contributions To Provisions,Contributions - Third Sector,LK102,3/27/2013,186990,564.00,Revenue,CARE LTD,114521
North East Lincolnshire Council,http://statistics.data.gov.uk/id/local-authority/00FC,Chief Executive,Chief Executive,Chief Exec & Support,Contributions To Provisions,Contributions - Third Sector,LK102,3/14/2013,183959,594.00,Revenue,SECOND AVENUE RESOURCE CENTRE LIMITED,100648
North East Lincolnshire Council,http://statistics.data.gov.uk/id/local-authority/00FC,Chief Executive,Chief Executive,Chief Exec & Support,Contributions To Provisions,Contributions - Communities,LK101,3/28/2013,186992,600.00,Revenue,FRESHNEY FORWARD,119346
North East Lincolnshire Council,http://statistics.data.gov.uk/id/local-authority/00FC,Chief Executive,Chief Executive,Chief Exec & Support,Contributions To Provisions,Contributions - Third Sector,LK102,3/25/2013,186213,600.00,Revenue,CREATIVE START ARTS IN HEALTH,119504
North East Lincolnshire Council,http://statistics.data.gov.uk/id/local-authority/00FC,Chief Executive,Chief Executive,Chief Exec & Support,Contributions To Provisions,Contributions - Third Sector,LK102,3/25/2013,186201,600.00,Revenue,WOODLANDS PRIMARY SCHOOL,119683
North East Lincolnshire Council,http://statistics.data.gov.uk/id/local-authority/00FC,Chief Executive,Chief Executive,Chief Exec & Support,Contributions To Provisions,Contributions - Third Sector,LK102,3/7/2013,182048,655.00,Revenue,SUSSEX ST NHWG,108323
North East Lincolnshire Council,http://statistics.data.gov.uk/id/local-authority/00FC,Chief Executive,Chief Executive,Chief Exec & Support,Contributions To Provisions,Contributions - Third Sector,LK102,3/28/2013,186996,700.00,Revenue,FRESHNEY COMMUNITY SWIMMING CLUB,112266
North East Lincolnshire Council,http://statistics.data.gov.uk/id/local-authority/00FC,Chief Executive,Chief Executive,Chief Exec & Support,Contributions To Provisions,Contributions - Third Sector,LK102,3/6/2013,181983,700.00,Revenue,CLEETHORPES IN BLOOM,107522
North East Lincolnshire Council,http://statistics.data.gov.uk/id/local-authority/00FC,Chief Executive,Chief Executive,Chief Exec & Support,Contributions To Provisions,Contributions - Third Sector,LK102,3/27/2013,186986,800.00,Revenue,EAST MARSH INVOLVE,119715
North East Lincolnshire Council,http://statistics.data.gov.uk/id/local-authority/00FC,Chief Executive,Chief Executive,Chief Exec & Support,Contributions To Provisions,Contributions - Third Sector,LK102,3/7/2013,181989,800.00,Revenue,RACHEL SMITH,119282
North East Lincolnshire Council,http://statistics.data.gov.uk/id/local-authority/00FC,Chief Executive,Chief Executive,Chief Exec & Support,Contributions To Provisions,Contributions - Third Sector,LK102,3/27/2013,186989,995.00,Revenue,FRIENDS OF FEDUP,103355
North East Lincolnshire Council,http://statistics.data.gov.uk/id/local-authority/00FC,Chief Executive,Chief Executive,Chief Exec & Support,Contributions To Provisions,Contributions - Third Sector,LK102,3/18/2013,184076,"1,000.00",Revenue,BURSAR ACADEMY,111341
North East Lincolnshire Council,http://statistics.data.gov.uk/id/local-authority/00FC,Chief Executive,Chief Executive,Chief Exec & Support,Contributions To Provisions,Contributions - Third Sector,LK102,3/6/2013,181991,"1,000.00",Revenue,JOHN BARKERS SOLICITORS,119347
North East Lincolnshire Council,http://statistics.data.gov.uk/id/local-authority/00FC,Chief Executive,Chief Executive,Chief Exec & Support,Contributions To Provisions,Contributions - Third Sector,LK102,3/20/2013,184337,"1,000.00",Revenue,GET HOOKED ON POSITIVE ACTIVITIES LTD,107654
North East Lincolnshire Council,http://statistics.data.gov.uk/id/local-authority/00FC,Chief Executive,Chief Executive,Chief Exec & Support,Contributions To Provisions,Contributions - Third Sector,LK102,3/7/2013,182001,"1,000.00",Revenue,GRIMSBY & DISTRICT LIVE AT HOME SCHEME,102091
North East Lincolnshire Council,http://statistics.data.gov.uk/id/local-authority/00FC,Chief Executive,Chief Executive,Chief Exec & Support,Contributions To Provisions,Contributions - Third Sector,LK102,3/27/2013,186270,"1,000.00",Revenue,CAMBRIDGE PARK SCHOOL,100733
North East Lincolnshire Council,http://statistics.data.gov.uk/id/local-authority/00FC,Chief Executive,Chief Executive,Chief Exec & Support,Contributions To Provisions,Contributions - Third Sector,LK102,3/18/2013,184304,"1,200.00",Revenue,ST JOSEPH'S PRIMARY SCHOOL,119565
North East Lincolnshire Council,http://statistics.data.gov.uk/id/local-authority/00FC,Chief Executive,Chief Executive,Chief Exec & Support,Contributions To Provisions,Contributions - Third Sector,LK102,3/25/2013,186161,"1,200.00",Revenue,HARBOUR PLACE DAY CENTRE,106725
North East Lincolnshire Council,http://statistics.data.gov.uk/id/local-authority/00FC,Chief Executive,Chief Executive,Chief Exec & Support,Contributions To Provisions,Contributions - Third Sector,LK102,3/14/2013,183963,"1,200.00",Revenue,NUNSTHORPE & BRADLEY PARK COMMUNITY ASSOCIATI,109364
North East Lincolnshire Council,http://statistics.data.gov.uk/id/local-authority/00FC,Chief Executive,Chief Executive,Chief Exec & Support,Contributions To Provisions,Contributions - Third Sector,LK102,3/6/2013,181985,"1,500.00",Revenue,THE ANNIE CHAPPLE CENTRE LTD,107714
North East Lincolnshire Council,http://statistics.data.gov.uk/id/local-authority/00FC,Chief Executive,Chief Executive,Chief Exec & Support,Contributions To Provisions,Contributions - Third Sector,LK102,3/27/2013,186204,"1,500.00",Revenue,THE FAMILY AND SUPPORT CENTRE,119684
North East Lincolnshire Council,http://statistics.data.gov.uk/id/local-authority/00FC,Chief Executive,Chief Executive,Chief Exec & Support,Contributions To Provisions,Contributions - Third Sector,LK102,3/6/2013,181987,"1,546.00",Revenue,CLEETHORPES IN BLOOM,107522
North East Lincolnshire Council,http://statistics.data.gov.uk/id/local-authority/00FC,Chief Executive,Chief Executive,Chief Exec & Support,Contributions To Provisions,Contributions - Third Sector,LK102,3/7/2013,181988,"2,000.00",Revenue,GET HOOKED ON POSITIVE ACTIVITIES LTD,107654
North East Lincolnshire Council,http://statistics.data.gov.uk/id/local-authority/00FC,Chief Executive,Chief Executive,Chief Exec & Support,Contributions To Provisions,Contributions - Third Sector,LK102,3/18/2013,183611,"2,000.00",Revenue,HEALING PARISH COUNCIL,100658
North East Lincolnshire Council,http://statistics.data.gov.uk/id/local-authority/00FC,Chief Executive,Chief Executive,Chief Exec & Support,Contributions To Provisions,Contributions - Third Sector,LK102,3/18/2013,184077,"2,000.00",Revenue,FRIENDS OF FEDUP,103355
North East Lincolnshire Council,http://statistics.data.gov.uk/id/local-authority/00FC,Chief Executive,Chief Executive,Chief Exec & Support,Contributions To Provisions,Contributions - Third Sector,LK102,3/25/2013,186221,"2,200.00",Revenue,GET HOOKED ON POSITIVE ACTIVITIES,111758
North East Lincolnshire Council,http://statistics.data.gov.uk/id/local-authority/00FC,Chief Executive,Chief Executive,Chief Exec & Support,Contributions To Provisions,Contributions - Third Sector,LK102,3/27/2013,186988,"2,480.86",Revenue,EAST MARSH INVOLVE,119715
North East Lincolnshire Council,http://statistics.data.gov.uk/id/local-authority/00FC,Chief Executive,Chief Executive,Chief Exec & Support,Contributions To Provisions,Contributions - Third Sector,LK102,3/6/2013,181986,"2,500.00",Revenue,FRIENDS OF HAVERSTOE PARK,109185
North East Lincolnshire Council,http://statistics.data.gov.uk/id/local-authority/00FC,Chief Executive,Chief Executive,Chief Exec & Support,Contributions To Provisions,Contributions - Third Sector,LK102,3/11/2013,182046,"3,000.00",Revenue,LINCOLNSHIRE INTEGRATED VOLUNTARY EMERGENCY,119281
North East Lincolnshire Council,http://statistics.data.gov.uk/id/local-authority/00FC,Chief Executive,Chief Executive,Chief Exec & Support,Contributions To Provisions,Contributions - Third Sector,LK102,3/27/2013,186193,"3,000.00",Revenue,TUKES,119682
North East Lincolnshire Council,http://statistics.data.gov.uk/id/local-authority/00FC,Chief Executive,Chief Executive,Chief Exec & Support,Contributions To Provisions,Contributions - Third Sector,LK102,3/14/2013,184034,"3,000.00",Revenue,LACEBY PARISH COUNCIL,100657
North East Lincolnshire Council,http://statistics.data.gov.uk/id/local-authority/00FC,Chief Executive,Chief Executive,Chief Exec & Support,Contributions To Provisions,Contributions - Third Sector,LK102,3/25/2013,186314,"5,009.00",Revenue,WALTHAM WINDMILL TRUST,119456
North East Lincolnshire Council,http://statistics.data.gov.uk/id/local-authority/00FC,Chief Executive,Chief Executive,Chief Exec & Support,Contributions To Provisions,Contributions - Third Sector,LK102,3/7/2013,181990,"7,317.00",Revenue,HAINTON HENEAGE & PARK,109368
North East Lincolnshire Council,http://statistics.data.gov.uk/id/local-authority/00FC,Other Corporate Budgets,Other Corporate Budgets,Corporate Budgets - Other,Communications And Computing,Computer H/Ware - Purchases,LF105,3/21/2013,185151,454.71,Revenue,SPECIALIST COMPUTER CENTRES PLC,110715
North East Lincolnshire Council,http://statistics.data.gov.uk/id/local-authority/00FC,People And Communities,Childrens Hlth & Family Supp,Integrated Youth Services,Miscellaneous Expenses,Activities - Service Users,LL114,3/7/2013,182556,"11,000.00",Revenue,GET HOOKED ON POSITIVE ACTIVITIES,111758
North East Lincolnshire Council,http://statistics.data.gov.uk/id/local-authority/00FC,People And Communities,Childrens Hlth & Family Supp,Integrated Youth Services,Miscellaneous Expenses,Activities - Service Users,LL114,3/18/2013,183609,REDACTED COMMERCIALLY SENSITIVE,Revenue,MILLMAN COACHES,100700
North East Lincolnshire Council,http://statistics.data.gov.uk/id/local-authority/00FC,People And Communities,Childrens Hlth & Family Supp,Integrated Youth Services,Miscellaneous Expenses,Activities - Service Users,LL114,3/7/2013,182194,"1,200.00",Revenue,MR S J FLEET,107157
North East Lincolnshire Council,http://statistics.data.gov.uk/id/local-authority/00FC,People And Communities,Childrens Hlth & Family Supp,Integrated Youth Services,Direct Transport Costs,Hired Transport - Service User,JA102,3/14/2013,184002,REDACTED COMMERCIALLY SENSITIVE,Revenue,MILLMAN COACHES,100700
North East Lincolnshire Council,http://statistics.data.gov.uk/id/local-authority/00FC,People And Communities,Childrens Hlth & Family Supp,Integrated Youth Services,Direct Transport Costs,Hired Transport - Service User,JA102,3/21/2013,185656,REDACTED COMMERCIALLY SENSITIVE,Revenue,MILLMAN COACHES,100700
North East Lincolnshire Council,http://statistics.data.gov.uk/id/local-authority/00FC,People And Communities,Childrens Hlth & Family Supp,Childrens Health Provision,Rents,Rent,GC101,3/20/2013,184016,715.00,Revenue,GRIMSBY CENTRAL HALL TRUST,100882
North East Lincolnshire Council,http://statistics.data.gov.uk/id/local-authority/00FC,People And Communities,Childrens Hlth & Family Supp,Childrens Health Provision,Catering,Provisions,LB101,3/20/2013,184940,360.00,Revenue,SAFE CONTROL LTD,100989
North East Lincolnshire Council,http://statistics.data.gov.uk/id/local-authority/00FC,People And Communities,Childrens Hlth & Family Supp,Childrens Health Provision,Print Stationery / Gen Off Exp,Printing And Stationery,LD103,3/11/2013,182522,-31.60,Revenue,LYRECO UK LIMITED,101120
North East Lincolnshire Council,http://statistics.data.gov.uk/id/local-authority/00FC,People And Communities,Childrens Hlth & Family Supp,Childrens Health Provision,Communications And Computing,Postage,LF111,3/13/2013,182715,250.00,Revenue,LYRECO UK LIMITED,101120
North East Lincolnshire Council,http://statistics.data.gov.uk/id/local-authority/00FC,People And Communities,Childrens Hlth & Family Supp,Childrens Health Provision,Communications And Computing,Postage,LF111,3/27/2013,183987,250.00,Revenue,LYRECO UK LIMITED,101120
North East Lincolnshire Council,http://statistics.data.gov.uk/id/local-authority/00FC,People And Communities,Childrens Hlth & Family Supp,Childrens Health Provision,Print Stationery / Gen Off Exp,Printing And Stationery,LD103,3/11/2013,182905,271.20,Revenue,LYRECO UK LIMITED,101120
North East Lincolnshire Council,http://statistics.data.gov.uk/id/local-authority/00FC,People And Communities,Childrens Hlth & Family Supp,Childrens Health Provision,Equip / Furniture / Materials,Equipment - Purchase,LA101,3/11/2013,182712,359.42,Revenue,TWOFOLD MAILING LTD,105163
North East Lincolnshire Council,http://statistics.data.gov.uk/id/local-authority/00FC,People And Communities,Childrens Hlth & Family Supp,Childrens Health Provision,Print Stationery / Gen Off Exp,Printing And Stationery,LD103,3/6/2013,181443,750.00,Revenue,GL EDUCATION GROUP LTD,118819
North East Lincolnshire Council,http://statistics.data.gov.uk/id/local-authority/00FC,People And Communities,Childrens Hlth & Family Supp,Childrens Health Provision,Print Stationery / Gen Off Exp,Printing And Stationery,LD103,3/6/2013,181443,"1,200.00",Revenue,GL EDUCATION GROUP LTD,118819
North East Lincolnshire Council,http://statistics.data.gov.uk/id/local-authority/00FC,People And Communities,Childrens Hlth & Family Supp,Childrens Health Provision,Miscellaneous Expenses,Other Expenses General,LL119,3/4/2013,180425,539.46,Revenue,NPOWER LIMITED,101414
North East Lincolnshire Council,http://statistics.data.gov.uk/id/local-authority/00FC,People And Communities,Childrens Hlth & Family Supp,Childrens Health Provision,Miscellaneous Expenses,Other Expenses General,LL119,3/20/2013,185020,699.00,Revenue,SNAP SURVEYS LTD,110892
North East Lincolnshire Council,http://statistics.data.gov.uk/id/local-authority/00FC,People And Communities,Childrens Hlth & Family Supp,Childrens Health Provision,Private Contractors,Third Party Prov - Private,PH101,3/11/2013,182708,564.00,Revenue,EA BROADBURN DISPENSING CHEMIST,101135
North East Lincolnshire Council,http://statistics.data.gov.uk/id/local-authority/00FC,People And Communities,Childrens Hlth & Family Supp,Childrens Health Provision,Private Contractors,Third Party Prov - Private,PH101,3/20/2013,184918,"1,025.00",Revenue,N LINCS & GOOLE HOSPITALS NHS,111074
North East Lincolnshire Council,http://statistics.data.gov.uk/id/local-authority/00FC,People And Communities,Childrens Hlth & Family Supp,Childrens Centre Development,Rep Alterations Maint Building,Buildings - Repairs And Maint,GA102,3/4/2013,181049,350.00,Revenue,HAITH'S HEATING LTD,101342
North East Lincolnshire Council,http://statistics.data.gov.uk/id/local-authority/00FC,People And Communities,Childrens Hlth & Family Supp,Childrens Centre Development,Direct Employee Expenses,Agency Staff,EA105,3/20/2013,184930,529.00,Revenue,FUTURE CLEANING SERVICES LTD,102557
North East Lincolnshire Council,http://statistics.data.gov.uk/id/local-authority/00FC,People And Communities,Childrens Hlth & Family Supp,Childrens Centre Development,Rep Alterations Maint Building,Buildings - Repairs And Maint,GA102,3/25/2013,185292,320.00,Revenue,ETON-LINCS LIMITED,101510
North East Lincolnshire Council,http://statistics.data.gov.uk/id/local-authority/00FC,People And Communities,Childrens Hlth & Family Supp,Childrens Centre Development,Rep Alterations Maint Building,Buildings - Repairs And Maint,GA102,3/18/2013,183956,"2,940.00",Revenue,ETON-LINCS LIMITED,101510
North East Lincolnshire Council,http://statistics.data.gov.uk/id/local-authority/00FC,People And Communities,Childrens Hlth & Family Supp,Childrens Centre Development,Rep Alterations Maint Building,Buildings - Repairs And Maint,GA102,3/14/2013,183800,268.00,Revenue,LUDAFLORS,100547
North East Lincolnshire Council,http://statistics.data.gov.uk/id/local-authority/00FC,People And Communities,Childrens Hlth & Family Supp,Childrens Centre Development,Rep Alterations Maint Building,Buildings - Repairs And Maint,GA102,3/25/2013,185305,320.00,Revenue,ETON-LINCS LIMITED,101510
North East Lincolnshire Council,http://statistics.data.gov.uk/id/local-authority/00FC,People And Communities,Childrens Hlth & Family Supp,Childrens Centre Development,Rep Alterations Maint Building,Buildings - Repairs And Maint,GA102,3/7/2013,182517,530.13,Revenue,EXCELL ELECTRICAL CONTRACTORS,100601
North East Lincolnshire Council,http://statistics.data.gov.uk/id/local-authority/00FC,People And Communities,Childrens Hlth & Family Supp,Childrens Centre Development,Water Services,Water,GE101,3/20/2013,185237,603.03,Revenue,ANGLIAN WATER,100508
North East Lincolnshire Council,http://statistics.data.gov.uk/id/local-authority/00FC,People And Communities,Childrens Hlth & Family Supp,Childrens Centre Development,Other Agencies,Child Care Payments,PJ104,3/21/2013,185066,250.20,Revenue,FOR UNDER FIVES LTD,100647
North East Lincolnshire Council,http://statistics.data.gov.uk/id/local-authority/00FC,People And Communities,Childrens Hlth & Family Supp,Childrens Centre Development,Other Agencies,Child Care Payments,PJ104,3/20/2013,185107,315.20,Revenue,FOR UNDER FIVES LTD,100647
North East Lincolnshire Council,http://statistics.data.gov.uk/id/local-authority/00FC,People And Communities,Childrens Hlth & Family Supp,Childrens Centre Development,Other Agencies,Child Care Payments,PJ104,3/25/2013,185069,352.37,Revenue,FOR UNDER FIVES LTD,100647
North East Lincolnshire Council,http://statistics.data.gov.uk/id/local-authority/00FC,People And Communities,Childrens Hlth & Family Supp,Childrens Centre Development,Rents,Rent,GC101,3/4/2013,180691,660.00,Revenue,CLEETHORPES SENIOR CITIZENS CLUB,103967
North East Lincolnshire Council,http://statistics.data.gov.uk/id/local-authority/00FC,People And Communities,Childrens Hlth & Family Supp,Childrens Centre Development,Rep Alterations Maint Building,Internal Decoration,GA119,3/4/2013,164371,"2,135.00",Revenue,ARK JOINERY AND BUILDING MAINTENANCE LTD,101126
North East Lincolnshire Council,http://statistics.data.gov.uk/id/local-authority/00FC,People And Communities,Childrens Hlth & Family Supp,Childrens Centre Development,Equip / Furniture / Materials,Non-Teaching Resources,LA118,3/21/2013,171887,-1.34,Revenue,ARGOS BUSINESS SOLUTIONS,101032
North East Lincolnshire Council,http://statistics.data.gov.uk/id/local-authority/00FC,People And Communities,Childrens Hlth & Family Supp,Childrens Centre Development,Equip / Furniture / Materials,Equipment - Purchase,LA101,3/14/2013,183577,293.88,Revenue,MOISERS (GRIMSBY) LTD,100746
North East Lincolnshire Council,http://statistics.data.gov.uk/id/local-authority/00FC,People And Communities,Childrens Hlth & Family Supp,Childrens Centre Development,Equip / Furniture / Materials,Equipment - Purchase,LA101,3/4/2013,164370,373.00,Revenue,ARK JOINERY AND BUILDING MAINTENANCE LTD,101126
North East Lincolnshire Council,http://statistics.data.gov.uk/id/local-authority/00FC,People And Communities,Childrens Hlth & Family Supp,Childrens Centre Development,Equip / Furniture / Materials,Equipment - Purchase,LA101,3/14/2013,183577,499.75,Revenue,MOISERS (GRIMSBY) LTD,100746
North East Lincolnshire Council,http://statistics.data.gov.uk/id/local-authority/00FC,People And Communities,Childrens Hlth & Family Supp,Childrens Centre Development,Other Agencies,Educational Visits,PJ152,3/21/2013,170117,REDACTED COMMERCIALLY SENSITIVE,Revenue,MILLMAN COACHES,100700
North East Lincolnshire Council,http://statistics.data.gov.uk/id/local-authority/00FC,People And Communities,Childrens Hlth & Family Supp,Childrens Centre Development,Other Agencies,Child Care Payments,PJ104,3/14/2013,183914,"1,107.71",Revenue,PRE SCHOOL LEARNING ALLIANCE,101437
North East Lincolnshire Council,http://statistics.data.gov.uk/id/local-authority/00FC,People And Communities,Childrens Hlth & Family Supp,Childrens Centre Development,Other Agencies,Child Care Payments,PJ104,3/4/2013,180865,387.00,Revenue,FOR UNDER FIVES LTD,101795
North East Lincolnshire Council,http://statistics.data.gov.uk/id/local-authority/00FC,People And Communities,Childrens Hlth & Family Supp,Childrens Centre Development,Other Agencies,Child Care Payments,PJ104,3/4/2013,180864,567.60,Revenue,FOR UNDER FIVES LTD,101795
North East Lincolnshire Council,http://statistics.data.gov.uk/id/local-authority/00FC,People And Communities,Childrens Hlth & Family Supp,Childrens Centre Development,Cleaning And Domestic Supplies,Cleaning - Consumables,GH103,3/7/2013,182631,-5.00,Revenue,PETTY CASH,REDACTED PERSONAL INFORMATION
North East Lincolnshire Council,http://statistics.data.gov.uk/id/local-authority/00FC,People And Communities,Childrens Hlth & Family Supp,Childrens Centre Development,Catering,Provisions,LB101,3/7/2013,182631,-178.13,Revenue,PETTY CASH,REDACTED PERSONAL INFORMATION
North East Lincolnshire Council,http://statistics.data.gov.uk/id/local-authority/00FC,People And Communities,Childrens Hlth & Family Supp,Childrens Centre Development,Equip / Furniture / Materials,Non-Teaching Resources,LA118,3/7/2013,182631,-77.00,Revenue,PETTY CASH,REDACTED PERSONAL INFORMATION
North East Lincolnshire Council,http://statistics.data.gov.uk/id/local-authority/00FC,People And Communities,Childrens Hlth & Family Supp,Childrens Centre Development,Equip / Furniture / Materials,Non-Teaching Resources,LA118,3/7/2013,182631,-21.27,Revenue,PETTY CASH,REDACTED PERSONAL INFORMATION
North East Lincolnshire Council,http://statistics.data.gov.uk/id/local-authority/00FC,People And Communities,Childrens Hlth & Family Supp,Childrens Centre Development,Catering,Provisions,LB101,3/7/2013,182631,-12.03,Revenue,PETTY CASH,REDACTED PERSONAL INFORMATION
North East Lincolnshire Council,http://statistics.data.gov.uk/id/local-authority/00FC,People And Communities,Childrens Hlth & Family Supp,Childrens Centre Development,Print Stationery / Gen Off Exp,Printing And Stationery,LD103,3/7/2013,182631,-10.83,Revenue,PETTY CASH,REDACTED PERSONAL INFORMATION
North East Lincolnshire Council,http://statistics.data.gov.uk/id/local-authority/00FC,People And Communities,Childrens Hlth & Family Supp,Childrens Centre Development,Catering,Provisions,LB101,3/7/2013,182631,-10.48,Revenue,PETTY CASH,REDACTED PERSONAL INFORMATION
North East Lincolnshire Council,http://statistics.data.gov.uk/id/local-authority/00FC,People And Communities,Childrens Hlth & Family Supp,Childrens Centre Development,Equip / Furniture / Materials,Non-Teaching Resources,LA118,3/7/2013,182631,-7.51,Revenue,PETTY CASH,REDACTED PERSONAL INFORMATION
North East Lincolnshire Council,http://statistics.data.gov.uk/id/local-authority/00FC,People And Communities,Childrens Hlth & Family Supp,Childrens Centre Development,Print Stationery / Gen Off Exp,Printing And Stationery,LD103,3/7/2013,182631,-6.98,Revenue,PETTY CASH,REDACTED PERSONAL INFORMATION
North East Lincolnshire Council,http://statistics.data.gov.uk/id/local-authority/00FC,People And Communities,Childrens Hlth & Family Supp,Childrens Centre Development,Catering,Provisions,LB101,3/7/2013,182631,-3.98,Revenue,PETTY CASH,REDACTED PERSONAL INFORMATION
North East Lincolnshire Council,http://statistics.data.gov.uk/id/local-authority/00FC,People And Communities,Childrens Hlth & Family Supp,Childrens Centre Development,Other Agencies,Third Pp - Block Gross,PJ103,3/7/2013,182631,-5.00,Revenue,PETTY CASH,REDACTED PERSONAL INFORMATION
North East Lincolnshire Council,http://statistics.data.gov.uk/id/local-authority/00FC,People And Communities,Childrens Hlth & Family Supp,Childrens Centre Development,Other Agencies,Further Ed Emp & Training,PJ130,3/4/2013,180702,260.00,Revenue,1ST AID MATTERS,103999
North East Lincolnshire Council,http://statistics.data.gov.uk/id/local-authority/00FC,People And Communities,Childrens Hlth & Family Supp,Childrens Centre Development,Print Stationery / Gen Off Exp,Printing And Stationery,LD103,3/11/2013,182318,-28.40,Revenue,LYRECO UK LIMITED,101120
North East Lincolnshire Council,http://statistics.data.gov.uk/id/local-authority/00FC,People And Communities,Childrens Hlth & Family Supp,Childrens Centre Development,Equip / Furniture / Materials,Non-Teaching Resources,LA118,3/28/2013,186807,250.39,Revenue,PETTY CASH,REDACTED PERSONAL INFORMATION
North East Lincolnshire Council,http://statistics.data.gov.uk/id/local-authority/00FC,People And Communities,Childrens Hlth & Family Supp,Childrens Centre Development,Catering,Provisions,LB101,3/20/2013,185259,256.20,Revenue,W M MORRISON SUPERMARKETS PLC,100919
North East Lincolnshire Council,http://statistics.data.gov.uk/id/local-authority/00FC,People And Communities,Childrens Hlth & Family Supp,Childrens Centre Development,Other Agencies,Child Care Payments,PJ104,3/18/2013,183471,717.62,Revenue,FOR UNDER FIVES,101931
North East Lincolnshire Council,http://statistics.data.gov.uk/id/local-authority/00FC,People And Communities,Childrens Hlth & Family Supp,Childrens Centre Development,Private Contractors,Third Party Prov - Private,PH101,3/14/2013,183689,"1,663.00",Revenue,N LINCS & GOOLE HOSPITALS NHS,111074
North East Lincolnshire Council,http://statistics.data.gov.uk/id/local-authority/00FC,People And Communities,Childrens Hlth & Family Supp,Childrens Centre Development,Private Contractors,Third Party Prov - Private,PH101,3/14/2013,178353,"1,663.00",Revenue,N LINCS & GOOLE HOSPITALS NHS,111074
North East Lincolnshire Council,http://statistics.data.gov.uk/id/local-authority/00FC,People And Communities,Childrens Hlth & Family Supp,Childrens Centre Development,Private Contractors,Third Party Prov - Private,PH101,3/18/2013,183688,"6,930.00",Revenue,N LINCS & GOOLE HOSPITALS NHS,111074
North East Lincolnshire Council,http://statistics.data.gov.uk/id/local-authority/00FC,People And Communities,Childrens Hlth & Family Supp,Childrens Centre Development,Equip / Furniture / Materials,Furniture - Purchase,LA105,3/25/2013,185018,251.25,Revenue,CORDELLS,101962
North East Lincolnshire Council,http://statistics.data.gov.uk/id/local-authority/00FC,People And Communities,Childrens Hlth & Family Supp,Childrens Centre Development,Other Agencies,Further Ed Emp & Training,PJ130,3/7/2013,182131,780.00,Revenue,FOREFRONT TRAINING LTD,105501
North East Lincolnshire Council,http://statistics.data.gov.uk/id/local-authority/00FC,People And Communities,Childrens Hlth & Family Supp,Childrens Centre Development,Rep Alterations Maint Building,Buildings - Repairs And Maint,GA102,3/25/2013,185298,320.00,Revenue,ETON-LINCS LIMITED,101510
North East Lincolnshire Council,http://statistics.data.gov.uk/id/local-authority/00FC,People And Communities,Childrens Hlth & Family Supp,Childrens Centre Development,Rep Alterations Maint Building,Buildings - Repairs And Maint,GA102,3/25/2013,185299,320.00,Revenue,ETON-LINCS LIMITED,101510
North East Lincolnshire Council,http://statistics.data.gov.uk/id/local-authority/00FC,People And Communities,Childrens Hlth & Family Supp,Childrens Centre Development,Rep Alterations Maint Building,Buildings - Repairs And Maint,GA102,3/25/2013,185676,"8,143.00",Revenue,ETON-LINCS LIMITED,101510
North East Lincolnshire Council,http://statistics.data.gov.uk/id/local-authority/00FC,People And Communities,Childrens Hlth & Family Supp,Childrens Centre Development,Rep Alterations Maint Building,Buildings - Repairs And Maint,GA102,3/25/2013,185304,320.00,Revenue,ETON-LINCS LIMITED,101510
North East Lincolnshire Council,http://statistics.data.gov.uk/id/local-authority/00FC,People And Communities,Childrens Hlth & Family Supp,Childrens Centre Development,Energy Costs,Electricity,GB102,3/20/2013,185271,365.93,Revenue,EDWARD HENEAGE PRIMARY (ACADEMY),111742
North East Lincolnshire Council,http://statistics.data.gov.uk/id/local-authority/00FC,People And Communities,Childrens Hlth & Family Supp,Childrens Centre Development,Energy Costs,Electricity,GB102,3/20/2013,185240,394.48,Revenue,EDWARD HENEAGE PRIMARY SCHOOL,103917
North East Lincolnshire Council,http://statistics.data.gov.uk/id/local-authority/00FC,People And Communities,Childrens Hlth & Family Supp,Childrens Centre Development,Energy Costs,Electricity,GB102,3/20/2013,185239,429.81,Revenue,EDWARD HENEAGE PRIMARY (ACADEMY),111742
North East Lincolnshire Council,http://statistics.data.gov.uk/id/local-authority/00FC,People And Communities,Childrens Hlth & Family Supp,Childrens Centre Development,Energy Costs,Electricity,GB102,3/20/2013,185238,460.59,Revenue,EDWARD HENEAGE PRIMARY (ACADEMY),111742
North East Lincolnshire Council,http://statistics.data.gov.uk/id/local-authority/00FC,People And Communities,Childrens Hlth & Family Supp,Childrens Centre Development,Energy Costs,Gas,GB101,3/20/2013,185242,493.35,Revenue,BRITISH GAS TRADING LTD,101507
North East Lincolnshire Council,http://statistics.data.gov.uk/id/local-authority/00FC,People And Communities,Childrens Hlth & Family Supp,Childrens Centre Development,Cleaning And Domestic Supplies,Cleaning - Services,GH102,3/20/2013,185198,"1,210.30",Revenue,FUTURE CLEANING SERVICES LTD,102557
North East Lincolnshire Council,http://statistics.data.gov.uk/id/local-authority/00FC,People And Communities,Childrens Hlth & Family Supp,Childrens Centre Development,Cleaning And Domestic Supplies,Cleaning - Services,GH102,3/20/2013,185184,"1,274.04",Revenue,FUTURE CLEANING SERVICES LTD,102557
North East Lincolnshire Council,http://statistics.data.gov.uk/id/local-authority/00FC,People And Communities,Childrens Hlth & Family Supp,Childrens Centre Development,Energy Costs,Gas,GB101,3/20/2013,184993,434.58,Revenue,BRITISH GAS TRADING LTD,101507
North East Lincolnshire Council,http://statistics.data.gov.uk/id/local-authority/00FC,People And Communities,Childrens Hlth & Family Supp,Childrens Centre Development,Energy Costs,Electricity,GB102,3/20/2013,185001,"1,224.08",Revenue,NPOWER LIMITED,101414
North East Lincolnshire Council,http://statistics.data.gov.uk/id/local-authority/00FC,People And Communities,Childrens Hlth & Family Supp,Childrens Centre Development,Rep Alterations Maint Building,Buildings - Repairs And Maint,GA102,3/27/2013,186775,"-2,295.00",Revenue,FABRIQUE SPECIALIST GLAZING SYSTEMS LTD,101314
North East Lincolnshire Council,http://statistics.data.gov.uk/id/local-authority/00FC,People And Communities,Childrens Hlth & Family Supp,Childrens Centre Development,Energy Costs,Electricity,GB102,3/27/2013,186709,-826.17,Revenue,NPOWER LIMITED,101414
North East Lincolnshire Council,http://statistics.data.gov.uk/id/local-authority/00FC,People And Communities,Childrens Hlth & Family Supp,Childrens Centre Development,Energy Costs,Electricity,GB102,3/27/2013,186714,-723.10,Revenue,NPOWER LIMITED,101414
North East Lincolnshire Council,http://statistics.data.gov.uk/id/local-authority/00FC,People And Communities,Childrens Hlth & Family Supp,Childrens Centre Development,Energy Costs,Electricity,GB102,3/27/2013,186710,-513.11,Revenue,NPOWER LIMITED,101414
North East Lincolnshire Council,http://statistics.data.gov.uk/id/local-authority/00FC,People And Communities,Childrens Hlth & Family Supp,Childrens Centre Development,Energy Costs,Electricity,GB102,3/27/2013,186711,-166.08,Revenue,NPOWER LIMITED,101414
North East Lincolnshire Council,http://statistics.data.gov.uk/id/local-authority/00FC,People And Communities,Childrens Hlth & Family Supp,Childrens Centre Development,Energy Costs,Electricity,GB102,3/27/2013,186715,-164.50,Revenue,NPOWER LIMITED,101414
North East Lincolnshire Council,http://statistics.data.gov.uk/id/local-authority/00FC,People And Communities,Childrens Hlth & Family Supp,Childrens Centre Development,Energy Costs,Electricity,GB102,3/27/2013,186718,-164.35,Revenue,NPOWER LIMITED,101414
North East Lincolnshire Council,http://statistics.data.gov.uk/id/local-authority/00FC,People And Communities,Childrens Hlth & Family Supp,Childrens Centre Development,Rep Alterations Maint Building,Buildings - Repairs And Maint,GA102,3/25/2013,185275,-160.00,Revenue,EXCELL ELECTRICAL CONTRACTORS,100601
North East Lincolnshire Council,http://statistics.data.gov.uk/id/local-authority/00FC,People And Communities,Childrens Hlth & Family Supp,Childrens Centre Development,Energy Costs,Electricity,GB102,3/27/2013,186716,-159.21,Revenue,NPOWER LIMITED,101414
North East Lincolnshire Council,http://statistics.data.gov.uk/id/local-authority/00FC,People And Communities,Childrens Hlth & Family Supp,Childrens Centre Development,Energy Costs,Electricity,GB102,3/27/2013,186721,-148.44,Revenue,NPOWER LIMITED,101414
North East Lincolnshire Council,http://statistics.data.gov.uk/id/local-authority/00FC,People And Communities,Childrens Hlth & Family Supp,Childrens Centre Development,Energy Costs,Electricity,GB102,3/27/2013,186732,-147.99,Revenue,NPOWER LIMITED,101414
North East Lincolnshire Council,http://statistics.data.gov.uk/id/local-authority/00FC,People And Communities,Childrens Hlth & Family Supp,Childrens Centre Development,Energy Costs,Electricity,GB102,3/27/2013,186713,-83.50,Revenue,NPOWER LIMITED,101414
North East Lincolnshire Council,http://statistics.data.gov.uk/id/local-authority/00FC,People And Communities,Childrens Hlth & Family Supp,Childrens Centre Development,Energy Costs,Electricity,GB102,3/27/2013,186711,-24.78,Revenue,NPOWER LIMITED,101414
North East Lincolnshire Council,http://statistics.data.gov.uk/id/local-authority/00FC,People And Communities,Childrens Hlth & Family Supp,Childrens Centre Development,Energy Costs,Electricity,GB102,3/27/2013,186719,-20.82,Revenue,NPOWER LIMITED,101414
North East Lincolnshire Council,http://statistics.data.gov.uk/id/local-authority/00FC,People And Communities,Childrens Hlth & Family Supp,Childrens Centre Development,Rep Alterations Maint Building,Buildings - Repairs And Maint,GA102,3/25/2013,185309,320.00,Revenue,ETON-LINCS LIMITED,101510
North East Lincolnshire Council,http://statistics.data.gov.uk/id/local-authority/00FC,People And Communities,Childrens Hlth & Family Supp,Childrens Centre Development,Energy Costs,Electricity,GB102,3/25/2013,185878,333.07,Revenue,NPOWER LIMITED,101414
North East Lincolnshire Council,http://statistics.data.gov.uk/id/local-authority/00FC,People And Communities,Childrens Hlth & Family Supp,Childrens Centre Development,Water Services,Water,GE101,3/20/2013,184987,336.21,Revenue,ANGLIAN WATER,100508
North East Lincolnshire Council,http://statistics.data.gov.uk/id/local-authority/00FC,People And Communities,Childrens Hlth & Family Supp,Childrens Centre Development,Energy Costs,Electricity,GB102,3/21/2013,185679,354.52,Revenue,NPOWER LIMITED,101414
North East Lincolnshire Council,http://statistics.data.gov.uk/id/local-authority/00FC,People And Communities,Childrens Hlth & Family Supp,Childrens Centre Development,Energy Costs,Electricity,GB102,3/25/2013,185881,366.95,Revenue,NPOWER LIMITED,101414
North East Lincolnshire Council,http://statistics.data.gov.uk/id/local-authority/00FC,People And Communities,Childrens Hlth & Family Supp,Childrens Centre Development,Energy Costs,Electricity,GB102,3/21/2013,185670,450.04,Revenue,NPOWER LIMITED,101414
North East Lincolnshire Council,http://statistics.data.gov.uk/id/local-authority/00FC,People And Communities,Childrens Hlth & Family Supp,Childrens Centre Development,Energy Costs,Electricity,GB102,3/21/2013,185668,488.78,Revenue,NPOWER LIMITED,101414
North East Lincolnshire Council,http://statistics.data.gov.uk/id/local-authority/00FC,People And Communities,Childrens Hlth & Family Supp,Childrens Centre Development,Energy Costs,Electricity,GB102,3/25/2013,185880,499.87,Revenue,NPOWER LIMITED,101414
North East Lincolnshire Council,http://statistics.data.gov.uk/id/local-authority/00FC,People And Communities,Childrens Hlth & Family Supp,Childrens Centre Development,Energy Costs,Electricity,GB102,3/21/2013,185663,568.78,Revenue,NPOWER LIMITED,101414
North East Lincolnshire Council,http://statistics.data.gov.uk/id/local-authority/00FC,People And Communities,Childrens Hlth & Family Supp,Childrens Centre Development,Energy Costs,Electricity,GB102,3/21/2013,185692,569.39,Revenue,NPOWER LIMITED,101414
North East Lincolnshire Council,http://statistics.data.gov.uk/id/local-authority/00FC,People And Communities,Childrens Hlth & Family Supp,Childrens Centre Development,Rep Alterations Maint Building,Buildings - Repairs And Maint,GA102,3/20/2013,184849,720.00,Revenue,EXCELL ELECTRICAL CONTRACTORS,100601
North East Lincolnshire Council,http://statistics.data.gov.uk/id/local-authority/00FC,People And Communities,Childrens Hlth & Family Supp,Childrens Centre Development,Energy Costs,Electricity,GB102,3/21/2013,185696,826.17,Revenue,NPOWER LIMITED,101414
North East Lincolnshire Council,http://statistics.data.gov.uk/id/local-authority/00FC,People And Communities,Childrens Hlth & Family Supp,Childrens Centre Development,Energy Costs,Electricity,GB102,3/28/2013,186823,"1,070.23",Revenue,NPOWER LIMITED,101414
North East Lincolnshire Council,http://statistics.data.gov.uk/id/local-authority/00FC,People And Communities,Childrens Hlth & Family Supp,Childrens Centre Development,Energy Costs,Heating Fuel,GB103,3/20/2013,185209,"1,238.63",Revenue,WATSON PETROLEUM LTD,101348
North East Lincolnshire Council,http://statistics.data.gov.uk/id/local-authority/00FC,People And Communities,Childrens Hlth & Family Supp,Childrens Centre Development,Energy Costs,Electricity,GB102,3/21/2013,185666,"1,453.42",Revenue,NPOWER LIMITED,101414
North East Lincolnshire Council,http://statistics.data.gov.uk/id/local-authority/00FC,People And Communities,Childrens Hlth & Family Supp,Childrens Centre Development,Direct Employee Expenses,Agency Staff,EA105,3/7/2013,182118,"1,026.62",Revenue,THRUNSCOE PRIMARY AND NURSERY ACADEMY,118749
North East Lincolnshire Council,http://statistics.data.gov.uk/id/local-authority/00FC,People And Communities,Childrens Hlth & Family Supp,Childrens Centre Development,Direct Employee Expenses,Agency Staff,EA105,3/7/2013,182118,"1,210.26",Revenue,THRUNSCOE PRIMARY AND NURSERY ACADEMY,118749
North East Lincolnshire Council,http://statistics.data.gov.uk/id/local-authority/00FC,People And Communities,Childrens Hlth & Family Supp,Childrens Centre Development,Rep Alterations Maint Building,Buildings - Repairs And Maint,GA102,3/25/2013,185307,250.00,Revenue,ETON-LINCS LIMITED,101510
North East Lincolnshire Council,http://statistics.data.gov.uk/id/local-authority/00FC,People And Communities,Childrens Hlth & Family Supp,Childrens Centre Development,Rents,Service Charge,GC102,3/7/2013,182118,"2,616.00",Revenue,THRUNSCOE PRIMARY AND NURSERY ACADEMY,118749
North East Lincolnshire Council,http://statistics.data.gov.uk/id/local-authority/00FC,People And Communities,Childrens Hlth & Family Supp,Childrens Centre Development,Rep Alterations Maint Building,Buildings - Repairs And Maint,GA102,3/25/2013,185294,320.00,Revenue,ETON-LINCS LIMITED,101510
North East Lincolnshire Council,http://statistics.data.gov.uk/id/local-authority/00FC,People And Communities,Childrens Hlth & Family Supp,Childrens Centre Development,Energy Costs,Gas,GB101,3/20/2013,185208,477.57,Revenue,BRITISH GAS TRADING LTD,101507
North East Lincolnshire Council,http://statistics.data.gov.uk/id/local-authority/00FC,People And Communities,Childrens Hlth & Family Supp,Childrens Centre Development,Rep Alterations Maint Building,Buildings - Repairs And Maint,GA102,3/25/2013,185726,675.00,Revenue,ETON-LINCS LIMITED,101510
North East Lincolnshire Council,http://statistics.data.gov.uk/id/local-authority/00FC,People And Communities,Childrens Hlth & Family Supp,Childrens Centre Development,Rep Alterations Maint Building,Buildings - Repairs And Maint,GA102,3/20/2013,184860,250.00,Revenue,HAITH'S HEATING LTD,101342
North East Lincolnshire Council,http://statistics.data.gov.uk/id/local-authority/00FC,People And Communities,Childrens Hlth & Family Supp,Childrens Centre Development,Rep Alterations Maint Building,Buildings - Repairs And Maint,GA102,3/25/2013,185297,320.00,Revenue,ETON-LINCS LIMITED,101510
North East Lincolnshire Council,http://statistics.data.gov.uk/id/local-authority/00FC,People And Communities,Childrens Hlth & Family Supp,Childrens Centre Development,Cleaning And Domestic Supplies,Cleaning - Services,GH102,3/14/2013,183920,860.00,Revenue,FUTURE CLEANING SERVICES LTD,102557
North East Lincolnshire Council,http://statistics.data.gov.uk/id/local-authority/00FC,People And Communities,Childrens Hlth & Family Supp,Childrens Centre Development,Rep Alterations Maint Building,Security Alarms And Cctv,GA101,3/20/2013,185037,"1,865.00",Revenue,N-FORCE SECURITY SOLUTIONS LTD,105280
North East Lincolnshire Council,http://statistics.data.gov.uk/id/local-authority/00FC,People And Communities,Childrens Hlth & Family Supp,Childrens Centre Development,Energy Costs,Electricity,GB102,3/28/2013,186873,312.62,Revenue,NPOWER LIMITED,101414
North East Lincolnshire Council,http://statistics.data.gov.uk/id/local-authority/00FC,People And Communities,Childrens Hlth & Family Supp,Childrens Centre Development,Energy Costs,Gas,GB101,3/28/2013,186874,770.13,Revenue,BRITISH GAS TRADING LTD,101507
North East Lincolnshire Council,http://statistics.data.gov.uk/id/local-authority/00FC,People And Communities,Childrens Hlth & Family Supp,Childrens Centre Development,Equip / Furniture / Materials,Non-Teaching Resources,LA118,3/7/2013,181838,409.00,Revenue,VAL SABIN PUBLICATIONS & TRAINING,107921
North East Lincolnshire Council,http://statistics.data.gov.uk/id/local-authority/00FC,People And Communities,Childrens Hlth & Family Supp,Childrens Centre Development,Other Agencies,Further Ed Emp & Training,PJ130,3/14/2013,183589,406.00,Revenue,SOVEREIGN TRAINING,105613
North East Lincolnshire Council,http://statistics.data.gov.uk/id/local-authority/00FC,People And Communities,Childrens Hlth & Family Supp,Childrens Centre Development,Other Agencies,Child Care Payments,PJ104,3/7/2013,182108,"1,250.00",Revenue,CHAPPILLS DAY NURSERY,100998
North East Lincolnshire Council,http://statistics.data.gov.uk/id/local-authority/00FC,People And Communities,Childrens Hlth & Family Supp,Childrens Centre Development,Private Contractors,Third Party Prov - Private,PH101,3/7/2013,182571,500.00,Revenue,GASP SMOKE FREE SERVICES LTD,108439
North East Lincolnshire Council,http://statistics.data.gov.uk/id/local-authority/00FC,People And Communities,Childrens Hlth & Family Supp,Integ Local Service Delivery,Equip / Furniture / Materials,Equipment - Purchase,LA101,3/14/2013,184055,348.60,Revenue,PRECIOUS TIMES RIVERSIDE,119518
North East Lincolnshire Council,http://statistics.data.gov.uk/id/local-authority/00FC,People And Communities,Childrens Hlth & Family Supp,Integ Local Service Delivery,Equip / Furniture / Materials,Equipment - Purchase,LA101,3/18/2013,184072,"2,739.00",Revenue,ST JAMES SCHOOL,100940
North East Lincolnshire Council,http://statistics.data.gov.uk/id/local-authority/00FC,People And Communities,Childrens Hlth & Family Supp,Integ Local Service Delivery,Other Agencies,Nursery Educ Fund - Standard,PJ139,3/11/2013,182947,"1,095.60",Revenue,ST MARTINS PREPARATORY SCHOOL,100889
North East Lincolnshire Council,http://statistics.data.gov.uk/id/local-authority/00FC,People And Communities,Childrens Hlth & Family Supp,Integ Local Service Delivery,Private Contractors,Third Party Prov - Private,PH101,3/14/2013,183690,"8,595.00",Revenue,N LINCS & GOOLE HOSPITALS NHS,111074
North East Lincolnshire Council,http://statistics.data.gov.uk/id/local-authority/00FC,People And Communities,Childrens Hlth & Family Supp,Integ Local Service Delivery,Other Agencies,Nursery Educ Fund - Standard,PJ139,3/4/2013,180818,"4,107.60",Revenue,ORMISTON SOUTH PARADE ACADEMY,111750
North East Lincolnshire Council,http://statistics.data.gov.uk/id/local-authority/00FC,People And Communities,Childrens Hlth & Family Supp,Integ Local Service Delivery,Other Agencies,Nursery Educ Fund - Standard,PJ139,3/8/2013,182934,"4,706.63",Revenue,WIZ KIDZ,102424
North East Lincolnshire Council,http://statistics.data.gov.uk/id/local-authority/00FC,People And Communities,Childrens Hlth & Family Supp,Integ Local Service Delivery,Private Contractors,Third Party Prov - Private,PH101,3/6/2013,178673,660.00,Revenue,WOMENS AID,100326
North East Lincolnshire Council,http://statistics.data.gov.uk/id/local-authority/00FC,People And Communities,Childrens Hlth & Family Supp,Palliative / Complex Care,Private Contractors,Third Party Prov - Private,PH101,3/7/2013,182294,345.00,Revenue,ARCADIA RECRUITMENT LIMITED,100425
North East Lincolnshire Council,http://statistics.data.gov.uk/id/local-authority/00FC,People And Communities,Childrens Hlth & Family Supp,Palliative / Complex Care,Private Contractors,Third Party Prov - Private,PH101,3/11/2013,182303,345.00,Revenue,ARCADIA RECRUITMENT LIMITED,100425
North East Lincolnshire Council,http://statistics.data.gov.uk/id/local-authority/00FC,People And Communities,Childrens Hlth & Family Supp,Palliative / Complex Care,Private Contractors,Third Party Prov - Private,PH101,3/14/2013,183485,"2,098.40",Revenue,EAST MIDLANDS CROSSROADS,102400
North East Lincolnshire Council,http://statistics.data.gov.uk/id/local-authority/00FC,People And Communities,Childrens Hlth & Family Supp,Palliative / Complex Care,Private Contractors,Third Party Prov - Private,PH101,3/14/2013,183725,"6,206.52",Revenue,INDEPENDENT COMMUNITY CARE MANAGEMENT LTD,105477
North East Lincolnshire Council,http://statistics.data.gov.uk/id/local-authority/00FC,People And Communities,Improved Health,Env Commerce Food & Health,Indirect Employee Expenses,Staff Training,EB122,3/20/2013,183698,300.00,Revenue,BJB LIFT TRUCKS LTD,101173
North East Lincolnshire Council,http://statistics.data.gov.uk/id/local-authority/00FC,People And Communities,Improved Health,Env Commerce Food & Health,Miscellaneous Expenses,Environmental/Health Analysis,LL120,3/7/2013,182058,720.00,Revenue,WAKEFIELD MD COUNCIL,100967
North East Lincolnshire Council,http://statistics.data.gov.uk/id/local-authority/00FC,People And Communities,Improved Health,Licensing,Clothes Uniforms And Laundry,Laundry,LC103,3/11/2013,181930,384.08,Revenue,JOHNSONS APPARELMASTER,100810
North East Lincolnshire Council,http://statistics.data.gov.uk/id/local-authority/00FC,People And Communities,Improved Health,Trading Standards,Direct Employee Expenses,Agency Staff,EA105,3/20/2013,185133,960.00,Revenue,KENYON BLOCK CONSULTANTS,101878
North East Lincolnshire Council,http://statistics.data.gov.uk/id/local-authority/00FC,People And Communities,Improved Health,Trading Standards,Direct Employee Expenses,Agency Staff,EA105,3/25/2013,185901,"1,120.00",Revenue,KENYON BLOCK CONSULTANTS,101878
North East Lincolnshire Council,http://statistics.data.gov.uk/id/local-authority/00FC,People And Communities,Improved Health,Trading Standards,Clothes Uniforms And Laundry,Protective Clothing,LC101,3/14/2013,183506,-7.74,Revenue,ARCO LTD,100509
North East Lincolnshire Council,http://statistics.data.gov.uk/id/local-authority/00FC,People And Communities,Improved Health,Trading Standards,Clothes Uniforms And Laundry,Protective Clothing,LC101,3/14/2013,183506,-2.60,Revenue,ARCO LTD,100509
North East Lincolnshire Council,http://statistics.data.gov.uk/id/local-authority/00FC,People And Communities,Improved Health,Trading Standards,Clothes Uniforms And Laundry,Protective Clothing,LC101,3/14/2013,183506,-2.20,Revenue,ARCO LTD,100509
North East Lincolnshire Council,http://statistics.data.gov.uk/id/local-authority/00FC,People And Communities,Improved Health,Trading Standards,Miscellaneous Expenses,Environmental/Health Analysis,LL120,3/20/2013,185165,300.00,Revenue,TEXTVERTISING LTD,101818
North East Lincolnshire Council,http://statistics.data.gov.uk/id/local-authority/00FC,People And Communities,Improved Health,Trading Standards,Private Contractors,Third Party Prov - Private,PH101,3/11/2013,182300,570.00,Revenue,WAKEFIELD MD COUNCIL,100967
North East Lincolnshire Council,http://statistics.data.gov.uk/id/local-authority/00FC,People And Communities,Improved Health,Supporting People,Other Agencies,Third Pp - Block Subsidy,PJ102,3/25/2013,186033,REDACTED COMMERCIALLY SENSITIVE,Revenue,HANOVER HOUSING ASSOCIATION,100307
North East Lincolnshire Council,http://statistics.data.gov.uk/id/local-authority/00FC,People And Communities,Improved Health,Supporting People,Other Agencies,Third Pp - Block Subsidy,PJ102,3/25/2013,186040,REDACTED COMMERCIALLY SENSITIVE,Revenue,ABBEYFIELD,100331
North East Lincolnshire Council,http://statistics.data.gov.uk/id/local-authority/00FC,People And Communities,Improved Health,Supporting People,Other Agencies,Third Pp - Block Subsidy,PJ102,3/25/2013,186039,REDACTED COMMERCIALLY SENSITIVE,Revenue,ANCHOR TRUST,100327
North East Lincolnshire Council,http://statistics.data.gov.uk/id/local-authority/00FC,People And Communities,Improved Health,Supporting People,Other Agencies,Third Pp - Block Subsidy,PJ102,3/25/2013,186037,REDACTED COMMERCIALLY SENSITIVE,Revenue,HOUSING 21,100320
North East Lincolnshire Council,http://statistics.data.gov.uk/id/local-authority/00FC,People And Communities,Improved Health,Supporting People,Other Agencies,Third Pp - Block Subsidy,PJ102,3/25/2013,186034,REDACTED COMMERCIALLY SENSITIVE,Revenue,HUMBERCARE LTD,100311
North East Lincolnshire Council,http://statistics.data.gov.uk/id/local-authority/00FC,People And Communities,Improved Health,Supporting People,Other Agencies,Third Pp - Block Subsidy,PJ102,3/25/2013,186047,REDACTED COMMERCIALLY SENSITIVE,Revenue,CREATIVE SUPPORT LTD,107198
North East Lincolnshire Council,http://statistics.data.gov.uk/id/local-authority/00FC,People And Communities,Improved Health,Supporting People,Other Agencies,Third Pp - Block Subsidy,PJ102,3/25/2013,186044,REDACTED COMMERCIALLY SENSITIVE,Revenue,OPEN DOOR (HEALTH) LTD,103147
North East Lincolnshire Council,http://statistics.data.gov.uk/id/local-authority/00FC,People And Communities,Improved Health,Supporting People,Other Agencies,Third Pp - Block Subsidy,PJ102,3/25/2013,186045,REDACTED COMMERCIALLY SENSITIVE,Revenue,NAViGO HEALTH AND SOCIAL CARE CIC,104262
North East Lincolnshire Council,http://statistics.data.gov.uk/id/local-authority/00FC,People And Communities,Improved Health,Supporting People,Other Agencies,Third Pp - Block Subsidy,PJ102,3/25/2013,186036,REDACTED COMMERCIALLY SENSITIVE,Revenue,HICA,100319
North East Lincolnshire Council,http://statistics.data.gov.uk/id/local-authority/00FC,People And Communities,Improved Health,Supporting People,Other Agencies,Third Pp - Block Subsidy,PJ102,3/25/2013,186046,REDACTED COMMERCIALLY SENSITIVE,Revenue,CARE PLUS GROUP,106467
North East Lincolnshire Council,http://statistics.data.gov.uk/id/local-authority/00FC,People And Communities,Improved Health,Supporting People,Other Agencies,Third Pp - Block Subsidy,PJ102,3/25/2013,186038,REDACTED COMMERCIALLY SENSITIVE,Revenue,HOUSING & SUPPORT SOLUTIONS,100321
North East Lincolnshire Council,http://statistics.data.gov.uk/id/local-authority/00FC,People And Communities,Improved Health,Supporting People,Other Agencies,Third Pp - Block Subsidy,PJ102,3/25/2013,186043,REDACTED COMMERCIALLY SENSITIVE,Revenue,LONGHURST AND HAVELOK HOMES LTD,100342
North East Lincolnshire Council,http://statistics.data.gov.uk/id/local-authority/00FC,People And Communities,Improved Health,Directors Public Health,Direct Employee Expenses,Pay,EA101,3/5/2013,181748,"2,633.34",Revenue,NORTH EAST LINCOLNSHIRE PRIMARY CARE TRUST,100337
North East Lincolnshire Council,http://statistics.data.gov.uk/id/local-authority/00FC,People And Communities,Improved Health,Directors Public Health,Direct Employee Expenses,Pay,EA101,3/5/2013,181817,"14,736.00",Revenue,NORTH EAST LINCOLNSHIRE PRIMARY CARE TRUST,100337
North East Lincolnshire Council,http://statistics.data.gov.uk/id/local-authority/00FC,People And Communities,Improved Health,Directors Public Health,Direct Employee Expenses,Pay,EA101,3/5/2013,181818,"15,442.00",Revenue,NORTH EAST LINCOLNSHIRE PRIMARY CARE TRUST,100337
North East Lincolnshire Council,http://statistics.data.gov.uk/id/local-authority/00FC,People And Communities,Improved Health,Health Promotion,Private Contractors,Third Party Prov - Private,PH101,3/19/2013,183505,"-1,650.00",Revenue,WEIGHT WATCHERS UK LTD,101509
North East Lincolnshire Council,http://statistics.data.gov.uk/id/local-authority/00FC,People And Communities,Improved Health,Health Promotion,Private Contractors,Third Party Prov - Private,PH101,3/19/2013,183505,-150.00,Revenue,WEIGHT WATCHERS UK LTD,101509
North East Lincolnshire Council,http://statistics.data.gov.uk/id/local-authority/00FC,People And Communities,Improved Health,Health Promotion,Private Contractors,Third Party Prov - Private,PH101,3/6/2013,175902,600.00,Revenue,WEIGHT WATCHERS UK LTD,101509
North East Lincolnshire Council,http://statistics.data.gov.uk/id/local-authority/00FC,People And Communities,Improved Health,Health Promotion,Private Contractors,Third Party Prov - Private,PH101,3/19/2013,180037,750.00,Revenue,WEIGHT WATCHERS UK LTD,101509
North East Lincolnshire Council,http://statistics.data.gov.uk/id/local-authority/00FC,People And Communities,Improved Health,Health Promotion,Private Contractors,Third Party Prov - Private,PH101,3/18/2013,184010,800.28,Revenue,HOLTON LE CLAY YOUTH CLUB,119515
North East Lincolnshire Council,http://statistics.data.gov.uk/id/local-authority/00FC,People And Communities,Improved Health,Health Promotion,Private Contractors,Third Party Prov - Private,PH101,3/27/2013,186307,"1,000.00",Revenue,FOSI,119689
North East Lincolnshire Council,http://statistics.data.gov.uk/id/local-authority/00FC,People And Communities,Improved Health,Health Promotion,Private Contractors,Third Party Prov - Private,PH101,3/6/2013,175902,"6,600.00",Revenue,WEIGHT WATCHERS UK LTD,101509
North East Lincolnshire Council,http://statistics.data.gov.uk/id/local-authority/00FC,People And Communities,Improved Health,Health Promotion,Private Contractors,Third Party Prov - Private,PH101,3/19/2013,180037,"8,250.00",Revenue,WEIGHT WATCHERS UK LTD,101509
North East Lincolnshire Council,http://statistics.data.gov.uk/id/local-authority/00FC,People And Communities,Improved Health,Health Promotion,Indirect Employee Expenses,Staff Training,EB122,3/6/2013,182039,330.00,Revenue,THE GRIMSBY INSTITUTE OF FURTHER,102742
North East Lincolnshire Council,http://statistics.data.gov.uk/id/local-authority/00FC,People And Communities,Improved Health,Health Promotion,Indirect Employee Expenses,Staff Training,EB122,3/6/2013,182327,330.00,Revenue,THE GRIMSBY INSTITUTE OF FURTHER,102742
North East Lincolnshire Council,http://statistics.data.gov.uk/id/local-authority/00FC,People And Communities,Improved Health,Health Promotion,Miscellaneous Expenses,Other Supplies & Services,LL110,3/20/2013,185200,300.00,Revenue,SPORTWISE MARKETING LTD,107720
North East Lincolnshire Council,http://statistics.data.gov.uk/id/local-authority/00FC,People And Communities,Improved Health,Health Promotion,Other Agencies,Fees And Commission All Pay,PJ144,3/20/2013,184982,-38.36,Revenue,FINDEL EDUCATION LIMITED,101237
North East Lincolnshire Council,http://statistics.data.gov.uk/id/local-authority/00FC,People And Communities,Improved Health,Health Trainers,Indirect Employee Expenses,Staff Training,EB122,3/4/2013,180793,625.00,Revenue,THE KNOWLEDGE ACADEMY,119097
North East Lincolnshire Council,http://statistics.data.gov.uk/id/local-authority/00FC,People And Communities,Improved Health,Health Trainers,Catering,Provisions,LB101,3/20/2013,184617,520.20,Revenue,CARE PLUS GROUP,106467
North East Lincolnshire Council,http://statistics.data.gov.uk/id/local-authority/00FC,People And Communities,Improved Health,Smoking Cessation,Indirect Employee Expenses,Staff Training,EB122,3/7/2013,182572,375.00,Revenue,EXCHANGE SUPPLIES,104788
North East Lincolnshire Council,http://statistics.data.gov.uk/id/local-authority/00FC,People And Communities,Improved Health,Smoking Cessation,Rents,Room Hire,GC103,3/27/2013,186672,352.00,Revenue,ST JAMES CHURCHWARDENS MAIN ACCOUNT,106502
North East Lincolnshire Council,http://statistics.data.gov.uk/id/local-authority/00FC,People And Communities,Improved Health,Smoking Cessation,Print Stationery / Gen Off Exp,Printing And Stationery,LD103,3/14/2013,182689,278.00,Revenue,LEE CREATIVE MARKETING LTD,104460
North East Lincolnshire Council,http://statistics.data.gov.uk/id/local-authority/00FC,People And Communities,Improved Health,Smoking Cessation,Print Stationery / Gen Off Exp,Printing And Stationery,LD103,3/14/2013,182693,417.00,Revenue,LEE CREATIVE MARKETING LTD,104460
North East Lincolnshire Council,http://statistics.data.gov.uk/id/local-authority/00FC,People And Communities,Improved Health,Smoking Cessation,Communications And Computing,Computer S/Ware - Maintenance,LF102,3/7/2013,182574,550.00,Revenue,NORTH 51 LIMITED,102609
North East Lincolnshire Council,http://statistics.data.gov.uk/id/local-authority/00FC,People And Communities,Improved Health,Smoking Cessation,Print Stationery / Gen Off Exp,Printing And Stationery,LD103,3/14/2013,182694,630.00,Revenue,LEE CREATIVE MARKETING LTD,104460
North East Lincolnshire Council,http://statistics.data.gov.uk/id/local-authority/00FC,People And Communities,Improved Health,Smoking Cessation,Print Stationery / Gen Off Exp,Printing And Stationery,LD103,3/20/2013,185061,690.00,Revenue,TSW PRINTERS,104853
North East Lincolnshire Council,http://statistics.data.gov.uk/id/local-authority/00FC,People And Communities,Improved Health,Smoking Cessation,Print Stationery / Gen Off Exp,Advertising,LD104,3/28/2013,187427,"1,000.00",Revenue,LINCS FM GROUP LTD,101523
North East Lincolnshire Council,http://statistics.data.gov.uk/id/local-authority/00FC,People And Communities,Improved Health,Smoking Cessation,Rents,Room Hire,GC103,3/5/2013,180067,272.00,Revenue,ASHBY COMMUNITY ASSOCIATION,103002
North East Lincolnshire Council,http://statistics.data.gov.uk/id/local-authority/00FC,People And Communities,Improved Health,Improved Health Operational,Equip / Furniture / Materials,Health & Safety Supplies,LA116,3/6/2013,180433,-112.90,Revenue,ARJO MED AB LTD,103268
North East Lincolnshire Council,http://statistics.data.gov.uk/id/local-authority/00FC,People And Communities,Improved Health,Improved Health Operational,Equip / Furniture / Materials,Health & Safety Supplies,LA116,3/20/2013,185206,-57.85,Revenue,PICKERINGS EUROPE LIMITED,100897
North East Lincolnshire Council,http://statistics.data.gov.uk/id/local-authority/00FC,People And Communities,Improved Health,Improved Health Operational,Equip / Furniture / Materials,Health & Safety Supplies,LA116,3/13/2013,183326,253.00,Revenue,AIDAPT BATHROOMS LTD,101164
North East Lincolnshire Council,http://statistics.data.gov.uk/id/local-authority/00FC,People And Communities,Improved Health,Improved Health Operational,Equip / Furniture / Materials,Health & Safety Supplies,LA116,3/11/2013,182922,270.00,Revenue,DRIVE MEDICAL,101627
North East Lincolnshire Council,http://statistics.data.gov.uk/id/local-authority/00FC,People And Communities,Improved Health,Improved Health Operational,Equip / Furniture / Materials,Health & Safety Supplies,LA116,3/11/2013,182923,270.00,Revenue,DRIVE MEDICAL,101627
North East Lincolnshire Council,http://statistics.data.gov.uk/id/local-authority/00FC,People And Communities,Improved Health,Improved Health Operational,Equip / Furniture / Materials,Health & Safety Supplies,LA116,3/11/2013,182123,271.60,Revenue,NOTTINGHAM REHAB LIMITED,101715
North East Lincolnshire Council,http://statistics.data.gov.uk/id/local-authority/00FC,People And Communities,Improved Health,Improved Health Operational,Equip / Furniture / Materials,Health & Safety Supplies,LA116,3/11/2013,182123,288.95,Revenue,NOTTINGHAM REHAB LIMITED,101715
North East Lincolnshire Council,http://statistics.data.gov.uk/id/local-authority/00FC,People And Communities,Improved Health,Improved Health Operational,Equip / Furniture / Materials,Health & Safety Supplies,LA116,3/20/2013,175999,299.72,Revenue,PICKERINGS EUROPE LIMITED,100897
North East Lincolnshire Council,http://statistics.data.gov.uk/id/local-authority/00FC,People And Communities,Improved Health,Improved Health Operational,Equip / Furniture / Materials,Health & Safety Supplies,LA116,3/7/2013,182007,304.20,Revenue,SUNRISE MEDICAL LTD,100990
North East Lincolnshire Council,http://statistics.data.gov.uk/id/local-authority/00FC,People And Communities,Improved Health,Improved Health Operational,Equip / Furniture / Materials,Health & Safety Supplies,LA116,3/4/2013,180734,338.40,Revenue,LISCLARE LTD,101785
North East Lincolnshire Council,http://statistics.data.gov.uk/id/local-authority/00FC,People And Communities,Improved Health,Improved Health Operational,Equip / Furniture / Materials,Health & Safety Supplies,LA116,3/14/2013,183643,372.48,Revenue,SUNRISE MEDICAL LTD,100990
North East Lincolnshire Council,http://statistics.data.gov.uk/id/local-authority/00FC,People And Communities,Improved Health,Improved Health Operational,Equip / Furniture / Materials,Health & Safety Supplies,LA116,3/13/2013,183326,374.00,Revenue,AIDAPT BATHROOMS LTD,101164
North East Lincolnshire Council,http://statistics.data.gov.uk/id/local-authority/00FC,People And Communities,Improved Health,Improved Health Operational,Equip / Furniture / Materials,Health & Safety Supplies,LA116,3/4/2013,179910,378.00,Revenue,DRIVE MEDICAL,101627
North East Lincolnshire Council,http://statistics.data.gov.uk/id/local-authority/00FC,People And Communities,Improved Health,Improved Health Operational,Equip / Furniture / Materials,Health & Safety Supplies,LA116,3/13/2013,183325,379.50,Revenue,AIDAPT BATHROOMS LTD,101164
North East Lincolnshire Council,http://statistics.data.gov.uk/id/local-authority/00FC,People And Communities,Improved Health,Improved Health Operational,Equip / Furniture / Materials,Health & Safety Supplies,LA116,3/27/2013,180798,390.00,Revenue,DRIVE MEDICAL,101627
North East Lincolnshire Council,http://statistics.data.gov.uk/id/local-authority/00FC,People And Communities,Improved Health,Improved Health Operational,Equip / Furniture / Materials,Health & Safety Supplies,LA116,3/4/2013,180819,430.00,Revenue,DCS JONCARE LIMITED,101064
North East Lincolnshire Council,http://statistics.data.gov.uk/id/local-authority/00FC,People And Communities,Improved Health,Improved Health Operational,Equip / Furniture / Materials,Health & Safety Supplies,LA116,3/7/2013,182007,456.30,Revenue,SUNRISE MEDICAL LTD,100990
North East Lincolnshire Council,http://statistics.data.gov.uk/id/local-authority/00FC,People And Communities,Improved Health,Improved Health Operational,Equip / Furniture / Materials,Health & Safety Supplies,LA116,3/6/2013,181739,468.00,Revenue,AQUAJOY BATHLIFTS LTD,101315
North East Lincolnshire Council,http://statistics.data.gov.uk/id/local-authority/00FC,People And Communities,Improved Health,Improved Health Operational,Equip / Furniture / Materials,Health & Safety Supplies,LA116,3/25/2013,185605,510.00,Revenue,TOTAL HYGIENE LTD,100849
North East Lincolnshire Council,http://statistics.data.gov.uk/id/local-authority/00FC,People And Communities,Improved Health,Improved Health Operational,Equip / Furniture / Materials,Health & Safety Supplies,LA116,3/20/2013,176604,539.57,Revenue,PICKERINGS EUROPE LIMITED,100897
North East Lincolnshire Council,http://statistics.data.gov.uk/id/local-authority/00FC,People And Communities,Improved Health,Improved Health Operational,Equip / Furniture / Materials,Health & Safety Supplies,LA116,3/7/2013,182010,570.00,Revenue,SIDHIL LTD,101166
North East Lincolnshire Council,http://statistics.data.gov.uk/id/local-authority/00FC,People And Communities,Improved Health,Improved Health Operational,Equip / Furniture / Materials,Health & Safety Supplies,LA116,3/11/2013,182123,597.00,Revenue,NOTTINGHAM REHAB LIMITED,101715
North East Lincolnshire Council,http://statistics.data.gov.uk/id/local-authority/00FC,People And Communities,Improved Health,Improved Health Operational,Equip / Furniture / Materials,Health & Safety Supplies,LA116,3/11/2013,182923,597.50,Revenue,DRIVE MEDICAL,101627
North East Lincolnshire Council,http://statistics.data.gov.uk/id/local-authority/00FC,People And Communities,Improved Health,Improved Health Operational,Equip / Furniture / Materials,Health & Safety Supplies,LA116,3/20/2013,175995,601.46,Revenue,PICKERINGS EUROPE LIMITED,100897
North East Lincolnshire Council,http://statistics.data.gov.uk/id/local-authority/00FC,People And Communities,Improved Health,Improved Health Operational,Equip / Furniture / Materials,Health & Safety Supplies,LA116,3/6/2013,182009,612.00,Revenue,THE HELPING HAND COMPANY (LEDBURY) LTD,101134
North East Lincolnshire Council,http://statistics.data.gov.uk/id/local-authority/00FC,People And Communities,Improved Health,Improved Health Operational,Equip / Furniture / Materials,Health & Safety Supplies,LA116,3/18/2013,183900,658.00,Revenue,VIKING HARDWARE LTD,101792
North East Lincolnshire Council,http://statistics.data.gov.uk/id/local-authority/00FC,People And Communities,Improved Health,Improved Health Operational,Equip / Furniture / Materials,Health & Safety Supplies,LA116,3/7/2013,180420,665.00,Revenue,WINDMILL SPECIAL NEEDS,102467
North East Lincolnshire Council,http://statistics.data.gov.uk/id/local-authority/00FC,People And Communities,Improved Health,Improved Health Operational,Equip / Furniture / Materials,Health & Safety Supplies,LA116,3/4/2013,180884,709.00,Revenue,JENX LTD,100833
North East Lincolnshire Council,http://statistics.data.gov.uk/id/local-authority/00FC,People And Communities,Improved Health,Improved Health Operational,Equip / Furniture / Materials,Health & Safety Supplies,LA116,3/13/2013,183199,787.35,Revenue,PATTERSON MEDICAL LTD,104008
North East Lincolnshire Council,http://statistics.data.gov.uk/id/local-authority/00FC,People And Communities,Improved Health,Improved Health Operational,Equip / Furniture / Materials,Health & Safety Supplies,LA116,3/21/2013,185017,850.50,Revenue,WESTHOLME,100608
North East Lincolnshire Council,http://statistics.data.gov.uk/id/local-authority/00FC,People And Communities,Improved Health,Improved Health Operational,Equip / Furniture / Materials,Health & Safety Supplies,LA116,3/25/2013,182702,855.00,Revenue,V-M ORTHOTICS LTD,103124
North East Lincolnshire Council,http://statistics.data.gov.uk/id/local-authority/00FC,People And Communities,Improved Health,Improved Health Operational,Equip / Furniture / Materials,Health & Safety Supplies,LA116,3/6/2013,181739,"1,078.00",Revenue,AQUAJOY BATHLIFTS LTD,101315
North East Lincolnshire Council,http://statistics.data.gov.uk/id/local-authority/00FC,People And Communities,Improved Health,Improved Health Operational,Equip / Furniture / Materials,Health & Safety Supplies,LA116,3/7/2013,182010,"1,100.00",Revenue,SIDHIL LTD,101166
North East Lincolnshire Council,http://statistics.data.gov.uk/id/local-authority/00FC,People And Communities,Improved Health,Improved Health Operational,Equip / Furniture / Materials,Health & Safety Supplies,LA116,3/20/2013,185095,"1,127.50",Revenue,WESTHOLME,100608
North East Lincolnshire Council,http://statistics.data.gov.uk/id/local-authority/00FC,People And Communities,Improved Health,Improved Health Operational,Equip / Furniture / Materials,Health & Safety Supplies,LA116,3/6/2013,181785,"1,496.94",Revenue,DIRECT HEALTHCARE,102678
North East Lincolnshire Council,http://statistics.data.gov.uk/id/local-authority/00FC,People And Communities,Improved Health,Improved Health Operational,Equip / Furniture / Materials,Health & Safety Supplies,LA116,3/6/2013,181785,"1,499.80",Revenue,DIRECT HEALTHCARE,102678
North East Lincolnshire Council,http://statistics.data.gov.uk/id/local-authority/00FC,People And Communities,Improved Health,Improved Health Operational,Equip / Furniture / Materials,Health & Safety Supplies,LA116,3/14/2013,181900,"2,076.00",Revenue,R82 UK LTD,101710
North East Lincolnshire Council,http://statistics.data.gov.uk/id/local-authority/00FC,People And Communities,Improved Health,Improved Health Operational,Equip / Furniture / Materials,Health & Safety Supplies,LA116,3/11/2013,182914,"2,726.30",Revenue,CEFNDY HEALTHCARE,103209
North East Lincolnshire Council,http://statistics.data.gov.uk/id/local-authority/00FC,People And Communities,Improved Health,Improved Health Operational,Health Authorities,Third Pp - Health Auth,PD101,3/13/2013,183247,"7,250.00",Revenue,VOLUNTARY ACTION NORTH EAST LINCOLNSHIRE,103631
North East Lincolnshire Council,http://statistics.data.gov.uk/id/local-authority/00FC,People And Communities,Improved Health,Improved Health Operational,Indirect Employee Expenses,Staff Training,EB122,3/14/2013,181901,275.00,Revenue,INSTITUTE OF LICENSING (EVENTS) LTD,109054
North East Lincolnshire Council,http://statistics.data.gov.uk/id/local-authority/00FC,People And Communities,Improved Health,Improved Health Operational,Indirect Employee Expenses,Staff Training,EB122,3/6/2013,180886,390.00,Revenue,TRADING STANDARDS INSTITUTE,101249
North East Lincolnshire Council,http://statistics.data.gov.uk/id/local-authority/00FC,People And Communities,Improved Health,Improved Health Operational,Communications And Computing,Computer S/Ware - Maintenance,LF102,3/4/2013,180885,"4,908.00",Revenue,IBM UNITED KINGDOM LTD,119081
North East Lincolnshire Council,http://statistics.data.gov.uk/id/local-authority/00FC,People And Communities,Vulnerable Young People,Commissioning & Performance,Catering,Provisions,LB101,3/20/2013,185267,-7.65,Revenue,VENDING ENTERPRISES,100635
North East Lincolnshire Council,http://statistics.data.gov.uk/id/local-authority/00FC,People And Communities,Vulnerable Young People,School Access Governor Student,Direct Employee Expenses,Agency Staff,EA105,3/4/2013,180650,401.82,Revenue,MATRIX SCM LTD,108117
North East Lincolnshire Council,http://statistics.data.gov.uk/id/local-authority/00FC,People And Communities,Vulnerable Young People,School Access Governor Student,Direct Employee Expenses,Agency Staff,EA105,3/18/2013,183469,401.82,Revenue,MATRIX SCM LTD,108117
North East Lincolnshire Council,http://statistics.data.gov.uk/id/local-authority/00FC,People And Communities,Vulnerable Young People,School Access Governor Student,Direct Employee Expenses,Agency Staff,EA105,3/20/2013,185210,401.82,Revenue,MATRIX SCM LTD,108117
North East Lincolnshire Council,http://statistics.data.gov.uk/id/local-authority/00FC,People And Communities,Vulnerable Young People,School Access Governor Student,Car Allowances,Travel - Employees,JF101,3/11/2013,181256,-28.77,Revenue,NYS CORPORATE,102444
North East Lincolnshire Council,http://statistics.data.gov.uk/id/local-authority/00FC,People And Communities,Vulnerable Young People,School Access Governor Student,Contract Hire-Operating Leases,Vehicles - Contract Hire,JC101,3/18/2013,183465,REDACTED COMMERCIALLY SENSITIVE,Revenue,LINKS TAXIS,100546
North East Lincolnshire Council,http://statistics.data.gov.uk/id/local-authority/00FC,People And Communities,Vulnerable Young People,School Access Governor Student,Contract Hire-Operating Leases,Vehicles - Contract Hire,JC101,3/14/2013,183464,REDACTED COMMERCIALLY SENSITIVE,Revenue,LINKS TAXIS,100546
North East Lincolnshire Council,http://statistics.data.gov.uk/id/local-authority/00FC,People And Communities,Vulnerable Young People,School Access Governor Student,Contract Hire-Operating Leases,Vehicles - Contract Hire,JC101,3/25/2013,185913,REDACTED COMMERCIALLY SENSITIVE,Revenue,COXONS CARS LIMITED,100578
North East Lincolnshire Council,http://statistics.data.gov.uk/id/local-authority/00FC,People And Communities,Vulnerable Young People,School Access Governor Student,Contract Hire-Operating Leases,Vehicles - Contract Hire,JC101,3/4/2013,180469,REDACTED COMMERCIALLY SENSITIVE,Revenue,LINKS TAXIS,100546
North East Lincolnshire Council,http://statistics.data.gov.uk/id/local-authority/00FC,People And Communities,Vulnerable Young People,School Access Governor Student,Contract Hire-Operating Leases,Vehicles - Contract Hire,JC101,3/4/2013,180472,REDACTED COMMERCIALLY SENSITIVE,Revenue,LINKS TAXIS,100546
North East Lincolnshire Council,http://statistics.data.gov.uk/id/local-authority/00FC,People And Communities,Vulnerable Young People,School Access Governor Student,Contract Hire-Operating Leases,Vehicles - Contract Hire,JC101,3/25/2013,185697,REDACTED COMMERCIALLY SENSITIVE,Revenue,AA RADIO CARS LTD,101222
North East Lincolnshire Council,http://statistics.data.gov.uk/id/local-authority/00FC,People And Communities,Vulnerable Young People,School Access Governor Student,Contract Hire-Operating Leases,Vehicles - Contract Hire,JC101,3/25/2013,185684,REDACTED COMMERCIALLY SENSITIVE,Revenue,WHEELCHAIR FRIENDLY TAXI SERVICE,101915
North East Lincolnshire Council,http://statistics.data.gov.uk/id/local-authority/00FC,People And Communities,Vulnerable Young People,School Access Governor Student,Contract Hire-Operating Leases,Vehicles - Contract Hire,JC101,3/4/2013,180621,REDACTED COMMERCIALLY SENSITIVE,Revenue,LINKS TAXIS,100546
North East Lincolnshire Council,http://statistics.data.gov.uk/id/local-authority/00FC,People And Communities,Vulnerable Young People,School Access Governor Student,Contract Hire-Operating Leases,Vehicles - Contract Hire,JC101,3/25/2013,185695,REDACTED COMMERCIALLY SENSITIVE,Revenue,AA RADIO CARS LTD,101222
North East Lincolnshire Council,http://statistics.data.gov.uk/id/local-authority/00FC,People And Communities,Vulnerable Young People,School Access Governor Student,Contract Hire-Operating Leases,Vehicles - Contract Hire,JC101,3/25/2013,185694,REDACTED COMMERCIALLY SENSITIVE,Revenue,AA RADIO CARS LTD,101222
North East Lincolnshire Council,http://statistics.data.gov.uk/id/local-authority/00FC,People And Communities,Vulnerable Young People,School Access Governor Student,Contract Hire-Operating Leases,Vehicles - Contract Hire,JC101,3/14/2013,183474,REDACTED COMMERCIALLY SENSITIVE,Revenue,LINKS TAXIS,100546
North East Lincolnshire Council,http://statistics.data.gov.uk/id/local-authority/00FC,People And Communities,Vulnerable Young People,School Access Governor Student,Contract Hire-Operating Leases,Vehicles - Contract Hire,JC101,3/18/2013,183463,REDACTED COMMERCIALLY SENSITIVE,Revenue,LINKS TAXIS,100546
North East Lincolnshire Council,http://statistics.data.gov.uk/id/local-authority/00FC,People And Communities,Vulnerable Young People,School Access Governor Student,Contract Hire-Operating Leases,Vehicles - Contract Hire,JC101,3/27/2013,186765,REDACTED COMMERCIALLY SENSITIVE,Revenue,COXONS CARS LIMITED,100578
North East Lincolnshire Council,http://statistics.data.gov.uk/id/local-authority/00FC,People And Communities,Vulnerable Young People,School Access Governor Student,Contract Hire-Operating Leases,Vehicles - Contract Hire,JC101,3/11/2013,182313,REDACTED COMMERCIALLY SENSITIVE,Revenue,LINKS TAXIS,100546
North East Lincolnshire Council,http://statistics.data.gov.uk/id/local-authority/00FC,People And Communities,Vulnerable Young People,School Access Governor Student,Contract Hire-Operating Leases,Vehicles - Contract Hire,JC101,3/4/2013,180805,REDACTED COMMERCIALLY SENSITIVE,Revenue,REVELLS TAXIS (ED/SOC SERV),100559
North East Lincolnshire Council,http://statistics.data.gov.uk/id/local-authority/00FC,People And Communities,Vulnerable Young People,School Access Governor Student,Contract Hire-Operating Leases,Vehicles - Contract Hire,JC101,3/4/2013,180470,REDACTED COMMERCIALLY SENSITIVE,Revenue,LINKS TAXIS,100546
North East Lincolnshire Council,http://statistics.data.gov.uk/id/local-authority/00FC,People And Communities,Vulnerable Young People,School Access Governor Student,Contract Hire-Operating Leases,Vehicles - Contract Hire,JC101,3/4/2013,180441,REDACTED COMMERCIALLY SENSITIVE,Revenue,LINKS TAXIS,100546
North East Lincolnshire Council,http://statistics.data.gov.uk/id/local-authority/00FC,People And Communities,Vulnerable Young People,School Access Governor Student,Contract Hire-Operating Leases,Vehicles - Contract Hire,JC101,3/6/2013,180459,REDACTED COMMERCIALLY SENSITIVE,Revenue,LINKS TAXIS,100546
North East Lincolnshire Council,http://statistics.data.gov.uk/id/local-authority/00FC,People And Communities,Vulnerable Young People,School Access Governor Student,Contract Hire-Operating Leases,Vehicles - Contract Hire,JC101,3/4/2013,180485,REDACTED COMMERCIALLY SENSITIVE,Revenue,LINKS TAXIS,100546
North East Lincolnshire Council,http://statistics.data.gov.uk/id/local-authority/00FC,People And Communities,Vulnerable Young People,School Access Governor Student,Contract Hire-Operating Leases,Vehicles - Contract Hire,JC101,3/4/2013,180807,REDACTED COMMERCIALLY SENSITIVE,Revenue,REVELLS TAXIS (ED/SOC SERV),100559
North East Lincolnshire Council,http://statistics.data.gov.uk/id/local-authority/00FC,People And Communities,Vulnerable Young People,School Access Governor Student,Contract Hire-Operating Leases,Vehicles - Contract Hire,JC101,3/4/2013,180445,REDACTED COMMERCIALLY SENSITIVE,Revenue,LINKS TAXIS,100546
North East Lincolnshire Council,http://statistics.data.gov.uk/id/local-authority/00FC,People And Communities,Vulnerable Young People,School Access Governor Student,Contract Hire-Operating Leases,Vehicles - Contract Hire,JC101,3/25/2013,185657,REDACTED COMMERCIALLY SENSITIVE,Revenue,REDACTED PERSONAL INFORMATION,REDACTED PERSONAL INFORMATION
North East Lincolnshire Council,http://statistics.data.gov.uk/id/local-authority/00FC,People And Communities,Vulnerable Young People,School Access Governor Student,Contract Hire-Operating Leases,Vehicles - Contract Hire,JC101,3/6/2013,178590,REDACTED COMMERCIALLY SENSITIVE,Revenue,AMVALE LIMITED,101030
North East Lincolnshire Council,http://statistics.data.gov.uk/id/local-authority/00FC,People And Communities,Vulnerable Young People,School Access Governor Student,Contract Hire-Operating Leases,Vehicles - Contract Hire,JC101,3/4/2013,180450,REDACTED COMMERCIALLY SENSITIVE,Revenue,LINKS TAXIS,100546
North East Lincolnshire Council,http://statistics.data.gov.uk/id/local-authority/00FC,People And Communities,Vulnerable Young People,School Access Governor Student,Contract Hire-Operating Leases,Vehicles - Contract Hire,JC101,3/6/2013,180459,REDACTED COMMERCIALLY SENSITIVE,Revenue,LINKS TAXIS,100546
North East Lincolnshire Council,http://statistics.data.gov.uk/id/local-authority/00FC,People And Communities,Vulnerable Young People,School Access Governor Student,Contract Hire-Operating Leases,Vehicles - Contract Hire,JC101,3/25/2013,185739,REDACTED COMMERCIALLY SENSITIVE,Revenue,REDACTED PERSONAL INFORMATION,REDACTED PERSONAL INFORMATION
North East Lincolnshire Council,http://statistics.data.gov.uk/id/local-authority/00FC,People And Communities,Vulnerable Young People,School Access Governor Student,Contract Hire-Operating Leases,Vehicles - Contract Hire,JC101,3/25/2013,185658,REDACTED COMMERCIALLY SENSITIVE,Revenue,MILLMAN COACHES,100700
North East Lincolnshire Council,http://statistics.data.gov.uk/id/local-authority/00FC,People And Communities,Vulnerable Young People,School Access Governor Student,Contract Hire-Operating Leases,Vehicles - Contract Hire,JC101,3/14/2013,183915,REDACTED COMMERCIALLY SENSITIVE,Revenue,REVELLS TAXIS (ED/SOC SERV),100559
North East Lincolnshire Council,http://statistics.data.gov.uk/id/local-authority/00FC,People And Communities,Vulnerable Young People,School Access Governor Student,Contract Hire-Operating Leases,Vehicles - Contract Hire,JC101,3/13/2013,180451,REDACTED COMMERCIALLY SENSITIVE,Revenue,LINKS TAXIS,100546
North East Lincolnshire Council,http://statistics.data.gov.uk/id/local-authority/00FC,People And Communities,Vulnerable Young People,School Access Governor Student,Contract Hire-Operating Leases,Vehicles - Contract Hire,JC101,3/27/2013,185911,REDACTED COMMERCIALLY SENSITIVE,Revenue,COXONS CARS LIMITED,100578
North East Lincolnshire Council,http://statistics.data.gov.uk/id/local-authority/00FC,People And Communities,Vulnerable Young People,School Access Governor Student,Contract Hire-Operating Leases,Vehicles - Contract Hire,JC101,3/4/2013,180439,REDACTED COMMERCIALLY SENSITIVE,Revenue,LINKS TAXIS,100546
North East Lincolnshire Council,http://statistics.data.gov.uk/id/local-authority/00FC,People And Communities,Vulnerable Young People,School Access Governor Student,Contract Hire-Operating Leases,Vehicles - Contract Hire,JC101,3/4/2013,180444,REDACTED COMMERCIALLY SENSITIVE,Revenue,LINKS TAXIS,100546
North East Lincolnshire Council,http://statistics.data.gov.uk/id/local-authority/00FC,People And Communities,Vulnerable Young People,School Access Governor Student,Contract Hire-Operating Leases,Vehicles - Contract Hire,JC101,3/4/2013,178799,REDACTED COMMERCIALLY SENSITIVE,Revenue,COXONS CARS LIMITED,100578
North East Lincolnshire Council,http://statistics.data.gov.uk/id/local-authority/00FC,People And Communities,Vulnerable Young People,School Access Governor Student,Contract Hire-Operating Leases,Vehicles - Contract Hire,JC101,3/25/2013,185693,REDACTED COMMERCIALLY SENSITIVE,Revenue,AA RADIO CARS LTD,101222
North East Lincolnshire Council,http://statistics.data.gov.uk/id/local-authority/00FC,People And Communities,Vulnerable Young People,School Access Governor Student,Contract Hire-Operating Leases,Vehicles - Contract Hire,JC101,3/25/2013,185682,REDACTED COMMERCIALLY SENSITIVE,Revenue,AA RADIO CARS LTD,101222
North East Lincolnshire Council,http://statistics.data.gov.uk/id/local-authority/00FC,People And Communities,Vulnerable Young People,School Access Governor Student,Contract Hire-Operating Leases,Vehicles - Contract Hire,JC101,3/4/2013,180440,REDACTED COMMERCIALLY SENSITIVE,Revenue,LINKS TAXIS,100546
North East Lincolnshire Council,http://statistics.data.gov.uk/id/local-authority/00FC,People And Communities,Vulnerable Young People,School Access Governor Student,Contract Hire-Operating Leases,Vehicles - Contract Hire,JC101,3/25/2013,185910,REDACTED COMMERCIALLY SENSITIVE,Revenue,COXONS CARS LIMITED,100578
North East Lincolnshire Council,http://statistics.data.gov.uk/id/local-authority/00FC,People And Communities,Vulnerable Young People,School Access Governor Student,Contract Hire-Operating Leases,Vehicles - Contract Hire,JC101,3/11/2013,182286,REDACTED COMMERCIALLY SENSITIVE,Revenue,LINKS TAXIS,100546
North East Lincolnshire Council,http://statistics.data.gov.uk/id/local-authority/00FC,People And Communities,Vulnerable Young People,School Access Governor Student,Contract Hire-Operating Leases,Vehicles - Contract Hire,JC101,3/4/2013,180437,REDACTED COMMERCIALLY SENSITIVE,Revenue,LINKS TAXIS,100546
North East Lincolnshire Council,http://statistics.data.gov.uk/id/local-authority/00FC,People And Communities,Vulnerable Young People,School Access Governor Student,Contract Hire-Operating Leases,Vehicles - Contract Hire,JC101,3/25/2013,185685,REDACTED COMMERCIALLY SENSITIVE,Revenue,REDACTED PERSONAL INFORMATION,REDACTED PERSONAL INFORMATION
North East Lincolnshire Council,http://statistics.data.gov.uk/id/local-authority/00FC,People And Communities,Vulnerable Young People,School Access Governor Student,Contract Hire-Operating Leases,Vehicles - Contract Hire,JC101,3/4/2013,180483,REDACTED COMMERCIALLY SENSITIVE,Revenue,LINKS TAXIS,100546
North East Lincolnshire Council,http://statistics.data.gov.uk/id/local-authority/00FC,People And Communities,Vulnerable Young People,School Access Governor Student,Contract Hire-Operating Leases,Vehicles - Contract Hire,JC101,3/11/2013,182291,REDACTED COMMERCIALLY SENSITIVE,Revenue,LINKS TAXIS,100546
North East Lincolnshire Council,http://statistics.data.gov.uk/id/local-authority/00FC,People And Communities,Vulnerable Young People,School Access Governor Student,Contract Hire-Operating Leases,Vehicles - Contract Hire,JC101,3/4/2013,180446,REDACTED COMMERCIALLY SENSITIVE,Revenue,LINKS TAXIS,100546
North East Lincolnshire Council,http://statistics.data.gov.uk/id/local-authority/00FC,People And Communities,Vulnerable Young People,School Access Governor Student,Contract Hire-Operating Leases,Vehicles - Contract Hire,JC101,3/4/2013,180449,REDACTED COMMERCIALLY SENSITIVE,Revenue,LINKS TAXIS,100546
North East Lincolnshire Council,http://statistics.data.gov.uk/id/local-authority/00FC,People And Communities,Vulnerable Young People,School Access Governor Student,Contract Hire-Operating Leases,Vehicles - Contract Hire,JC101,3/4/2013,180471,REDACTED COMMERCIALLY SENSITIVE,Revenue,LINKS TAXIS,100546
North East Lincolnshire Council,http://statistics.data.gov.uk/id/local-authority/00FC,People And Communities,Vulnerable Young People,School Access Governor Student,Contract Hire-Operating Leases,Vehicles - Contract Hire,JC101,3/25/2013,185912,REDACTED COMMERCIALLY SENSITIVE,Revenue,COXONS CARS LIMITED,100578
North East Lincolnshire Council,http://statistics.data.gov.uk/id/local-authority/00FC,People And Communities,Vulnerable Young People,School Access Governor Student,Contract Hire-Operating Leases,Vehicles - Contract Hire,JC101,3/4/2013,180462,REDACTED COMMERCIALLY SENSITIVE,Revenue,LINKS TAXIS,100546
North East Lincolnshire Council,http://statistics.data.gov.uk/id/local-authority/00FC,People And Communities,Vulnerable Young People,School Access Governor Student,Contract Hire-Operating Leases,Vehicles - Contract Hire,JC101,3/18/2013,183466,REDACTED COMMERCIALLY SENSITIVE,Revenue,LINKS TAXIS,100546
North East Lincolnshire Council,http://statistics.data.gov.uk/id/local-authority/00FC,People And Communities,Vulnerable Young People,School Access Governor Student,Contract Hire-Operating Leases,Vehicles - Contract Hire,JC101,3/14/2013,183473,REDACTED COMMERCIALLY SENSITIVE,Revenue,LINKS TAXIS,100546
North East Lincolnshire Council,http://statistics.data.gov.uk/id/local-authority/00FC,People And Communities,Vulnerable Young People,School Access Governor Student,Contract Hire-Operating Leases,Vehicles - Contract Hire,JC101,3/25/2013,185690,REDACTED COMMERCIALLY SENSITIVE,Revenue,WHEELCHAIR FRIENDLY TAXI SERVICE,101915
North East Lincolnshire Council,http://statistics.data.gov.uk/id/local-authority/00FC,People And Communities,Vulnerable Young People,School Access Governor Student,Contract Hire-Operating Leases,Vehicles - Contract Hire,JC101,3/18/2013,183478,REDACTED COMMERCIALLY SENSITIVE,Revenue,LINKS TAXIS,100546
North East Lincolnshire Council,http://statistics.data.gov.uk/id/local-authority/00FC,People And Communities,Vulnerable Young People,School Access Governor Student,Contract Hire-Operating Leases,Vehicles - Contract Hire,JC101,3/4/2013,180453,REDACTED COMMERCIALLY SENSITIVE,Revenue,LINKS TAXIS,100546
North East Lincolnshire Council,http://statistics.data.gov.uk/id/local-authority/00FC,People And Communities,Vulnerable Young People,School Access Governor Student,Contract Hire-Operating Leases,Vehicles - Contract Hire,JC101,3/4/2013,180442,REDACTED COMMERCIALLY SENSITIVE,Revenue,LINKS TAXIS,100546
North East Lincolnshire Council,http://statistics.data.gov.uk/id/local-authority/00FC,People And Communities,Vulnerable Young People,School Access Governor Student,Contract Hire-Operating Leases,Vehicles - Contract Hire,JC101,3/4/2013,180448,REDACTED COMMERCIALLY SENSITIVE,Revenue,LINKS TAXIS,100546
North East Lincolnshire Council,http://statistics.data.gov.uk/id/local-authority/00FC,People And Communities,Vulnerable Young People,School Access Governor Student,Contract Hire-Operating Leases,Vehicles - Contract Hire,JC101,3/4/2013,179875,REDACTED COMMERCIALLY SENSITIVE,Revenue,MINICABS CLEETHORPES (LINCS) LTD,102124
North East Lincolnshire Council,http://statistics.data.gov.uk/id/local-authority/00FC,People And Communities,Vulnerable Young People,School Access Governor Student,Contract Hire-Operating Leases,Vehicles - Contract Hire,JC101,3/4/2013,180452,REDACTED COMMERCIALLY SENSITIVE,Revenue,LINKS TAXIS,100546
North East Lincolnshire Council,http://statistics.data.gov.uk/id/local-authority/00FC,People And Communities,Vulnerable Young People,School Access Governor Student,Contract Hire-Operating Leases,Vehicles - Contract Hire,JC101,3/4/2013,180443,REDACTED COMMERCIALLY SENSITIVE,Revenue,LINKS TAXIS,100546
North East Lincolnshire Council,http://statistics.data.gov.uk/id/local-authority/00FC,People And Communities,Vulnerable Young People,School Access Governor Student,Contract Hire-Operating Leases,Vehicles - Contract Hire,JC101,3/6/2013,182028,REDACTED COMMERCIALLY SENSITIVE,Revenue,AMVALE LIMITED,101030
North East Lincolnshire Council,http://statistics.data.gov.uk/id/local-authority/00FC,People And Communities,Vulnerable Young People,School Access Governor Student,Contract Hire-Operating Leases,Vehicles - Contract Hire,JC101,3/11/2013,182029,REDACTED COMMERCIALLY SENSITIVE,Revenue,AMVALE LIMITED,101030
North East Lincolnshire Council,http://statistics.data.gov.uk/id/local-authority/00FC,People And Communities,Vulnerable Young People,School Access Governor Student,Contract Hire-Operating Leases,Vehicles - Contract Hire,JC101,3/11/2013,182034,REDACTED COMMERCIALLY SENSITIVE,Revenue,AMVALE LIMITED,101030
North East Lincolnshire Council,http://statistics.data.gov.uk/id/local-authority/00FC,People And Communities,Vulnerable Young People,School Access Governor Student,Contract Hire-Operating Leases,Vehicles - Contract Hire,JC101,3/4/2013,179886,REDACTED COMMERCIALLY SENSITIVE,Revenue,MINICABS CLEETHORPES (LINCS) LTD,102124
North East Lincolnshire Council,http://statistics.data.gov.uk/id/local-authority/00FC,People And Communities,Vulnerable Young People,School Access Governor Student,Contract Hire-Operating Leases,Vehicles - Contract Hire,JC101,3/14/2013,183486,REDACTED COMMERCIALLY SENSITIVE,Revenue,LINKS TAXIS,100546
North East Lincolnshire Council,http://statistics.data.gov.uk/id/local-authority/00FC,People And Communities,Vulnerable Young People,School Access Governor Student,Contract Hire-Operating Leases,Vehicles - Contract Hire,JC101,3/11/2013,181882,REDACTED COMMERCIALLY SENSITIVE,Revenue,LINKS TAXIS,100546
North East Lincolnshire Council,http://statistics.data.gov.uk/id/local-authority/00FC,People And Communities,Vulnerable Young People,School Access Governor Student,Contract Hire-Operating Leases,Vehicles - Contract Hire,JC101,3/11/2013,182287,REDACTED COMMERCIALLY SENSITIVE,Revenue,LINKS TAXIS,100546
North East Lincolnshire Council,http://statistics.data.gov.uk/id/local-authority/00FC,People And Communities,Vulnerable Young People,School Access Governor Student,Contract Hire-Operating Leases,Vehicles - Contract Hire,JC101,3/7/2013,182311,REDACTED COMMERCIALLY SENSITIVE,Revenue,LINKS TAXIS,100546
North East Lincolnshire Council,http://statistics.data.gov.uk/id/local-authority/00FC,People And Communities,Vulnerable Young People,School Access Governor Student,Contract Hire-Operating Leases,Vehicles - Contract Hire,JC101,3/4/2013,180467,REDACTED COMMERCIALLY SENSITIVE,Revenue,LINKS TAXIS,100546
North East Lincolnshire Council,http://statistics.data.gov.uk/id/local-authority/00FC,People And Communities,Vulnerable Young People,School Access Governor Student,Contract Hire-Operating Leases,Vehicles - Contract Hire,JC101,3/11/2013,182630,REDACTED COMMERCIALLY SENSITIVE,Revenue,LINKS TAXIS,100546
North East Lincolnshire Council,http://statistics.data.gov.uk/id/local-authority/00FC,People And Communities,Vulnerable Young People,School Access Governor Student,Contract Hire-Operating Leases,Vehicles - Contract Hire,JC101,3/11/2013,182288,REDACTED COMMERCIALLY SENSITIVE,Revenue,LINKS TAXIS,100546
North East Lincolnshire Council,http://statistics.data.gov.uk/id/local-authority/00FC,People And Communities,Vulnerable Young People,School Access Governor Student,Contract Hire-Operating Leases,Vehicles - Contract Hire,JC101,3/7/2013,182310,REDACTED COMMERCIALLY SENSITIVE,Revenue,LINKS TAXIS,100546
North East Lincolnshire Council,http://statistics.data.gov.uk/id/local-authority/00FC,People And Communities,Vulnerable Young People,School Access Governor Student,Contract Hire-Operating Leases,Vehicles - Contract Hire,JC101,3/27/2013,185691,REDACTED COMMERCIALLY SENSITIVE,Revenue,REDACTED PERSONAL INFORMATION,REDACTED PERSONAL INFORMATION
North East Lincolnshire Council,http://statistics.data.gov.uk/id/local-authority/00FC,People And Communities,Vulnerable Young People,School Access Governor Student,Contract Hire-Operating Leases,Vehicles - Contract Hire,JC101,3/7/2013,182312,REDACTED COMMERCIALLY SENSITIVE,Revenue,LINKS TAXIS,100546
North East Lincolnshire Council,http://statistics.data.gov.uk/id/local-authority/00FC,People And Communities,Vulnerable Young People,School Access Governor Student,Contract Hire-Operating Leases,Vehicles - Contract Hire,JC101,3/4/2013,180484,REDACTED COMMERCIALLY SENSITIVE,Revenue,LINKS TAXIS,100546
North East Lincolnshire Council,http://statistics.data.gov.uk/id/local-authority/00FC,People And Communities,Vulnerable Young People,School Access Governor Student,Contract Hire-Operating Leases,Vehicles - Contract Hire,JC101,3/25/2013,185703,REDACTED COMMERCIALLY SENSITIVE,Revenue,HUXMANOR LTD,101444
North East Lincolnshire Council,http://statistics.data.gov.uk/id/local-authority/00FC,People And Communities,Vulnerable Young People,School Access Governor Student,Contract Hire-Operating Leases,Vehicles - Contract Hire,JC101,3/25/2013,185777,REDACTED COMMERCIALLY SENSITIVE,Revenue,CABBYCARS,100847
North East Lincolnshire Council,http://statistics.data.gov.uk/id/local-authority/00FC,People And Communities,Vulnerable Young People,School Access Governor Student,Contract Hire-Operating Leases,Vehicles - Contract Hire,JC101,3/11/2013,182289,REDACTED COMMERCIALLY SENSITIVE,Revenue,LINKS TAXIS,100546
North East Lincolnshire Council,http://statistics.data.gov.uk/id/local-authority/00FC,People And Communities,Vulnerable Young People,School Access Governor Student,Contract Hire-Operating Leases,Vehicles - Contract Hire,JC101,3/25/2013,185698,REDACTED COMMERCIALLY SENSITIVE,Revenue,HUXMANOR LTD,101444
North East Lincolnshire Council,http://statistics.data.gov.uk/id/local-authority/00FC,People And Communities,Vulnerable Young People,School Access Governor Student,Contract Hire-Operating Leases,Vehicles - Contract Hire,JC101,3/14/2013,183918,REDACTED COMMERCIALLY SENSITIVE,Revenue,REVELLS TAXIS (ED/SOC SERV),100559
North East Lincolnshire Council,http://statistics.data.gov.uk/id/local-authority/00FC,People And Communities,Vulnerable Young People,School Access Governor Student,Contract Hire-Operating Leases,Vehicles - Contract Hire,JC101,3/25/2013,185705,REDACTED COMMERCIALLY SENSITIVE,Revenue,HUXMANOR LTD,101444
North East Lincolnshire Council,http://statistics.data.gov.uk/id/local-authority/00FC,People And Communities,Vulnerable Young People,School Access Governor Student,Contract Hire-Operating Leases,Vehicles - Contract Hire,JC101,3/4/2013,179876,REDACTED COMMERCIALLY SENSITIVE,Revenue,MINICABS CLEETHORPES (LINCS) LTD,102124
North East Lincolnshire Council,http://statistics.data.gov.uk/id/local-authority/00FC,People And Communities,Vulnerable Young People,School Access Governor Student,Contract Hire-Operating Leases,Vehicles - Contract Hire,JC101,3/25/2013,185683,REDACTED COMMERCIALLY SENSITIVE,Revenue,MILLMAN COACHES,100700
North East Lincolnshire Council,http://statistics.data.gov.uk/id/local-authority/00FC,People And Communities,Vulnerable Young People,Strategic Management,Indirect Employee Expenses,Allowances - Employees,EB110,3/20/2013,184342,472.50,Revenue,GRIMSBY & DISTRICT TEACHERS ASSOCIATION,107358
North East Lincolnshire Council,http://statistics.data.gov.uk/id/local-authority/00FC,People And Communities,Vulnerable Young People,Strategic Management,Indirect Employee Expenses,Allowances - Employees,EB110,3/4/2013,180915,607.50,Revenue,NASUWT G76 GRIMSBY & DISTRICT,107363
North East Lincolnshire Council,http://statistics.data.gov.uk/id/local-authority/00FC,People And Communities,Vulnerable Young People,Strategic Management,Indirect Employee Expenses,Allowances - Employees,EB110,3/20/2013,184340,945.00,Revenue,NASUWT G76 GRIMSBY & DISTRICT,107363
North East Lincolnshire Council,http://statistics.data.gov.uk/id/local-authority/00FC,People And Communities,Vulnerable Young People,Strategic Management,Direct Employee Expenses,Agency Staff,EA105,3/4/2013,179849,"9,849.35",Revenue,JD AND KM BLACKMORE PARTNERS,102197
North East Lincolnshire Council,http://statistics.data.gov.uk/id/local-authority/00FC,People And Communities,Vulnerable Young People,Strategic Management,Direct Employee Expenses,Agency Staff,EA105,3/4/2013,180812,"10,375.75",Revenue,JD AND KM BLACKMORE PARTNERS,102197
North East Lincolnshire Council,http://statistics.data.gov.uk/id/local-authority/00FC,People And Communities,Vulnerable Young People,Sen/Inclusion,Consultancy,Consultancy,PL101,3/11/2013,182314,450.16,Revenue,GLENN ALLGOOD,109255
North East Lincolnshire Council,http://statistics.data.gov.uk/id/local-authority/00FC,People And Communities,Vulnerable Young People,Sen/Inclusion,Consultancy,Consultancy,PL101,3/7/2013,182283,"3,300.00",Revenue,GLENN ALLGOOD,109255
North East Lincolnshire Council,http://statistics.data.gov.uk/id/local-authority/00FC,People And Communities,Vulnerable Young People,Sen/Inclusion,Water Services,Water,GE101,3/21/2013,185661,302.87,Revenue,WESCOT CREDIT SERVICES LTD,109216
North East Lincolnshire Council,http://statistics.data.gov.uk/id/local-authority/00FC,People And Communities,Vulnerable Young People,Sen/Inclusion,Private Contractors,Third Party Prov - Private,PH101,3/7/2013,182003,"-13,011.41",Revenue,REFLEXION CARE GROUP LIMITED,106975
North East Lincolnshire Council,http://statistics.data.gov.uk/id/local-authority/00FC,People And Communities,Vulnerable Young People,Sen/Inclusion,Private Contractors,Third Party Prov - Private,PH101,3/6/2013,182319,"1,107.63",Revenue,KEYS 7KS,109509
North East Lincolnshire Council,http://statistics.data.gov.uk/id/local-authority/00FC,People And Communities,Vulnerable Young People,Sen/Inclusion,Private Contractors,Third Party Prov - Private,PH101,3/11/2013,181843,"2,772.00",Revenue,REFLEXION CARE GROUP LIMITED,106975
North East Lincolnshire Council,http://statistics.data.gov.uk/id/local-authority/00FC,People And Communities,Vulnerable Young People,Sen/Inclusion,Private Contractors,Third Party Prov - Private,PH101,3/20/2013,184902,"2,800.00",Revenue,DKM ASSESSMENT & VERIFICATION LTD,101643
North East Lincolnshire Council,http://statistics.data.gov.uk/id/local-authority/00FC,People And Communities,Vulnerable Young People,Sen/Inclusion,Private Contractors,Third Party Prov - Private,PH101,3/7/2013,181842,"3,069.00",Revenue,REFLEXION CARE GROUP LIMITED,106975
North East Lincolnshire Council,http://statistics.data.gov.uk/id/local-authority/00FC,People And Communities,Vulnerable Young People,Sen/Inclusion,Private Contractors,Third Party Prov - Private,PH101,3/6/2013,180140,"3,069.00",Revenue,REFLEXION CARE GROUP LIMITED,106975
North East Lincolnshire Council,http://statistics.data.gov.uk/id/local-authority/00FC,People And Communities,Vulnerable Young People,Sen/Inclusion,Other Local Authorities,Third Pp - Other Local Auth,PC101,3/20/2013,184902,"8,400.00",Revenue,DKM ASSESSMENT & VERIFICATION LTD,101643
North East Lincolnshire Council,http://statistics.data.gov.uk/id/local-authority/00FC,People And Communities,Vulnerable Young People,Sen/Inclusion,Private Contractors,Third Party Prov - Private,PH101,3/11/2013,181843,"13,048.20",Revenue,REFLEXION CARE GROUP LIMITED,106975
North East Lincolnshire Council,http://statistics.data.gov.uk/id/local-authority/00FC,People And Communities,Vulnerable Young People,Sen/Inclusion,Private Contractors,Third Party Prov - Private,PH101,3/4/2013,180144,"13,200.00",Revenue,TURNAROUND,101726
North East Lincolnshire Council,http://statistics.data.gov.uk/id/local-authority/00FC,People And Communities,Vulnerable Young People,Sen/Inclusion,Private Contractors,Third Party Prov - Private,PH101,3/7/2013,181842,"14,446.20",Revenue,REFLEXION CARE GROUP LIMITED,106975
North East Lincolnshire Council,http://statistics.data.gov.uk/id/local-authority/00FC,People And Communities,Vulnerable Young People,Sen/Inclusion,Private Contractors,Third Party Prov - Private,PH101,3/7/2013,182003,"15,783.41",Revenue,REFLEXION CARE GROUP LIMITED,106975
North East Lincolnshire Council,http://statistics.data.gov.uk/id/local-authority/00FC,People And Communities,Vulnerable Young People,Sen/Inclusion,Other Local Authorities,Third Pp - Other Local Auth,PC101,3/7/2013,182003,"17,008.20",Revenue,REFLEXION CARE GROUP LIMITED,106975
North East Lincolnshire Council,http://statistics.data.gov.uk/id/local-authority/00FC,People And Communities,Vulnerable Young People,Sen/Inclusion,Private Contractors,Third Party Prov - Private,PH101,3/20/2013,184910,"18,000.00",Revenue,TIMEOUT HOMES LTD,110615
North East Lincolnshire Council,http://statistics.data.gov.uk/id/local-authority/00FC,People And Communities,Vulnerable Young People,Sen/Inclusion,Other Local Authorities,Third Pp - Other Local Auth,PC101,3/6/2013,180140,"18,830.48",Revenue,REFLEXION CARE GROUP LIMITED,106975
North East Lincolnshire Council,http://statistics.data.gov.uk/id/local-authority/00FC,People And Communities,Vulnerable Young People,Sen/Inclusion,Private Contractors,Third Party Prov - Private,PH101,3/4/2013,180143,"19,400.08",Revenue,PHYSIS QUANTUM,118777
North East Lincolnshire Council,http://statistics.data.gov.uk/id/local-authority/00FC,People And Communities,Vulnerable Young People,Sen/Inclusion,Private Contractors,Third Party Prov - Private,PH101,3/7/2013,182284,"56,250.00",Revenue,KISIMUL SCHOOL,100406
North East Lincolnshire Council,http://statistics.data.gov.uk/id/local-authority/00FC,People And Communities,Vulnerable Young People,Sen/Inclusion,Private Contractors,Third Party Prov - Private,PH101,3/7/2013,182282,"60,606.33",Revenue,KISIMUL SCHOOL,100406
North East Lincolnshire Council,http://statistics.data.gov.uk/id/local-authority/00FC,People And Communities,Vulnerable Young People,Sen/Inclusion,Contributions To Provisions,Contributions - Other,LK103,3/20/2013,184901,750.00,Revenue,DKM ASSESSMENT & VERIFICATION LTD,101643
North East Lincolnshire Council,http://statistics.data.gov.uk/id/local-authority/00FC,People And Communities,Vulnerable Young People,Sen/Inclusion,Indirect Employee Expenses,Mandatory Compensation,EB106,3/27/2013,186661,REDACTED COMMERCIALLY SENSITIVE,Revenue,WILKIN CHAPMAN SOLICITORS,100948
North East Lincolnshire Council,http://statistics.data.gov.uk/id/local-authority/00FC,People And Communities,Vulnerable Young People,Sen/Inclusion,Direct Employee Expenses,Agency Staff,EA105,3/11/2013,181847,"4,537.50",Revenue,FOCUSCHANGE LTD,112011
North East Lincolnshire Council,http://statistics.data.gov.uk/id/local-authority/00FC,People And Communities,Vulnerable Young People,Sen/Inclusion,Print Stationery / Gen Off Exp,Printing And Stationery,LD103,3/11/2013,180428,-156.06,Revenue,LYRECO UK LIMITED,101120
North East Lincolnshire Council,http://statistics.data.gov.uk/id/local-authority/00FC,People And Communities,Vulnerable Young People,Sen/Inclusion,Print Stationery / Gen Off Exp,Printing And Stationery,LD103,3/13/2013,180435,-91.58,Revenue,LYRECO UK LIMITED,101120
North East Lincolnshire Council,http://statistics.data.gov.uk/id/local-authority/00FC,People And Communities,Vulnerable Young People,Sen/Inclusion,Print Stationery / Gen Off Exp,Printing And Stationery,LD103,3/11/2013,180428,-4.80,Revenue,LYRECO UK LIMITED,101120
North East Lincolnshire Council,http://statistics.data.gov.uk/id/local-authority/00FC,People And Communities,Vulnerable Young People,Sen/Inclusion,Print Stationery / Gen Off Exp,Printing And Stationery,LD103,3/13/2013,180435,-4.80,Revenue,LYRECO UK LIMITED,101120
North East Lincolnshire Council,http://statistics.data.gov.uk/id/local-authority/00FC,People And Communities,Vulnerable Young People,Sen/Inclusion,Print Stationery / Gen Off Exp,Printing And Stationery,LD103,3/11/2013,180428,-3.05,Revenue,LYRECO UK LIMITED,101120
North East Lincolnshire Council,http://statistics.data.gov.uk/id/local-authority/00FC,People And Communities,Vulnerable Young People,Sen/Inclusion,Equip / Furniture / Materials,Teaching Materials,LA117,3/13/2013,183605,309.25,Revenue,GL EDUCATION GROUP LTD,118819
North East Lincolnshire Council,http://statistics.data.gov.uk/id/local-authority/00FC,People And Communities,Vulnerable Young People,Sen/Inclusion,Other Local Authorities,Third Pp - Other Local Auth,PC101,3/18/2013,183650,"3,683.00",Revenue,N LINCS & GOOLE HOSPITALS NHS,111074
North East Lincolnshire Council,http://statistics.data.gov.uk/id/local-authority/00FC,People And Communities,Vulnerable Young People,Sen/Inclusion,Other Local Authorities,Third Pp - Other Local Auth,PC101,3/20/2013,184919,"3,683.00",Revenue,N LINCS & GOOLE HOSPITALS NHS,111074
North East Lincolnshire Council,http://statistics.data.gov.uk/id/local-authority/00FC,People And Communities,Vulnerable Young People,Sen/Inclusion,Contributions To Provisions,Contributions - Other,LK103,3/20/2013,185244,"3,129.50",Revenue,PRI LIBERATOR LTD,101858
North East Lincolnshire Council,http://statistics.data.gov.uk/id/local-authority/00FC,People And Communities,Vulnerable Young People,Sen/Inclusion,Direct Employee Expenses,Agency Supply Teachers,EA104,3/6/2013,181732,-560.00,Revenue,RANDSTAD EDUCATION LTD,102465
North East Lincolnshire Council,http://statistics.data.gov.uk/id/local-authority/00FC,People And Communities,Vulnerable Young People,Sen/Inclusion,Direct Employee Expenses,Agency Supply Teachers,EA104,3/6/2013,177440,-70.00,Revenue,RANDSTAD EDUCATION LTD,102465
North East Lincolnshire Council,http://statistics.data.gov.uk/id/local-authority/00FC,People And Communities,Vulnerable Young People,Sen/Inclusion,Direct Employee Expenses,Agency Supply Teachers,EA104,3/6/2013,181801,336.00,Revenue,RANDSTAD EDUCATION LTD,102465
North East Lincolnshire Council,http://statistics.data.gov.uk/id/local-authority/00FC,People And Communities,Vulnerable Young People,Sen/Inclusion,Direct Employee Expenses,Agency Supply Teachers,EA104,3/6/2013,181797,336.00,Revenue,RANDSTAD EDUCATION LTD,102465
North East Lincolnshire Council,http://statistics.data.gov.uk/id/local-authority/00FC,People And Communities,Vulnerable Young People,Sen/Inclusion,Direct Employee Expenses,Agency Supply Teachers,EA104,3/4/2013,180875,350.00,Revenue,SUPPLY DESK LTD,101155
North East Lincolnshire Council,http://statistics.data.gov.uk/id/local-authority/00FC,People And Communities,Vulnerable Young People,Sen/Inclusion,Direct Employee Expenses,Agency Supply Teachers,EA104,3/25/2013,184943,412.00,Revenue,TEACHING PERSONNEL LTD,101305
North East Lincolnshire Council,http://statistics.data.gov.uk/id/local-authority/00FC,People And Communities,Vulnerable Young People,Sen/Inclusion,Direct Employee Expenses,Agency Supply Teachers,EA104,3/6/2013,181794,448.00,Revenue,RANDSTAD EDUCATION LTD,102465
North East Lincolnshire Council,http://statistics.data.gov.uk/id/local-authority/00FC,People And Communities,Vulnerable Young People,Sen/Inclusion,Direct Employee Expenses,Agency Supply Teachers,EA104,3/4/2013,180721,555.00,Revenue,PROTOCOL EDUCATION LTD,102438
North East Lincolnshire Council,http://statistics.data.gov.uk/id/local-authority/00FC,People And Communities,Vulnerable Young People,Sen/Inclusion,Direct Employee Expenses,Agency Supply Teachers,EA104,3/6/2013,181803,560.00,Revenue,RANDSTAD EDUCATION LTD,102465
North East Lincolnshire Council,http://statistics.data.gov.uk/id/local-authority/00FC,People And Communities,Vulnerable Young People,Sen/Inclusion,Direct Employee Expenses,Agency Supply Teachers,EA104,3/6/2013,181800,560.00,Revenue,RANDSTAD EDUCATION LTD,102465
North East Lincolnshire Council,http://statistics.data.gov.uk/id/local-authority/00FC,People And Communities,Vulnerable Young People,Sen/Inclusion,Direct Employee Expenses,Agency Supply Teachers,EA104,3/20/2013,184869,593.75,Revenue,TEACHING PERSONNEL LTD,101305
North East Lincolnshire Council,http://statistics.data.gov.uk/id/local-authority/00FC,People And Communities,Vulnerable Young People,Sen/Inclusion,Direct Employee Expenses,Agency Supply Teachers,EA104,3/6/2013,181796,716.00,Revenue,RANDSTAD EDUCATION LTD,102465
North East Lincolnshire Council,http://statistics.data.gov.uk/id/local-authority/00FC,People And Communities,Vulnerable Young People,Sen/Inclusion,Direct Employee Expenses,Agency Supply Teachers,EA104,3/6/2013,181793,716.00,Revenue,RANDSTAD EDUCATION LTD,102465
North East Lincolnshire Council,http://statistics.data.gov.uk/id/local-authority/00FC,People And Communities,Vulnerable Young People,Sen/Inclusion,Direct Employee Expenses,Agency Supply Teachers,EA104,3/6/2013,181795,716.00,Revenue,RANDSTAD EDUCATION LTD,102465
North East Lincolnshire Council,http://statistics.data.gov.uk/id/local-authority/00FC,People And Communities,Vulnerable Young People,Sen/Inclusion,Direct Employee Expenses,Agency Supply Teachers,EA104,3/18/2013,183710,720.00,Revenue,VISION FOR EDUCATION LTD,102399
North East Lincolnshire Council,http://statistics.data.gov.uk/id/local-authority/00FC,People And Communities,Vulnerable Young People,Sen/Inclusion,Direct Employee Expenses,Agency Supply Teachers,EA104,3/14/2013,183708,720.00,Revenue,VISION FOR EDUCATION LTD,102399
North East Lincolnshire Council,http://statistics.data.gov.uk/id/local-authority/00FC,People And Communities,Vulnerable Young People,Sen/Inclusion,Direct Employee Expenses,Agency Supply Teachers,EA104,3/14/2013,183712,750.00,Revenue,VISION FOR EDUCATION LTD,102399
North East Lincolnshire Council,http://statistics.data.gov.uk/id/local-authority/00FC,People And Communities,Vulnerable Young People,Sen/Inclusion,Direct Employee Expenses,Agency Supply Teachers,EA104,3/4/2013,180715,875.00,Revenue,SUPPLY DESK LTD,101155
North East Lincolnshire Council,http://statistics.data.gov.uk/id/local-authority/00FC,People And Communities,Vulnerable Young People,Sen/Inclusion,Direct Employee Expenses,Agency Supply Teachers,EA104,3/6/2013,181788,895.00,Revenue,RANDSTAD EDUCATION LTD,102465
North East Lincolnshire Council,http://statistics.data.gov.uk/id/local-authority/00FC,People And Communities,Vulnerable Young People,Sen/Inclusion,Direct Employee Expenses,Agency Supply Teachers,EA104,3/6/2013,181789,895.00,Revenue,RANDSTAD EDUCATION LTD,102465
North East Lincolnshire Council,http://statistics.data.gov.uk/id/local-authority/00FC,People And Communities,Vulnerable Young People,Sen/Inclusion,Direct Employee Expenses,Agency Supply Teachers,EA104,3/6/2013,181792,895.00,Revenue,RANDSTAD EDUCATION LTD,102465
North East Lincolnshire Council,http://statistics.data.gov.uk/id/local-authority/00FC,People And Communities,Vulnerable Young People,Sen/Inclusion,Direct Employee Expenses,Agency Supply Teachers,EA104,3/6/2013,181799,895.00,Revenue,RANDSTAD EDUCATION LTD,102465
North East Lincolnshire Council,http://statistics.data.gov.uk/id/local-authority/00FC,People And Communities,Vulnerable Young People,Sen/Inclusion,Direct Employee Expenses,Agency Supply Teachers,EA104,3/20/2013,184874,895.00,Revenue,RANDSTAD EDUCATION LTD,102465
North East Lincolnshire Council,http://statistics.data.gov.uk/id/local-authority/00FC,People And Communities,Vulnerable Young People,Sen/Inclusion,Direct Employee Expenses,Agency Supply Teachers,EA104,3/20/2013,184876,950.00,Revenue,TEACHING PERSONNEL LTD,101305
North East Lincolnshire Council,http://statistics.data.gov.uk/id/local-authority/00FC,People And Communities,Vulnerable Young People,Sen/Inclusion,Direct Employee Expenses,Agency Supply Teachers,EA104,3/21/2013,184883,"1,121.00",Revenue,RANDSTAD EDUCATION LTD,102465
North East Lincolnshire Council,http://statistics.data.gov.uk/id/local-authority/00FC,People And Communities,Vulnerable Young People,Sen/Inclusion,Rep Alterations Maint Building,Buildings - Repairs And Maint,GA102,3/18/2013,184069,480.00,Revenue,HAITH'S HEATING LTD,101342
North East Lincolnshire Council,http://statistics.data.gov.uk/id/local-authority/00FC,People And Communities,Vulnerable Young People,Sen/Inclusion,Rep Alterations Maint Building,Buildings - Repairs And Maint,GA102,3/27/2013,186188,558.00,Revenue,ARK JOINERY AND BUILDING MAINTENANCE LTD,101126
North East Lincolnshire Council,http://statistics.data.gov.uk/id/local-authority/00FC,People And Communities,Vulnerable Young People,Sen/Inclusion,Rep Alterations Maint Building,Buildings - Repairs And Maint,GA102,3/4/2013,180716,655.00,Revenue,UNIBUILD BUILDING CONT LTD,101469
North East Lincolnshire Council,http://statistics.data.gov.uk/id/local-authority/00FC,People And Communities,Vulnerable Young People,Sen/Inclusion,Energy Costs,Electricity,GB102,3/4/2013,180723,757.12,Revenue,NPOWER LIMITED,101414
North East Lincolnshire Council,http://statistics.data.gov.uk/id/local-authority/00FC,People And Communities,Vulnerable Young People,Sen/Inclusion,Energy Costs,Gas,GB101,3/4/2013,180745,924.78,Revenue,BRITISH GAS TRADING LTD,101507
North East Lincolnshire Council,http://statistics.data.gov.uk/id/local-authority/00FC,People And Communities,Vulnerable Young People,Sen/Inclusion,Rep Alterations Maint Building,Buildings - Repairs And Maint,GA102,3/27/2013,186186,"1,067.00",Revenue,GRADE 3 LIMITED,101924
North East Lincolnshire Council,http://statistics.data.gov.uk/id/local-authority/00FC,People And Communities,Vulnerable Young People,Sen/Inclusion,Rep Alterations Maint Building,Buildings - Repairs And Maint,GA102,3/27/2013,186187,"2,462.00",Revenue,RSB FLOORING,103570
North East Lincolnshire Council,http://statistics.data.gov.uk/id/local-authority/00FC,People And Communities,Vulnerable Young People,Sen/Inclusion,Communications And Computing,Computer H/Ware - Purchases,LF105,3/25/2013,180832,291.96,Revenue,INSIGHT DIRECT (UK) LTD,101011
North East Lincolnshire Council,http://statistics.data.gov.uk/id/local-authority/00FC,People And Communities,Vulnerable Young People,Sen/Inclusion,Communications And Computing,Computer H/Ware - Purchases,LF105,3/18/2013,183288,420.00,Revenue,INSIGHT DIRECT (UK) LTD,101011
North East Lincolnshire Council,http://statistics.data.gov.uk/id/local-authority/00FC,People And Communities,Vulnerable Young People,Sen/Inclusion,Communications And Computing,Computer H/Ware - Purchases,LF105,3/27/2013,185254,449.00,Revenue,DELL COMPUTER CORPORATION LTD,100892
North East Lincolnshire Council,http://statistics.data.gov.uk/id/local-authority/00FC,People And Communities,Vulnerable Young People,Sen/Inclusion,Communications And Computing,Computer H/Ware - Purchases,LF105,3/11/2013,176347,844.80,Revenue,DELL COMPUTER CORPORATION LTD,100892
North East Lincolnshire Council,http://statistics.data.gov.uk/id/local-authority/00FC,People And Communities,Vulnerable Young People,Sen/Inclusion,Private Contractors,Third Party Prov - Private,PH101,3/4/2013,180568,456.00,Revenue,A4E CONSULT LTD,101656
North East Lincolnshire Council,http://statistics.data.gov.uk/id/local-authority/00FC,People And Communities,Vulnerable Young People,Sen/Inclusion,Indirect Employee Expenses,Mandatory Compensation,EB106,3/13/2013,142949,REDACTED COMMERCIALLY SENSITIVE,Revenue,REDACTED PERSONAL INFORMATION,REDACTED PERSONAL INFORMATION
North East Lincolnshire Council,http://statistics.data.gov.uk/id/local-authority/00FC,People And Communities,Vulnerable Young People,Sen/Inclusion,Direct Employee Expenses,Pay Teachers Supply Cover,EA106,3/14/2013,183788,586.15,Revenue,TEACHING PERSONNEL LTD,101305
North East Lincolnshire Council,http://statistics.data.gov.uk/id/local-authority/00FC,People And Communities,Vulnerable Young People,Sen/Inclusion,Private Contractors,Concessionary Fares,PH104,3/14/2013,183778,300.00,Revenue,DKM ASSESSMENT & VERIFICATION LTD,101643
North East Lincolnshire Council,http://statistics.data.gov.uk/id/local-authority/00FC,People And Communities,Vulnerable Young People,Sen/Inclusion,Private Contractors,Concessionary Fares,PH104,3/14/2013,183779,300.00,Revenue,DKM ASSESSMENT & VERIFICATION LTD,101643
North East Lincolnshire Council,http://statistics.data.gov.uk/id/local-authority/00FC,People And Communities,Vulnerable Young People,Sen/Inclusion,Private Contractors,Concessionary Fares,PH104,3/14/2013,183780,300.00,Revenue,DKM ASSESSMENT & VERIFICATION LTD,101643
North East Lincolnshire Council,http://statistics.data.gov.uk/id/local-authority/00FC,People And Communities,Vulnerable Young People,Sen/Inclusion,Private Contractors,Concessionary Fares,PH104,3/14/2013,183781,300.00,Revenue,DKM ASSESSMENT & VERIFICATION LTD,101643
North East Lincolnshire Council,http://statistics.data.gov.uk/id/local-authority/00FC,People And Communities,Vulnerable Young People,Sen/Inclusion,Private Contractors,Concessionary Fares,PH104,3/14/2013,183782,300.00,Revenue,DKM ASSESSMENT & VERIFICATION LTD,101643
North East Lincolnshire Council,http://statistics.data.gov.uk/id/local-authority/00FC,People And Communities,Vulnerable Young People,Sen/Inclusion,Private Contractors,Concessionary Fares,PH104,3/18/2013,183785,300.00,Revenue,DKM ASSESSMENT & VERIFICATION LTD,101643
North East Lincolnshire Council,http://statistics.data.gov.uk/id/local-authority/00FC,People And Communities,Vulnerable Young People,Sen/Inclusion,Private Contractors,Concessionary Fares,PH104,3/18/2013,183786,300.00,Revenue,DKM ASSESSMENT & VERIFICATION LTD,101643
North East Lincolnshire Council,http://statistics.data.gov.uk/id/local-authority/00FC,People And Communities,Vulnerable Young People,Sen/Inclusion,Private Contractors,Third Party Prov - Private,PH101,3/14/2013,183787,342.00,Revenue,CPO MEDIA,102186
North East Lincolnshire Council,http://statistics.data.gov.uk/id/local-authority/00FC,People And Communities,Vulnerable Young People,Sen/Inclusion,Private Contractors,Concessionary Fares,PH104,3/4/2013,178348,360.00,Revenue,DKM ASSESSMENT & VERIFICATION LTD,101643
North East Lincolnshire Council,http://statistics.data.gov.uk/id/local-authority/00FC,People And Communities,Vulnerable Young People,Sen/Inclusion,Private Contractors,Third Party Prov - Private,PH101,3/14/2013,183777,486.00,Revenue,DKM ASSESSMENT & VERIFICATION LTD,101643
North East Lincolnshire Council,http://statistics.data.gov.uk/id/local-authority/00FC,People And Communities,Vulnerable Young People,Sen/Inclusion,Private Contractors,Third Party Prov - Private,PH101,3/14/2013,183764,500.00,Revenue,DKM ASSESSMENT & VERIFICATION LTD,101643
North East Lincolnshire Council,http://statistics.data.gov.uk/id/local-authority/00FC,People And Communities,Vulnerable Young People,Sen/Inclusion,Private Contractors,Third Party Prov - Private,PH101,3/14/2013,183769,750.00,Revenue,DKM ASSESSMENT & VERIFICATION LTD,101643
North East Lincolnshire Council,http://statistics.data.gov.uk/id/local-authority/00FC,People And Communities,Vulnerable Young People,Sen/Inclusion,Private Contractors,Third Party Prov - Private,PH101,3/14/2013,183732,750.00,Revenue,DKM ASSESSMENT & VERIFICATION LTD,101643
North East Lincolnshire Council,http://statistics.data.gov.uk/id/local-authority/00FC,People And Communities,Vulnerable Young People,Sen/Inclusion,Private Contractors,Third Party Prov - Private,PH101,3/14/2013,183756,750.00,Revenue,DKM ASSESSMENT & VERIFICATION LTD,101643
North East Lincolnshire Council,http://statistics.data.gov.uk/id/local-authority/00FC,People And Communities,Vulnerable Young People,Sen/Inclusion,Private Contractors,Third Party Prov - Private,PH101,3/14/2013,183758,750.00,Revenue,DKM ASSESSMENT & VERIFICATION LTD,101643
North East Lincolnshire Council,http://statistics.data.gov.uk/id/local-authority/00FC,People And Communities,Vulnerable Young People,Sen/Inclusion,Private Contractors,Third Party Prov - Private,PH101,3/14/2013,183759,750.00,Revenue,DKM ASSESSMENT & VERIFICATION LTD,101643
North East Lincolnshire Council,http://statistics.data.gov.uk/id/local-authority/00FC,People And Communities,Vulnerable Young People,Sen/Inclusion,Private Contractors,Third Party Prov - Private,PH101,3/14/2013,183760,750.00,Revenue,DKM ASSESSMENT & VERIFICATION LTD,101643
North East Lincolnshire Council,http://statistics.data.gov.uk/id/local-authority/00FC,People And Communities,Vulnerable Young People,Sen/Inclusion,Private Contractors,Third Party Prov - Private,PH101,3/14/2013,183762,750.00,Revenue,DKM ASSESSMENT & VERIFICATION LTD,101643
North East Lincolnshire Council,http://statistics.data.gov.uk/id/local-authority/00FC,People And Communities,Vulnerable Young People,Sen/Inclusion,Private Contractors,Third Party Prov - Private,PH101,3/14/2013,183763,750.00,Revenue,DKM ASSESSMENT & VERIFICATION LTD,101643
North East Lincolnshire Council,http://statistics.data.gov.uk/id/local-authority/00FC,People And Communities,Vulnerable Young People,Sen/Inclusion,Private Contractors,Third Party Prov - Private,PH101,3/14/2013,183765,750.00,Revenue,DKM ASSESSMENT & VERIFICATION LTD,101643
North East Lincolnshire Council,http://statistics.data.gov.uk/id/local-authority/00FC,People And Communities,Vulnerable Young People,Sen/Inclusion,Private Contractors,Third Party Prov - Private,PH101,3/14/2013,183766,750.00,Revenue,DKM ASSESSMENT & VERIFICATION LTD,101643
North East Lincolnshire Council,http://statistics.data.gov.uk/id/local-authority/00FC,People And Communities,Vulnerable Young People,Sen/Inclusion,Private Contractors,Third Party Prov - Private,PH101,3/14/2013,183768,750.00,Revenue,DKM ASSESSMENT & VERIFICATION LTD,101643
North East Lincolnshire Council,http://statistics.data.gov.uk/id/local-authority/00FC,People And Communities,Vulnerable Young People,Sen/Inclusion,Private Contractors,Third Party Prov - Private,PH101,3/14/2013,183770,750.00,Revenue,DKM ASSESSMENT & VERIFICATION LTD,101643
North East Lincolnshire Council,http://statistics.data.gov.uk/id/local-authority/00FC,People And Communities,Vulnerable Young People,Sen/Inclusion,Private Contractors,Third Party Prov - Private,PH101,3/14/2013,183773,750.00,Revenue,DKM ASSESSMENT & VERIFICATION LTD,101643
North East Lincolnshire Council,http://statistics.data.gov.uk/id/local-authority/00FC,People And Communities,Vulnerable Young People,Sen/Inclusion,Private Contractors,Third Party Prov - Private,PH101,3/14/2013,183774,750.00,Revenue,DKM ASSESSMENT & VERIFICATION LTD,101643
North East Lincolnshire Council,http://statistics.data.gov.uk/id/local-authority/00FC,People And Communities,Vulnerable Young People,Sen/Inclusion,Private Contractors,Third Party Prov - Private,PH101,3/14/2013,183776,750.00,Revenue,DKM ASSESSMENT & VERIFICATION LTD,101643
North East Lincolnshire Council,http://statistics.data.gov.uk/id/local-authority/00FC,People And Communities,Vulnerable Young People,Sen/Inclusion,Private Contractors,Third Party Prov - Private,PH101,3/14/2013,183761,777.00,Revenue,DKM ASSESSMENT & VERIFICATION LTD,101643
North East Lincolnshire Council,http://statistics.data.gov.uk/id/local-authority/00FC,People And Communities,Vulnerable Young People,Sen/Inclusion,Private Contractors,Third Party Prov - Private,PH101,3/4/2013,180750,"1,244.00",Revenue,NORTH EAST LINCS MOTOR PROJECT,101121
North East Lincolnshire Council,http://statistics.data.gov.uk/id/local-authority/00FC,People And Communities,Vulnerable Young People,Sen/Inclusion,Private Contractors,Third Party Prov - Private,PH101,3/14/2013,183767,"2,100.00",Revenue,DKM ASSESSMENT & VERIFICATION LTD,101643
North East Lincolnshire Council,http://statistics.data.gov.uk/id/local-authority/00FC,People And Communities,Vulnerable Young People,Sen/Inclusion,Private Contractors,Third Party Prov - Private,PH101,3/14/2013,183771,"2,100.00",Revenue,DKM ASSESSMENT & VERIFICATION LTD,101643
North East Lincolnshire Council,http://statistics.data.gov.uk/id/local-authority/00FC,People And Communities,Vulnerable Young People,Sen/Inclusion,Private Contractors,Third Party Prov - Private,PH101,3/14/2013,183775,"2,100.00",Revenue,DKM ASSESSMENT & VERIFICATION LTD,101643
North East Lincolnshire Council,http://statistics.data.gov.uk/id/local-authority/00FC,People And Communities,Vulnerable Young People,Sen/Inclusion,Private Contractors,Third Party Prov - Private,PH101,3/14/2013,183757,"2,127.00",Revenue,DKM ASSESSMENT & VERIFICATION LTD,101643
North East Lincolnshire Council,http://statistics.data.gov.uk/id/local-authority/00FC,People And Communities,Vulnerable Young People,Sen/Inclusion,Private Contractors,Third Party Prov - Private,PH101,3/4/2013,178412,"2,520.00",Revenue,DKM ASSESSMENT & VERIFICATION LTD,101643
North East Lincolnshire Council,http://statistics.data.gov.uk/id/local-authority/00FC,People And Communities,Vulnerable Young People,Sen/Inclusion,Private Contractors,Third Party Prov - Private,PH101,3/14/2013,183789,"2,628.00",Revenue,OASIS ACADEMY IMMINGHAM,101947
North East Lincolnshire Council,http://statistics.data.gov.uk/id/local-authority/00FC,People And Communities,Vulnerable Young People,Sen/Inclusion,Private Contractors,Third Party Prov - Private,PH101,3/4/2013,180748,"2,934.80",Revenue,CPO MEDIA,102186
North East Lincolnshire Council,http://statistics.data.gov.uk/id/local-authority/00FC,People And Communities,Vulnerable Young People,Sen/Inclusion,Private Contractors,Third Party Prov - Private,PH101,3/4/2013,180456,"10,260.00",Revenue,A4E CONSULT LTD,101656
North East Lincolnshire Council,http://statistics.data.gov.uk/id/local-authority/00FC,People And Communities,Vulnerable Young People,Sen/Inclusion,Private Contractors,Third Party Prov - Private,PH101,3/14/2013,183447,"20,298.60",Revenue,PLAYSPORTS,107535
North East Lincolnshire Council,http://statistics.data.gov.uk/id/local-authority/00FC,People And Communities,Vulnerable Young People,Sen/Inclusion,Direct Employee Expenses,Agency Staff,EA105,3/4/2013,180719,"1,546.80",Revenue,IRWIN EDUCATION LTD,106910
North East Lincolnshire Council,http://statistics.data.gov.uk/id/local-authority/00FC,People And Communities,Vulnerable Young People,Sen/Inclusion,Direct Employee Expenses,Agency Staff,EA105,3/14/2013,183752,"1,546.80",Revenue,IRWIN EDUCATION LTD,106910
North East Lincolnshire Council,http://statistics.data.gov.uk/id/local-authority/00FC,People And Communities,Vulnerable Young People,Sen/Inclusion,Direct Employee Expenses,Agency Supply Teachers,EA104,3/18/2013,183532,450.00,Revenue,VISION FOR EDUCATION LTD,102399
North East Lincolnshire Council,http://statistics.data.gov.uk/id/local-authority/00FC,People And Communities,Vulnerable Young People,Sen/Inclusion,Direct Employee Expenses,Agency Supply Teachers,EA104,3/6/2013,181798,560.00,Revenue,RANDSTAD EDUCATION LTD,102465
North East Lincolnshire Council,http://statistics.data.gov.uk/id/local-authority/00FC,People And Communities,Vulnerable Young People,Sen/Inclusion,Direct Employee Expenses,Agency Supply Teachers,EA104,3/20/2013,184873,560.00,Revenue,RANDSTAD EDUCATION LTD,102465
North East Lincolnshire Council,http://statistics.data.gov.uk/id/local-authority/00FC,People And Communities,Vulnerable Young People,Sen/Inclusion,Direct Employee Expenses,Agency Supply Teachers,EA104,3/21/2013,184882,560.00,Revenue,RANDSTAD EDUCATION LTD,102465
North East Lincolnshire Council,http://statistics.data.gov.uk/id/local-authority/00FC,People And Communities,Vulnerable Young People,Sen/Inclusion,Direct Employee Expenses,Agency Staff,EA105,3/7/2013,182025,463.00,Revenue,TEACHING PERSONNEL LTD,101305
North East Lincolnshire Council,http://statistics.data.gov.uk/id/local-authority/00FC,People And Communities,Vulnerable Young People,Sen/Inclusion,Direct Employee Expenses,Agency Staff,EA105,3/11/2013,182027,475.00,Revenue,TEACHING PERSONNEL LTD,101305
North East Lincolnshire Council,http://statistics.data.gov.uk/id/local-authority/00FC,People And Communities,Vulnerable Young People,Sen/Inclusion,Direct Employee Expenses,Agency Staff,EA105,3/7/2013,182005,555.50,Revenue,RANDSTAD EDUCATION LTD,102465
North East Lincolnshire Council,http://statistics.data.gov.uk/id/local-authority/00FC,People And Communities,Vulnerable Young People,Sen/Inclusion,Direct Employee Expenses,Agency Staff,EA105,3/20/2013,184905,555.50,Revenue,RANDSTAD EDUCATION LTD,102465
North East Lincolnshire Council,http://statistics.data.gov.uk/id/local-authority/00FC,People And Communities,Vulnerable Young People,Sen/Inclusion,Direct Employee Expenses,Agency Staff,EA105,3/20/2013,184909,571.90,Revenue,TEACHING PERSONNEL LTD,101305
North East Lincolnshire Council,http://statistics.data.gov.uk/id/local-authority/00FC,People And Communities,Vulnerable Young People,Sen/Inclusion,Direct Employee Expenses,Agency Staff,EA105,3/20/2013,184906,571.90,Revenue,TEACHING PERSONNEL LTD,101305
North East Lincolnshire Council,http://statistics.data.gov.uk/id/local-authority/00FC,People And Communities,Vulnerable Young People,Sen/Inclusion,Direct Employee Expenses,Agency Staff,EA105,3/20/2013,184908,800.15,Revenue,TEACHING PERSONNEL LTD,101305
North East Lincolnshire Council,http://statistics.data.gov.uk/id/local-authority/00FC,People And Communities,Vulnerable Young People,Sen/Inclusion,Direct Employee Expenses,Agency Staff,EA105,3/6/2013,182026,"1,029.42",Revenue,TEACHING PERSONNEL LTD,101305
North East Lincolnshire Council,http://statistics.data.gov.uk/id/local-authority/00FC,People And Communities,Vulnerable Young People,Placement & Support,Miscellaneous Expenses,Activities - Service Users,LL114,3/25/2013,185042,270.83,Revenue,PLEASURE ISLAND,104923
North East Lincolnshire Council,http://statistics.data.gov.uk/id/local-authority/00FC,People And Communities,Vulnerable Young People,Placement & Support,Miscellaneous Expenses,Activities - Service Users,LL114,3/14/2013,183911,500.00,Revenue,PARKWAY ENTERTAINMENT CO LTD,101537
North East Lincolnshire Council,http://statistics.data.gov.uk/id/local-authority/00FC,People And Communities,Vulnerable Young People,Placement & Support,Rents,Rent,GC101,3/6/2013,181737,"1,018.44",Revenue,SHORELINE HOUSING PARTNERSHIP LTD,100139
North East Lincolnshire Council,http://statistics.data.gov.uk/id/local-authority/00FC,People And Communities,Vulnerable Young People,Placement & Support,Other Agencies,Child Care Payments,PJ104,3/25/2013,144486,-235.71,Revenue,REDACTED PERSONAL INFORMATION,REDACTED PERSONAL INFORMATION
North East Lincolnshire Council,http://statistics.data.gov.uk/id/local-authority/00FC,People And Communities,Vulnerable Young People,Placement & Support,Other Agencies,Child Care Payments,PJ104,3/5/2013,141350,-117.00,Revenue,REDACTED PERSONAL INFORMATION,REDACTED PERSONAL INFORMATION
North East Lincolnshire Council,http://statistics.data.gov.uk/id/local-authority/00FC,People And Communities,Vulnerable Young People,Placement & Support,Other Agencies,Child Care Payments,PJ104,3/25/2013,144486,-94.29,Revenue,REDACTED PERSONAL INFORMATION,REDACTED PERSONAL INFORMATION
North East Lincolnshire Council,http://statistics.data.gov.uk/id/local-authority/00FC,People And Communities,Vulnerable Young People,Placement & Support,Other Agencies,Child Care Payments,PJ104,3/25/2013,144585,-63.43,Revenue,REDACTED PERSONAL INFORMATION,REDACTED PERSONAL INFORMATION
North East Lincolnshire Council,http://statistics.data.gov.uk/id/local-authority/00FC,People And Communities,Vulnerable Young People,Placement & Support,Other Agencies,Child Care Payments,PJ104,3/19/2013,143543,-63.43,Revenue,REDACTED PERSONAL INFORMATION,REDACTED PERSONAL INFORMATION
North East Lincolnshire Council,http://statistics.data.gov.uk/id/local-authority/00FC,People And Communities,Vulnerable Young People,Placement & Support,Other Agencies,Child Care Payments,PJ104,3/12/2013,142277,-62.13,Revenue,REDACTED PERSONAL INFORMATION,REDACTED PERSONAL INFORMATION
North East Lincolnshire Council,http://statistics.data.gov.uk/id/local-authority/00FC,People And Communities,Vulnerable Young People,Placement & Support,Other Agencies,Child Care Payments,PJ104,3/25/2013,144520,-50.14,Revenue,REDACTED PERSONAL INFORMATION,REDACTED PERSONAL INFORMATION
North East Lincolnshire Council,http://statistics.data.gov.uk/id/local-authority/00FC,People And Communities,Vulnerable Young People,Placement & Support,Other Agencies,Child Care Payments,PJ104,3/25/2013,144520,-50.14,Revenue,REDACTED PERSONAL INFORMATION,REDACTED PERSONAL INFORMATION
North East Lincolnshire Council,http://statistics.data.gov.uk/id/local-authority/00FC,People And Communities,Vulnerable Young People,Placement & Support,Other Agencies,Child Care Payments,PJ104,3/5/2013,141329,-40.00,Revenue,REDACTED PERSONAL INFORMATION,REDACTED PERSONAL INFORMATION
North East Lincolnshire Council,http://statistics.data.gov.uk/id/local-authority/00FC,People And Communities,Vulnerable Young People,Placement & Support,Other Agencies,Child Care Payments,PJ104,3/12/2013,142243,-40.00,Revenue,REDACTED PERSONAL INFORMATION,REDACTED PERSONAL INFORMATION
North East Lincolnshire Council,http://statistics.data.gov.uk/id/local-authority/00FC,People And Communities,Vulnerable Young People,Placement & Support,Other Agencies,Child Care Payments,PJ104,3/25/2013,144551,-40.00,Revenue,REDACTED PERSONAL INFORMATION,REDACTED PERSONAL INFORMATION
North East Lincolnshire Council,http://statistics.data.gov.uk/id/local-authority/00FC,People And Communities,Vulnerable Young People,Placement & Support,Other Agencies,Child Care Payments,PJ104,3/19/2013,143511,-27.43,Revenue,REDACTED PERSONAL INFORMATION,REDACTED PERSONAL INFORMATION
North East Lincolnshire Council,http://statistics.data.gov.uk/id/local-authority/00FC,People And Communities,Vulnerable Young People,Placement & Support,Other Agencies,Child Care Payments,PJ104,3/19/2013,143419,-21.14,Revenue,REDACTED PERSONAL INFORMATION,REDACTED PERSONAL INFORMATION
North East Lincolnshire Council,http://statistics.data.gov.uk/id/local-authority/00FC,People And Communities,Vulnerable Young People,Placement & Support,Other Agencies,Child Care Payments,PJ104,3/5/2013,141347,-21.14,Revenue,REDACTED PERSONAL INFORMATION,REDACTED PERSONAL INFORMATION
North East Lincolnshire Council,http://statistics.data.gov.uk/id/local-authority/00FC,People And Communities,Vulnerable Young People,Placement & Support,Other Agencies,Additional Cost,PJ114,3/5/2013,141320,-20.00,Revenue,REDACTED PERSONAL INFORMATION,REDACTED PERSONAL INFORMATION
North East Lincolnshire Council,http://statistics.data.gov.uk/id/local-authority/00FC,People And Communities,Vulnerable Young People,Placement & Support,Other Agencies,Additional Cost,PJ114,3/12/2013,142234,-20.00,Revenue,REDACTED PERSONAL INFORMATION,REDACTED PERSONAL INFORMATION
North East Lincolnshire Council,http://statistics.data.gov.uk/id/local-authority/00FC,People And Communities,Vulnerable Young People,Placement & Support,Other Agencies,Child Care Payments,PJ104,3/5/2013,141381,-18.43,Revenue,REDACTED PERSONAL INFORMATION,REDACTED PERSONAL INFORMATION
North East Lincolnshire Council,http://statistics.data.gov.uk/id/local-authority/00FC,People And Communities,Vulnerable Young People,Placement & Support,Other Agencies,Child Care Payments,PJ104,3/5/2013,141226,-16.71,Revenue,REDACTED PERSONAL INFORMATION,REDACTED PERSONAL INFORMATION
North East Lincolnshire Council,http://statistics.data.gov.uk/id/local-authority/00FC,People And Communities,Vulnerable Young People,Placement & Support,Other Agencies,Child Care Payments,PJ104,3/19/2013,143511,-12.57,Revenue,REDACTED PERSONAL INFORMATION,REDACTED PERSONAL INFORMATION
North East Lincolnshire Council,http://statistics.data.gov.uk/id/local-authority/00FC,People And Communities,Vulnerable Young People,Placement & Support,Other Agencies,Setting Up,PJ111,3/14/2013,180783,-4.99,Revenue,ARGOS BUSINESS SOLUTIONS,101032
North East Lincolnshire Council,http://statistics.data.gov.uk/id/local-authority/00FC,People And Communities,Vulnerable Young People,Placement & Support,Other Agencies,Additional Cost,PJ114,3/12/2013,142164,250.00,Revenue,REDACTED PERSONAL INFORMATION,REDACTED PERSONAL INFORMATION
North East Lincolnshire Council,http://statistics.data.gov.uk/id/local-authority/00FC,People And Communities,Vulnerable Young People,Placement & Support,Other Agencies,Child Care Payments,PJ104,3/12/2013,142234,256.29,Revenue,REDACTED PERSONAL INFORMATION,REDACTED PERSONAL INFORMATION
North East Lincolnshire Council,http://statistics.data.gov.uk/id/local-authority/00FC,People And Communities,Vulnerable Young People,Placement & Support,Other Agencies,Child Care Payments,PJ104,3/5/2013,141399,267.43,Revenue,REDACTED PERSONAL INFORMATION,REDACTED PERSONAL INFORMATION
North East Lincolnshire Council,http://statistics.data.gov.uk/id/local-authority/00FC,People And Communities,Vulnerable Young People,Placement & Support,Other Agencies,Child Care Payments,PJ104,3/5/2013,141228,299.00,Revenue,REDACTED PERSONAL INFORMATION,REDACTED PERSONAL INFORMATION
North East Lincolnshire Council,http://statistics.data.gov.uk/id/local-authority/00FC,People And Communities,Vulnerable Young People,Placement & Support,Other Agencies,Child Care Payments,PJ104,3/5/2013,141240,299.00,Revenue,REDACTED PERSONAL INFORMATION,REDACTED PERSONAL INFORMATION
North East Lincolnshire Council,http://statistics.data.gov.uk/id/local-authority/00FC,People And Communities,Vulnerable Young People,Placement & Support,Other Agencies,Child Care Payments,PJ104,3/5/2013,141249,299.00,Revenue,REDACTED PERSONAL INFORMATION,REDACTED PERSONAL INFORMATION
North East Lincolnshire Council,http://statistics.data.gov.uk/id/local-authority/00FC,People And Communities,Vulnerable Young People,Placement & Support,Other Agencies,Child Care Payments,PJ104,3/5/2013,141250,299.00,Revenue,REDACTED PERSONAL INFORMATION,REDACTED PERSONAL INFORMATION
North East Lincolnshire Council,http://statistics.data.gov.uk/id/local-authority/00FC,People And Communities,Vulnerable Young People,Placement & Support,Other Agencies,Child Care Payments,PJ104,3/5/2013,141286,299.00,Revenue,REDACTED PERSONAL INFORMATION,REDACTED PERSONAL INFORMATION
North East Lincolnshire Council,http://statistics.data.gov.uk/id/local-authority/00FC,People And Communities,Vulnerable Young People,Placement & Support,Other Agencies,Child Care Payments,PJ104,3/5/2013,141317,299.00,Revenue,REDACTED PERSONAL INFORMATION,REDACTED PERSONAL INFORMATION
North East Lincolnshire Council,http://statistics.data.gov.uk/id/local-authority/00FC,People And Communities,Vulnerable Young People,Placement & Support,Other Agencies,Child Care Payments,PJ104,3/5/2013,141320,299.00,Revenue,REDACTED PERSONAL INFORMATION,REDACTED PERSONAL INFORMATION
North East Lincolnshire Council,http://statistics.data.gov.uk/id/local-authority/00FC,People And Communities,Vulnerable Young People,Placement & Support,Other Agencies,Child Care Payments,PJ104,3/5/2013,141340,299.00,Revenue,REDACTED PERSONAL INFORMATION,REDACTED PERSONAL INFORMATION
North East Lincolnshire Council,http://statistics.data.gov.uk/id/local-authority/00FC,People And Communities,Vulnerable Young People,Placement & Support,Other Agencies,Child Care Payments,PJ104,3/5/2013,141376,299.00,Revenue,REDACTED PERSONAL INFORMATION,REDACTED PERSONAL INFORMATION
North East Lincolnshire Council,http://statistics.data.gov.uk/id/local-authority/00FC,People And Communities,Vulnerable Young People,Placement & Support,Other Agencies,Child Care Payments,PJ104,3/5/2013,141390,299.00,Revenue,REDACTED PERSONAL INFORMATION,REDACTED PERSONAL INFORMATION
North East Lincolnshire Council,http://statistics.data.gov.uk/id/local-authority/00FC,People And Communities,Vulnerable Young People,Placement & Support,Other Agencies,Child Care Payments,PJ104,3/5/2013,141402,299.00,Revenue,REDACTED PERSONAL INFORMATION,REDACTED PERSONAL INFORMATION
North East Lincolnshire Council,http://statistics.data.gov.uk/id/local-authority/00FC,People And Communities,Vulnerable Young People,Placement & Support,Other Agencies,Child Care Payments,PJ104,3/12/2013,142304,299.00,Revenue,REDACTED PERSONAL INFORMATION,REDACTED PERSONAL INFORMATION
North East Lincolnshire Council,http://statistics.data.gov.uk/id/local-authority/00FC,People And Communities,Vulnerable Young People,Placement & Support,Other Agencies,Child Care Payments,PJ104,3/12/2013,142317,299.00,Revenue,REDACTED PERSONAL INFORMATION,REDACTED PERSONAL INFORMATION
North East Lincolnshire Council,http://statistics.data.gov.uk/id/local-authority/00FC,People And Communities,Vulnerable Young People,Placement & Support,Other Agencies,Child Care Payments,PJ104,3/12/2013,142144,299.00,Revenue,REDACTED PERSONAL INFORMATION,REDACTED PERSONAL INFORMATION
North East Lincolnshire Council,http://statistics.data.gov.uk/id/local-authority/00FC,People And Communities,Vulnerable Young People,Placement & Support,Other Agencies,Child Care Payments,PJ104,3/12/2013,142155,299.00,Revenue,REDACTED PERSONAL INFORMATION,REDACTED PERSONAL INFORMATION
North East Lincolnshire Council,http://statistics.data.gov.uk/id/local-authority/00FC,People And Communities,Vulnerable Young People,Placement & Support,Other Agencies,Child Care Payments,PJ104,3/12/2013,142164,299.00,Revenue,REDACTED PERSONAL INFORMATION,REDACTED PERSONAL INFORMATION
North East Lincolnshire Council,http://statistics.data.gov.uk/id/local-authority/00FC,People And Communities,Vulnerable Young People,Placement & Support,Other Agencies,Child Care Payments,PJ104,3/12/2013,142165,299.00,Revenue,REDACTED PERSONAL INFORMATION,REDACTED PERSONAL INFORMATION
North East Lincolnshire Council,http://statistics.data.gov.uk/id/local-authority/00FC,People And Communities,Vulnerable Young People,Placement & Support,Other Agencies,Child Care Payments,PJ104,3/12/2013,142201,299.00,Revenue,REDACTED PERSONAL INFORMATION,REDACTED PERSONAL INFORMATION
North East Lincolnshire Council,http://statistics.data.gov.uk/id/local-authority/00FC,People And Communities,Vulnerable Young People,Placement & Support,Other Agencies,Child Care Payments,PJ104,3/12/2013,142231,299.00,Revenue,REDACTED PERSONAL INFORMATION,REDACTED PERSONAL INFORMATION
North East Lincolnshire Council,http://statistics.data.gov.uk/id/local-authority/00FC,People And Communities,Vulnerable Young People,Placement & Support,Other Agencies,Child Care Payments,PJ104,3/12/2013,142254,299.00,Revenue,REDACTED PERSONAL INFORMATION,REDACTED PERSONAL INFORMATION
North East Lincolnshire Council,http://statistics.data.gov.uk/id/local-authority/00FC,People And Communities,Vulnerable Young People,Placement & Support,Other Agencies,Child Care Payments,PJ104,3/12/2013,142289,299.00,Revenue,REDACTED PERSONAL INFORMATION,REDACTED PERSONAL INFORMATION
North East Lincolnshire Council,http://statistics.data.gov.uk/id/local-authority/00FC,People And Communities,Vulnerable Young People,Placement & Support,Other Agencies,Child Care Payments,PJ104,3/19/2013,143556,299.00,Revenue,REDACTED PERSONAL INFORMATION,REDACTED PERSONAL INFORMATION
North East Lincolnshire Council,http://statistics.data.gov.uk/id/local-authority/00FC,People And Communities,Vulnerable Young People,Placement & Support,Other Agencies,Child Care Payments,PJ104,3/19/2013,143569,299.00,Revenue,REDACTED PERSONAL INFORMATION,REDACTED PERSONAL INFORMATION
North East Lincolnshire Council,http://statistics.data.gov.uk/id/local-authority/00FC,People And Communities,Vulnerable Young People,Placement & Support,Other Agencies,Child Care Payments,PJ104,3/19/2013,143581,299.00,Revenue,REDACTED PERSONAL INFORMATION,REDACTED PERSONAL INFORMATION
North East Lincolnshire Council,http://statistics.data.gov.uk/id/local-authority/00FC,People And Communities,Vulnerable Young People,Placement & Support,Other Agencies,Child Care Payments,PJ104,3/19/2013,143413,299.00,Revenue,REDACTED PERSONAL INFORMATION,REDACTED PERSONAL INFORMATION
North East Lincolnshire Council,http://statistics.data.gov.uk/id/local-authority/00FC,People And Communities,Vulnerable Young People,Placement & Support,Other Agencies,Child Care Payments,PJ104,3/19/2013,143424,299.00,Revenue,REDACTED PERSONAL INFORMATION,REDACTED PERSONAL INFORMATION
North East Lincolnshire Council,http://statistics.data.gov.uk/id/local-authority/00FC,People And Communities,Vulnerable Young People,Placement & Support,Other Agencies,Child Care Payments,PJ104,3/19/2013,143432,299.00,Revenue,REDACTED PERSONAL INFORMATION,REDACTED PERSONAL INFORMATION
North East Lincolnshire Council,http://statistics.data.gov.uk/id/local-authority/00FC,People And Communities,Vulnerable Young People,Placement & Support,Other Agencies,Child Care Payments,PJ104,3/19/2013,143433,299.00,Revenue,REDACTED PERSONAL INFORMATION,REDACTED PERSONAL INFORMATION
North East Lincolnshire Council,http://statistics.data.gov.uk/id/local-authority/00FC,People And Communities,Vulnerable Young People,Placement & Support,Other Agencies,Child Care Payments,PJ104,3/19/2013,143469,299.00,Revenue,REDACTED PERSONAL INFORMATION,REDACTED PERSONAL INFORMATION
North East Lincolnshire Council,http://statistics.data.gov.uk/id/local-authority/00FC,People And Communities,Vulnerable Young People,Placement & Support,Other Agencies,Child Care Payments,PJ104,3/19/2013,143499,299.00,Revenue,REDACTED PERSONAL INFORMATION,REDACTED PERSONAL INFORMATION
North East Lincolnshire Council,http://statistics.data.gov.uk/id/local-authority/00FC,People And Communities,Vulnerable Young People,Placement & Support,Other Agencies,Child Care Payments,PJ104,3/19/2013,143522,299.00,Revenue,REDACTED PERSONAL INFORMATION,REDACTED PERSONAL INFORMATION
North East Lincolnshire Council,http://statistics.data.gov.uk/id/local-authority/00FC,People And Communities,Vulnerable Young People,Placement & Support,Other Agencies,Child Care Payments,PJ104,3/19/2013,143528,299.00,Revenue,REDACTED PERSONAL INFORMATION,REDACTED PERSONAL INFORMATION
North East Lincolnshire Council,http://statistics.data.gov.uk/id/local-authority/00FC,People And Communities,Vulnerable Young People,Placement & Support,Other Agencies,Child Care Payments,PJ104,3/25/2013,144624,299.00,Revenue,REDACTED PERSONAL INFORMATION,REDACTED PERSONAL INFORMATION
North East Lincolnshire Council,http://statistics.data.gov.uk/id/local-authority/00FC,People And Communities,Vulnerable Young People,Placement & Support,Other Agencies,Child Care Payments,PJ104,3/25/2013,144452,299.00,Revenue,REDACTED PERSONAL INFORMATION,REDACTED PERSONAL INFORMATION
North East Lincolnshire Council,http://statistics.data.gov.uk/id/local-authority/00FC,People And Communities,Vulnerable Young People,Placement & Support,Other Agencies,Child Care Payments,PJ104,3/25/2013,144463,299.00,Revenue,REDACTED PERSONAL INFORMATION,REDACTED PERSONAL INFORMATION
North East Lincolnshire Council,http://statistics.data.gov.uk/id/local-authority/00FC,People And Communities,Vulnerable Young People,Placement & Support,Other Agencies,Child Care Payments,PJ104,3/25/2013,144473,299.00,Revenue,REDACTED PERSONAL INFORMATION,REDACTED PERSONAL INFORMATION
North East Lincolnshire Council,http://statistics.data.gov.uk/id/local-authority/00FC,People And Communities,Vulnerable Young People,Placement & Support,Other Agencies,Child Care Payments,PJ104,3/25/2013,144474,299.00,Revenue,REDACTED PERSONAL INFORMATION,REDACTED PERSONAL INFORMATION
North East Lincolnshire Council,http://statistics.data.gov.uk/id/local-authority/00FC,People And Communities,Vulnerable Young People,Placement & Support,Other Agencies,Child Care Payments,PJ104,3/25/2013,144644,299.00,Revenue,REDACTED PERSONAL INFORMATION,REDACTED PERSONAL INFORMATION
North East Lincolnshire Council,http://statistics.data.gov.uk/id/local-authority/00FC,People And Communities,Vulnerable Young People,Placement & Support,Other Agencies,Child Care Payments,PJ104,3/25/2013,144510,299.00,Revenue,REDACTED PERSONAL INFORMATION,REDACTED PERSONAL INFORMATION
North East Lincolnshire Council,http://statistics.data.gov.uk/id/local-authority/00FC,People And Communities,Vulnerable Young People,Placement & Support,Other Agencies,Child Care Payments,PJ104,3/25/2013,144530,299.00,Revenue,REDACTED PERSONAL INFORMATION,REDACTED PERSONAL INFORMATION
North East Lincolnshire Council,http://statistics.data.gov.uk/id/local-authority/00FC,People And Communities,Vulnerable Young People,Placement & Support,Other Agencies,Child Care Payments,PJ104,3/25/2013,144540,299.00,Revenue,REDACTED PERSONAL INFORMATION,REDACTED PERSONAL INFORMATION
